{"text_format":"1","workbook":"xlsx","n_sheets":13,"sheets":["Hoofdmenu","Toelichting","Voorblad","Mededelingen","NAW_gegevens","Kostenverzamelstaat","Specifieke informatie A","Specifieke informatie C","Contractinformatie","Wanbetalers","Controleoverzicht","Blad1","Parameters"],"not_rendered":{"charts":0,"images":1,"macros":1,"external_links":0,"defined_names":432,"comments":0,"pivot_tables":0},"unopened":[],"bounds":{"document_bytes":16777216,"sheet_cells":100000,"rows_first":2000,"rows_last":500,"rows_between":2000,"halvings":0,"cell_chars":16384,"cell_head_chars":4096},"cells_cut":0,"cells_raw":0,"read":"whole","date_system":"1900"}

{"sheet":"Hoofdmenu","index":0,"n_rows":3,"n_cols":2,"rows_kept":3,"cut":false,"hidden":false,"merged":[[0,0,0,1],[1,0,1,1]]}
[" "]
[{"$f":"CONCATENATE(\"KWARTAALSTAAT ZVW \", jaar_id,\" \",kwartaal_id,\"E KWARTAAL\")","v":"KWARTAALSTAAT ZVW 2020 1E KWARTAAL"}]
["Navigatie","Afdrukken"]

{"sheet":"Toelichting","index":1,"n_rows":4,"n_cols":2,"rows_kept":4,"cut":false,"hidden":false,"merged":[]}
[]
[]
[]
[null,{"$f":"CONCATENATE(\" KWARTAALSTAAT ZVW \",jaar_id,\" \",kwartaal_id,\"E KWARTAAL (VERSIE: \",revisie_id,\")\")","v":" KWARTAALSTAAT ZVW 2020 1E KWARTAAL (VERSIE: B)"}]

{"sheet":"Voorblad","index":2,"n_rows":35,"n_cols":4,"rows_kept":35,"cut":false,"hidden":false,"merged":[[15,3,16,11],[13,3,14,11],[17,3,18,11]]}
[null,null,"VOORBLAD"]
[]
[]
[]
[]
["Pagina 1",null,null," "]
[]
[]
[]
[]
[]
[]
[]
[null,null,null,{"$f":"CONCATENATE(\"KWARTAALSTAAT ZVW \",jaar_id)","v":"KWARTAALSTAAT ZVW 2020"}]
[]
[null,null,null,{"$f":"CONCATENATE(kwartaal_id,\"E KWARTAAL\")","v":"1E KWARTAAL"}]
[]
[null,null,null,"SPECIFIEKE INFORMATIE"]
[]
[]
[]
[null,null,null,"    KOSTENVERZAMELSTAAT (SPECIFIEKE INFORMATIE A)"]
[null,null,null,"     ● Informatie risicoverevening (pagina 1 t/m 4)"]
[]
[null,null,null,"    SPECIFIEKE INFORMATIE A"]
[null,null,null,"     ● Informatie risicoverevening (pagina 1 t/m 4)"]
[]
[null,null,null,"    SPECIFIEKE INFORMATIE C"]
[null,null,null,"     ● Specificaties van kosten en productie (pagina 1 t/m 7)"]
[]
[null,null,null,"    CONTRACTINFORMATIE (SPECIFIEKE INFORMATIE C)"]
[null,null,null,"     ● Specificaties van kosten en productie (pagina 1 & 2)"]
[]
[null,null,null,"    WANBETALERS (SPECIFIEKE INFORMATIE C)"]
[null,null,null,"     ● Specificaties van aantallen (pagina 1)"]

{"sheet":"Mededelingen","index":3,"n_rows":49,"n_cols":12,"rows_kept":49,"cut":false,"hidden":false,"merged":[[48,3,48,4]]}
[]
[]
[]
[]
[]
["Pagina 1",null,null,{"$f":"CONCATENATE(\"KWARTAALSTAAT ZVW \", jaar_id,\" \",kwartaal_id,\"E KWARTAAL\")","v":"KWARTAALSTAAT ZVW 2020 1E KWARTAAL"}]
[null,null,null,{"$f":"IF(naw_uzovi_zorgverzekeraar<>\"0000\",CONCATENATE(UPPER(naw_naam_zorgverzekeraar),\", \",UPPER(naw_plaats_zorgverzekeraar)),\"\")","v":""},null,null,null,null,null,null,null,{"$f":"CONCATENATE(\"UZOVI: \",naw_uzovi_zorgverzekeraar)","v":"UZOVI: 0000"}]
[null,null,null,"MEDEDELINGEN :"]
[]
[]
[]
[]
[]
[]
[]
[]
[]
[]
[]
[]
[]
[]
[]
[]
[]
[]
[]
[]
[]
[]
[]
[]
[]
[]
[]
[]
[]
[]
[]
[]
[]
[]
[]
[]
[]
[]
[]
[]
[null,null,null,{"$f":"NOW()","v":"2020-03-11T10:01:03.950"},null,null,null,null,null,null,null,{"$f":"CONCATENATE(\"Mededelingen \",LOWER(A6))","v":"Mededelingen pagina 1"}]

{"sheet":"NAW_gegevens","index":4,"n_rows":41,"n_cols":6,"rows_kept":41,"cut":false,"hidden":false,"merged":[[2,1,2,2],[3,1,3,2]]}
[]
[]
[null,"NAW-GEGEVENS"]
[null,{"$f":"CONCATENATE(\"KWARTAALSTAAT ZVW \", jaar_id,\" \",kwartaal_id,\"E KWARTAAL\")","v":"KWARTAALSTAAT ZVW 2020 1E KWARTAAL"}]
[null," Selecteer uw nummer:","0000 KIES UW UZOVI-NUMMER"]
[null," Uzovi-nummer:",{"$f":"MID(keuze_uzovi_nummer,1,4)","v":"0000"}]
[null," Zorgverzekeraar:"," "]
[null," Plaats:"," "]
[null," Contactpersoon:"]
[null," Telefoonnummer:"]
[null," E-mail:"]
[]
[null,"Let op dat u het goede UZOVI-nummer invult, zie onderstaand overzicht:"]
[]
[null,"UZOVI","NAAM",null,null,"PLAATS"]
[null,"0101","N.V. UNIVÉ ZORG",null,null,"ARNHEM"]
[null,"0104","DELTA LLOYD ZORGVERZEKERING N.V.",null,null,"TILBURG"]
[null,"0201","OHRA ZIEKTEKOSTENVERZEKERINGEN N.V. ",null,null,"TILBURG"]
[null,"0403","ASR BASIS ZIEKTENKOSTENVERZEKERINGEN N.V. ",null,null,"AMERSFOORT"]
[null,"0699","IZA ZORGVERZEKERAAR N.V.",null,null,"ARNHEM"]
[null,"0736","N.V. ZORGVERZEKERAAR UMC",null,null,"ARNHEM"]
[null,"3311","ZILVEREN KRUIS ACHMEA ZORGVERZEKERINGEN N.V.",null,null,"AMSTERDAM"]
[null,"3313","INTERPOLIS ZORGVERZEKERINGEN N.V.",null,null,"AMSTERDAM"]
[null,3329,"AVÉRO ACHMEA ZORGVERZEKERINGEN N.V.",null,null,"AMSTERDAM"]
[null,3332,"MENZIS ZORGVERZEKERAAR NV",null,null,"WAGENINGEN"]
[null,3333,"ANDERZORG NV",null,null,"GRONINGEN"]
[null,3343,"ONVZ ZIEKTEKOSTENVERZEKERAAR N.V.",null,null,"HOUTEN"]
[null,3347,"ENO ZORGVERZEKERAAR N.V.",null,null,"DEVENTER"]
[null,3351,"FBTO ZORGVERZEKERINGEN N.V.",null,null,"LEEUWARDEN"]
[null,3352,"IPTIQ LIFE S.A.",null,null,"AMSTELVEEN"]
[null,3358,"DE FRIESLAND ZORGVERZEKERAAR N.V.",null,null,"LEEUWARDEN"]
[null,3359,"EUCARE INSURANCE PCC LTD",null,null,"TA' XBIEX"]
[null,"7029","OWM ZORGVERZEKERAAR 'DSW' U.A.",null,null,"SCHIEDAM"]
[null,"7032","ENO ZORGVERZEKERAAR N.V.",null,null,"DEVENTER"]
[null,"7037","STAD HOLLAND ZORGVERZEKERAAR OWM U.A.",null,null,"SCHIEDAM"]
[null,"7053","OHRA ZORGVERZEKERINGEN  N.V.",null,null,"TILBURG"]
[null,"7084","DE FRIESLAND ZORGVERZEKERAAR N.V.",null,null,"LEEUWARDEN"]
[null,"7085","OWM ZORGVERZEKERAAR ZORG EN ZEKERHEID U.A.",null,null,"LEIDEN"]
[null,"7095","VGZ ZORGVERZEKERAAR N.V.",null,null,"ARNHEM"]
[null,"7119","OWM CENTRALE ZORGVERZEKRAARS GROEP, ZORGVERZEKERAAR UA'",null,null,"TILBURG"]
[null,"9015","VGZ VOOR DE ZORG N.V.",null,null,"ARNHEM"]

{"sheet":"Kostenverzamelstaat","index":5,"n_rows":146,"n_cols":17,"rows_kept":146,"cut":false,"hidden":false,"merged":[[47,11,48,11],[47,13,48,13],[10,12,11,13],[12,12,13,12],[12,13,13,13],[10,10,11,11],[12,11,13,11],[12,10,13,10],[47,12,48,12],[46,12,46,13],[22,3,22,6],[24,3,24,7],[37,3,37,7],[29,3,29,6],[30,3,30,6],[14,3,14,7],[16,3,16,6],[18,3,18,6],[52,3,52,6],[35,3,35,6],[34,3,34,6],[23,3,23,7],[10,8,11,9],[15,3,15,6],[12,7,13,7],[19,3,19,6],[12,9,13,9],[12,8,13,8],[17,3,17,6],[20,3,20,6],[21,3,21,6],[31,3,31,6],[32,3,32,7],[33,3,33,7],[25,3,25,6],[28,3,28,7],[26,3,26,7],[27,3,27,6],[63,3,63,6],[64,3,64,6],[50,3,50,6],[51,3,51,6],[36,3,36,6],[46,7,48,7],[66,3,66,6],[74,3,74,6],[88,3,88,6],[89,3,89,6],[86,3,86,6],[69,3,69,6],[72,3,72,6],[56,3,56,6],[61,3,61,6],[62,3,62,6],[49,3,49,7],[39,3,39,4],[65,3,65,6],[145,3,145,4],[119,3,119,6],[120,3,120,6],[121,3,121,6],[104,3,104,6],[105,3,105,6],[94,3,94,6],[92,3,92,6],[93,3,93,6],[106,3,106,6],[97,3,97,6],[98,3,98,7],[101,3,101,6],[96,3,96,7],[91,3,91,7],[82,7,84,7],[90,3,90,7],[95,3,95,7],[122,3,122,6],[82,12,82,13],[83,10,84,10],[53,3,53,6],[87,3,87,6],[85,3,85,7],[117,11,118,11],[117,13,118,13],[117,12,118,12],[117,10,118,10],[83,9,84,9],[117,9,118,9],[108,3,108,6],[117,8,118,8],[118,3,118,6],[117,3,117,7],[83,13,84,13],[83,12,84,12],[83,8,84,8],[99,3,99,6],[83,11,84,11],[110,3,110,4],[107,3,107,7],[100,3,100,6],[109,3,109,7],[47,10,48,10],[47,8,48,8],[47,9,48,9],[46,8,46,9],[46,10,46,11],[82,8,82,9],[82,10,82,11],[103,3,103,7],[102,3,102,6],[54,3,54,6],[55,3,55,6],[75,3,75,4],[71,3,71,6],[57,3,57,6],[67,3,67,7],[68,3,68,7],[70,3,70,7],[73,3,73,6],[58,3,58,6]]}
[null,null,"INVULSPECIFICATIES SPECIFIEKE INFORMATIE A"]
[]
[]
[]
[]
["Pagina 1",null,null,{"$f":"CONCATENATE(\"KWARTAALSTAAT ZVW \", jaar_id,\" \",kwartaal_id,\"E KWARTAAL\")","v":"KWARTAALSTAAT ZVW 2020 1E KWARTAAL"}]
[null,null,null,"KOSTENVERZAMELSTAAT (SPECIFIEKE INFORMATIE A)"]
[null,null,null,{"$f":"IF(naw_uzovi_zorgverzekeraar<>\"0000\",CONCATENATE(UPPER(naw_naam_zorgverzekeraar),\", \",UPPER(naw_plaats_zorgverzekeraar)),\"\")","v":""},null,null,null,null,null,null,null,null,null,{"$f":"CONCATENATE(\"UZOVI: \",naw_uzovi_zorgverzekeraar)","v":"UZOVI: 0000"}]
[null,null,null,"SPECIFICATIES INFORMATIE RISICOVEREVENING"]
[null,null,null,"KOSTENVERZAMELSTAAT"]
[null,null,null,null,null,null,null,null,{"$f":"CONCATENATE(\"LASTEN \",jaar_id,)","v":"LASTEN 2020"},null,{"$f":"CONCATENATE(\"LASTEN \",jaar_id-1,)","v":"LASTEN 2019"},null,{"$f":"CONCATENATE(\"LASTEN \",jaar_id-2,\" EN OUDER\")","v":"LASTEN 2018 EN OUDER"}]
[]
[null,null,null,null,null,null,null,"\ncode","Lasten 2020 inclusief balanspost ","Ontvangen en geaccepteerde declaraties t/m 1e kwartaal 2020","Lasten 2019 inclusief balanspost","Ontvangen en geaccepteerde declaraties m.b.t. 2019","Lasten 2018 en ouder inclusief balanspost","Ontvangen en geaccepteerde declaraties m.b.t. 2018 en ouder"]
[null,null,null," KOSTENRUBRIEK"]
[null,null,null," 01  HUISARTSENZORG en MDZ"]
[null,null,null," Bijzondere betalingen",null,null,null,"503   ",null,null,null,null,null,null,null,null,{"$f":"IF(OR((I16-J16)/IF(I16=0,1,I16)<-10%,(K16-L16)/IF(K16=0,1,K16)<-10%,(M16-N16)/IF(M16=0,1,M16)<-10%),\"De balans is < -10%, als dit plausibel is dan vragen wij u dit nader toe te lichten bij de opmerkingen, zo niet dan dient u uw raming aan te scherpen.\",\"\")","v":""}]
[null,null,null," Avond-, nacht- en weekenddiensten",null,null,null,"504   ",null,null,null,null,null,null,null,null,{"$f":"IF(OR((I17-J17)/IF(I17=0,1,I17)<-10%,(K17-L17)/IF(K17=0,1,K17)<-10%,(M17-N17)/IF(M17=0,1,M17)<-10%),\"De balans is < -10%, als dit plausibel is dan vragen wij u dit nader toe te lichten bij de opmerkingen, zo niet dan dient u uw raming aan te scherpen.\",\"\")","v":""}]
[null,null,null," Inschrijftarieven",null,null,null,"505   ",null,null,null,null,null,null,null,null,""]
[null,null,null," Consulttarieven",null,null,null,"506   ",null,null,null,null,null,null,null,null,""]
[null,null,null," Overige tarieven",null,null,null,"507   ",null,null,null,null,null,null,null,null,""]
[null,null,null," Multidisciplinaire zorg",null,null,null,"510   ",null,null,null,null,null,null,null,null,""]
[null,null,null," Resultaatbeloning en zorgvernieuwing huisartsen",null,null,null,"515   ",null,null,null,null,null,null,null,null,""]
[null,null,null," Resultaatbeloning en zorgvernieuwing MDZ",null,null,null,"516   ",null,null,null,null,null,null,null,null,""]
[null,null,null," TOTAAL RUBRIEK 01",null,null,null,null,{"$f":"SUM(I16:I23)","v":0},{"$f":"SUM(J16:J23)","v":0},0,0,0,0]
[null,null,null," 02 FARMACEUTISCHE ZORG"]
[null,null,null," TOTAAL RUBRIEK 02",null,null,null,"520   ",null,null,null,null,null,null,null,null,{"$f":"IF(OR((I26-J26)/IF(I26=0,1,I26)<-10%,(K26-L26)/IF(K26=0,1,K26)<-10%,(M26-N26)/IF(M26=0,1,M26)<-10%),\"De balans is < -10%, als dit plausibel is dan vragen wij u dit nader toe te lichten bij de opmerkingen, zo niet dan dient u uw raming aan te scherpen.\",\"\")","v":""}]
[null,null,null," 03 VERPLEGING EN VERZORGING "]
[null,null,null," Kosten van verpleging en verzorging ",null,null,null,"530   ",null,null,null,null,null,null,null,null,{"$f":"IF(OR((I28-J28)/IF(I28=0,1,I28)<-10%,(K28-L28)/IF(K28=0,1,K28)<-10%,(M28-N28)/IF(M28=0,1,M28)<-10%),\"De balans is < -10%, als dit plausibel is dan vragen wij u dit nader toe te lichten bij de opmerkingen, zo niet dan dient u uw raming aan te scherpen.\",\"\")","v":""}]
[null,null,null," 04  MONDZORG"]
[null,null,null," Kosten mondzorg volwassen verzekerden",null,null,null,"560.1",null,null,null,null,null,null,null,null,{"$f":"IF(OR((I30-J30)/IF(I30=0,1,I30)<-10%,(K30-L30)/IF(K30=0,1,K30)<-10%,(M30-N30)/IF(M30=0,1,M30)<-10%),\"De balans is < -10%, als dit plausibel is dan vragen wij u dit nader toe te lichten bij de opmerkingen, zo niet dan dient u uw raming aan te scherpen.\",\"\")","v":""}]
[null,null,null," Kosten mondzorg jeugdige verzekerden",null,null,null,"560.2",null,null,null,null,null,null,null,null,""]
[null,null,null," Kosten gebitsprothesen",null,null,null,"561   ",null,null,null,null,null,null,null,null,""]
[null,null,null," TOTAAL RUBRIEK 04",null,null,null,null,{"$f":"SUM(I30:I32)","v":0},0,0,0,0,0]
[null,null,null," 05  VERLOSKUNDIGE ZORG"]
[null,null,null," Kosten verloskundige zorg door verloskundigen",null,null,null,"580   ",null,null,null,null,null,null,null,null,{"$f":"IF(OR((I35-J35)/IF(I35=0,1,I35)<-10%,(K35-L35)/IF(K35=0,1,K35)<-10%,(M35-N35)/IF(M35=0,1,M35)<-10%),\"De balans is < -10%, als dit plausibel is dan vragen wij u dit nader toe te lichten bij de opmerkingen, zo niet dan dient u uw raming aan te scherpen.\",\"\")","v":""}]
[null,null,null," Kosten verloskundige zorg door huisartsen",null,null,null,"581   ",null,null,null,null,null,null,null,null,""]
[null,null,null," Kosten Integrale geboortezorg ",null,null,null,"582   ",null,null,null,null,null,null,null,null,""]
[null,null,null," TOTAAL RUBRIEK 05",null,null,null,null,{"$f":"SUM(I35:I37)","v":0},{"$f":"SUM(J35:J37)","v":0},0,0,0,0]
[]
[null,null,null,{"$f":"NOW()","v":"2020-03-11T10:01:03.950"},null,null,null,null,null,null,null,null,null,{"$f":"CONCATENATE(\"Specifieke informatie A, \",LOWER(A6))","v":"Specifieke informatie A, pagina 1"}]
[]
["Pagina 2",null,null,{"$f":"CONCATENATE(\"KWARTAALSTAAT ZVW \", jaar_id,\" \",kwartaal_id,\"E KWARTAAL\")","v":"KWARTAALSTAAT ZVW 2020 1E KWARTAAL"}]
[null,null,null,"KOSTENVERZAMELSTAAT (SPECIFIEKE INFORMATIE A)"]
[null,null,null,{"$f":"IF(naw_uzovi_zorgverzekeraar<>\"0000\",CONCATENATE(UPPER(naw_naam_zorgverzekeraar),\", \",UPPER(naw_plaats_zorgverzekeraar)),\"\")","v":""},null,null,null,null,null,null,null,null,null,{"$f":"CONCATENATE(\"UZOVI: \",naw_uzovi_zorgverzekeraar)","v":"UZOVI: 0000"}]
[null,null,null,"SPECIFICATIES INFORMATIE RISICOVEREVENING"]
[null,null,null,"KOSTENVERZAMELSTAAT - vervolg"]
[null,null,null,null,null,null,null,"\ncode",{"$f":"CONCATENATE(\"LASTEN \",jaar_id,)","v":"LASTEN 2020"},null,{"$f":"CONCATENATE(\"LASTEN \",jaar_id-1,)","v":"LASTEN 2019"},null,{"$f":"CONCATENATE(\"LASTEN \",jaar_id-2,\" EN OUDER\")","v":"LASTEN 2018 EN OUDER"}]
[null,null,null,null,null,null,null,null,"Lasten 2020 inclusief balanspost ","Ontvangen en geaccepteerde declaraties t/m 1e kwartaal 2020","Lasten 2019 inclusief balanspost","Ontvangen en geaccepteerde declaraties m.b.t. 2019","Lasten 2018 en ouder inclusief balanspost","Ontvangen en geaccepteerde declaraties m.b.t. 2018 en ouder"]
[null,null,null," KOSTENRUBRIEK"]
[null,null,null," 06  MEDISCH SPECIALISTISCHE ZORG"]
[null,null,null," Kosten specialisten mondziekten en kaakchirurgie",null,null,null,"545   ",null,null,null,null,null,null,null,null,{"$f":"IF(OR((I51-J51)/IF(I51=0,1,I51)<-10%,(K51-L51)/IF(K51=0,1,K51)<-10%,(M51-N51)/IF(M51=0,1,M51)<-10%),\"De balans is < -10%, als dit plausibel is dan vragen wij u dit nader toe te lichten bij de opmerkingen, zo niet dan dient u uw raming aan te scherpen.\",\"\")","v":""}]
[null,null,null," Overige kosten ziekenhuiszorg en curatieve zorg",null,null,null,"610   ",null,null,null,null,null,null,null,null,""]
[null,null,null," Overige zorgproducten",null,null,null,"611   ",null,null,null,null,null,null,null,null,""]
[null,null,null," Kosten add-ons ",null,null,null,"612   ",null,null,null,null,null,null,null,null,""]
[null,null,null," Kosten add-ons - Dure geneesmiddelen",null,null,null,"612.1",null,null,null,null,null,null,null,null,""]
[null,null,null," Kosten add-ons - IC",null,null,null,"612.2",null,null,null,null,null,null,null,null,""]
[null,null,null," Integrale kosten van DBC-zorgproduct \n gereguleerde segment  ",null,null,null,"613.1 ",null,null,null,null,null,null,null,null,""]
[null,null,null," Integrale kosten DBC-zorgproduct vrije segment",null,null,null,"615.1 ",null,null,null,null,null,null,null,null,""]
[null,null,null," Integrale kosten extramuraal werkende \n specialisten",null,null,null,"619   ",null,null,null,null,null,null,null,null,""]
[null,null,null," TOTAAL RUBRIEK 06",null,null,null,null,{"$f":"SUM(I51:I59)","v":0},{"$f":"SUM(J51:J59)","v":0},{"$f":"SUM(K51:K59)","v":0},0,{"$f":"SUM(M51:M59)","v":0},0]
[null,null,null," 07  PARAMEDISCHE ZORG"]
[null,null,null," Kosten fysiotherapie",null,null,null,"620   ",null,null,null,null,null,null,null,null,{"$f":"IF(OR((I62-J62)/IF(I62=0,1,I62)<-10%,(K62-L62)/IF(K62=0,1,K62)<-10%,(M62-N62)/IF(M62=0,1,M62)<-10%),\"De balans is < -10%, als dit plausibel is dan vragen wij u dit nader toe te lichten bij de opmerkingen, zo niet dan dient u uw raming aan te scherpen.\",\"\")","v":""}]
[null,null,null," Kosten oefentherapie Mensendieck/Cesar",null,null,null,"621   ",null,null,null,null,null,null,null,null,""]
[null,null,null," Kosten logopedie",null,null,null,"623   ",null,null,null,null,null,null,null,null,""]
[null,null,null," Kosten ergotherapie",null,null,null,"624   ",null,null,null,null,null,null,null,null,""]
[null,null,null," Kosten dieetadvisering",null,null,null,"625   ",null,null,null,null,null,null,null,null,""]
[null,null,null," Gecombineerde Leefstijl Interventie (GLI)",null,null,null,"626   ",null,null,null,null,null,null,null,null,""]
[null,null,null," TOTAAL RUBRIEK 07",null,null,null,null,{"$f":"SUM(I62:I67)","v":0},{"$f":"SUM(J62:J67)","v":0},{"$f":"SUM(K62:K67)","v":0},0,0,0]
[null,null,null," 08  HULPMIDDELENZORG"]
[null,null,null," TOTAAL RUBRIEK 08",null,null,null,"640   ",null,null,null,null,null,null,null,null,{"$f":"IF(OR((I70-J70)/IF(I70=0,1,I70)<-10%,(K70-L70)/IF(K70=0,1,K70)<-10%,(M70-N70)/IF(M70=0,1,M70)<-10%),\"De balans is < -10%, als dit plausibel is dan vragen wij u dit nader toe te lichten bij de opmerkingen, zo niet dan dient u uw raming aan te scherpen.\",\"\")","v":""}]
[null,null,null," 09  ZIEKENVERVOER"]
[null,null,null," Kosten vervoer per ambulance/helikopter",null,null,null,"650   ",null,null,null,null,null,null,null,null,{"$f":"IF(OR((I72-J72)/IF(I72=0,1,I72)<-10%,(K72-L72)/IF(K72=0,1,K72)<-10%,(M72-N72)/IF(M72=0,1,M72)<-10%),\"De balans is < -10%, als dit plausibel is dan vragen wij u dit nader toe te lichten bij de opmerkingen, zo niet dan dient u uw raming aan te scherpen.\",\"\")","v":""}]
[null,null,null," Opbrengstenverrekeningen regionale ambulance-\n voorzieningen",null,null,null,"650.1"]
[null,null,null," Kosten vervoer per openbaar vervoer, taxi \n en eigen auto",null,null,null,"651   ",null,null,null,null,null,null,null,null,""]
[null,null,null," TOTAAL RUBRIEK 09",null,null,null,null,{"$f":"SUM(I72:I74)","v":0},0,0,0,0,0]
[null,null,null,{"$f":"NOW()","v":"2020-03-11T10:01:03.950"},null,null,null,null,null,null,null,null,null,{"$f":"CONCATENATE(\"Specifieke informatie A, \",LOWER(A42))","v":"Specifieke informatie A, pagina 2"}]
[]
["Pagina 3",null,null,{"$f":"CONCATENATE(\"KWARTAALSTAAT ZVW \", jaar_id,\" \",kwartaal_id,\"E KWARTAAL\")","v":"KWARTAALSTAAT ZVW 2020 1E KWARTAAL"}]
[null,null,null,"KOSTENVERZAMELSTAAT (SPECIFIEKE INFORMATIE A)"]
[null,null,null,{"$f":"IF(naw_uzovi_zorgverzekeraar<>\"0000\",CONCATENATE(UPPER(naw_naam_zorgverzekeraar),\", \",UPPER(naw_plaats_zorgverzekeraar)),\"\")","v":""},null,null,null,null,null,null,null,null,null,{"$f":"CONCATENATE(\"UZOVI: \",naw_uzovi_zorgverzekeraar)","v":"UZOVI: 0000"}]
[null,null,null,"SPECIFICATIES INFORMATIE RISICOVEREVENING"]
[null,null,null,"KOSTENVERZAMELSTAAT - vervolg"]
[null,null,null,null,null,null,null,"\ncode",{"$f":"CONCATENATE(\"LASTEN \",jaar_id,)","v":"LASTEN 2020"},null,{"$f":"CONCATENATE(\"LASTEN \",jaar_id-1,)","v":"LASTEN 2019"},null,{"$f":"CONCATENATE(\"LASTEN \",jaar_id-2,\" EN OUDER\")","v":"LASTEN 2018 EN OUDER"}]
[null,null,null,null,null,null,null,null,"Lasten 2020 inclusief balanspost ","Ontvangen en geaccepteerde declaraties t/m 1e kwartaal 2020","Lasten 2019 inclusief balanspost","Ontvangen en geaccepteerde declaraties m.b.t. 2019","Lasten 2018 en ouder inclusief balanspost","Ontvangen en geaccepteerde declaraties m.b.t. 2018 en ouder"]
[null,null,null," KOSTENRUBRIEK"]
[null,null,null," 10 GENEESKUNDIGE GEESTELIJKE GEZONDHEIDSZORG"]
[null,null,null," Kosten specialistische GGZ met verblijf",null,null,null,"661   ",null,null,null,null,null,null,null,null,{"$f":"IF(OR((I87-J87)/IF(I87=0,1,I87)<-10%,(K87-L87)/IF(K87=0,1,K87)<-10%,(M87-N87)/IF(M87=0,1,M87)<-10%),\"De balans is < -10%, als dit plausibel is dan vragen wij u dit nader toe te lichten bij de opmerkingen, zo niet dan dient u uw raming aan te scherpen.\",\"\")","v":""}]
[null,null,null," Kosten LGGZ (langdurige GGZ, jaar 2 en 3)",null,null,null,"661.1 ",null,null,null,null,null,null,null,null,""]
[null,null,null," Kosten specialistische GGZ zonder verblijf",null,null,null,"662   ",null,null,null,null,null,null,null,null,""]
[null,null,null," Generalistische basis GGZ",null,null,null,"665",null,null,null,null,null,null,null,null,""]
[null,null,null," TOTAAL RUBRIEK 10",null,null,null,null,{"$f":"SUM(I87:I90)","v":0},0,0,0,0,0]
[null,null,null," 11  GRZ, ELV EN GZSP"]
[null,null,null," Geriatrische Revalidatiezorg (GRZ)",null,null,null,"670   ",null,null,null,null,null,null,null,null,{"$f":"IF(OR((I93-J93)/IF(I93=0,1,I93)<-10%,(K93-L93)/IF(K93=0,1,K93)<-10%,(M93-N93)/IF(M93=0,1,M93)<-10%),\"De balans is < -10%, als dit plausibel is dan vragen wij u dit nader toe te lichten bij de opmerkingen, zo niet dan dient u uw raming aan te scherpen.\",\"\")","v":""}]
[null,null,null," Eerstelijnsverblijf (ELV)",null,null,null,"671   ",null,null,null,null,null,null,null,null,""]
[null,null,null," Geneeskundige  Zorg Specifieke Patiëntgroepen (GZSP)",null,null,null,"672   ",null,null,null,null,null,null,null,null,""]
[null,null,null," TOTAAL RUBRIEK 11",null,null,null,null,{"$f":"SUM(I93:I95)","v":0},{"$f":"SUM(J93:J95)","v":0},0,0,0,0]
[null,null,null," 12  KRAAMZORG"]
[null,null,null," TOTAAL RUBRIEK 12",null,null,null,"680   ",null,null,null,null,null,null,null,null,{"$f":"IF(OR((I98-J98)/IF(I98=0,1,I98)<-10%,(K98-L98)/IF(K98=0,1,K98)<-10%,(M98-N98)/IF(M98=0,1,M98)<-10%),\"De balans is < -10%, als dit plausibel is dan vragen wij u dit nader toe te lichten bij de opmerkingen, zo niet dan dient u uw raming aan te scherpen.\",\"\")","v":""}]
[null,null,null," 13  DIVERSE OVERIGE KOSTEN"]
[null,null,null," Overige kosten",null,null,null,"700   ",null,null,null,null,null,null,null,null,{"$f":"IF(OR((I100-J100)/IF(I100=0,1,I100)<-10%,(K100-L100)/IF(K100=0,1,K100)<-10%,(M100-N100)/IF(M100=0,1,M100)<-10%),\"De balans is < -10%, als dit plausibel is dan vragen wij u dit nader toe te lichten bij de opmerkingen, zo niet dan dient u uw raming aan te scherpen.\",\"\")","v":""}]
[null,null,null," Overige geneeskundige zorg",null,null,null,"701",null,null,null,null,null,null,null,null,""]
[null,null,null," Kosten van zorg zintuiglijk gehandicapten ",null,null,null,"702",null,null,null,null,null,null,null,null,""]
[null,null,null," TOTAAL RUBRIEK 13",null,null,null,null,{"$f":"SUM(I100:I102)","v":0},{"$f":"SUM(J100:J102)","v":0},0,0,0,0]
[null,null,null," 15  GRENSOVERSCHRIJDENDE ZORG"]
[null,null,null," Kosten via verzekeraar",null,null,null,"720",null,null,null,null,null,null,null,null,{"$f":"IF(OR((I105-J105)/IF(I105=0,1,I105)<-10%,(K105-L105)/IF(K105=0,1,K105)<-10%,(M105-N105)/IF(M105=0,1,M105)<-10%),\"De balans is < -10%, als dit plausibel is dan vragen wij u dit nader toe te lichten bij de opmerkingen, zo niet dan dient u uw raming aan te scherpen.\",\"\")","v":""}]
[null,null,null," Kosten via verbindingsorgaan",null,null,null,"721",null,null,null,null,null,null,null,null,""]
[null,null,null," TOTAAL RUBRIEK 15",null,null,null,null,{"$f":"SUM(I105:I106)","v":0},{"$f":"SUM(J105:J106)","v":0},0,0,0,0]
[null,null,null," 16  KWALITEITSGELDEN"]
[null,null,null," TOTAAL RUBRIEK 16",null,null,null,"730   ",null,null,null,null,null,null,null,null,{"$f":"IF(OR((I109-J109)/IF(I109=0,1,I109)<-10%,(K109-L109)/IF(K109=0,1,K109)<-10%,(M109-N109)/IF(M109=0,1,M109)<-10%),\"De balans is < -10%, als dit plausibel is dan vragen wij u dit nader toe te lichten bij de opmerkingen, zo niet dan dient u uw raming aan te scherpen.\",\"\")","v":""}]
[null,null,null," TOTAAL LASTEN   (bruto-schade, definitie ZIN)",null,null,null,null,{"$f":"SUM(I24,I26,I28,I33,I38,I60,I68,I70,I75,I91,I96,I98,I103,I107,I109)","v":0},{"$f":"SUM(J24,J26,J28,J33,J38,J60,J68,J70,J75,J91,J96,J98,J103,J107,J109)","v":0},0,0,0,0]
[null,null,null,{"$f":"NOW()","v":"2020-03-11T10:01:03.950"},null,null,null,null,null,null,null,null,null,{"$f":"CONCATENATE(\"Specifieke informatie A, \",LOWER(A78))","v":"Specifieke informatie A, pagina 3"}]
[]
["Pagina 4",null,null,{"$f":"CONCATENATE(\"KWARTAALSTAAT ZVW \", jaar_id,\" \",kwartaal_id,\"E KWARTAAL\")","v":"KWARTAALSTAAT ZVW 2020 1E KWARTAAL"}]
[null,null,null,"KOSTENVERZAMELSTAAT (SPECIFIEKE INFORMATIE A)"]
[null,null,null,{"$f":"IF(naw_uzovi_zorgverzekeraar<>\"0000\",CONCATENATE(UPPER(naw_naam_zorgverzekeraar),\", \",UPPER(naw_plaats_zorgverzekeraar)),\"\")","v":""},null,null,null,null,null,null,null,null,null,{"$f":"CONCATENATE(\"UZOVI: \",naw_uzovi_zorgverzekeraar)","v":"UZOVI: 0000"}]
[null,null,null,"SPECIFICATIES INFORMATIE RISICOVEREVENING"]
[null,null,null,"KOSTENVERZAMELSTAAT - vervolg"]
[null,null,null," BATEN ZVW",null,null,null,null,"Totale baten 2020 inclusief balanspost ","waarvan ontvangen  m.b.t. 2020","Totale baten 2019 inclusief balanspost ","waarvan ontvangen m.b.t. 2019","Totale baten 2018 inclusief balanspost ","waarvan ontvangen m.b.t. 2018 en ouder"]
[null,null,null,null,null,null,null,"code",null,"waarvan ontvangen  t/m 3e Kwartaal 2019"]
[null,null,null," OPBRENGSTEN VERHAAL",null,null,null,"890.1",null,null,null,null,null,null,null,null,{"$f":"IF(AND(OR(I120<0,J120<0,J120<0,L120<0,L120<0,M120<0),OR((I120-I120)/IF(I120=0,1,I120)<-10%,(K120-L120)/IF(K120=0,1,K120)<-10%,(M120-N120)/IF(M120=0,1,M120)<-10%)), \"U rapporteert een bedrag <0. Kunt u dit vooraf toelichten bij de mededelingen? En De balans is < -10%, als dit plausibel is dan vragen wij u dit nader toe te lichten bij de opmerkingen, zo niet dan dient u uw raming aan te scherpen.\",IF(OR(I120<0,J120<0,K120<0,L120<0,M120<0,N120<0),\"U rapporteert een bedrag <0. Kunt u dit vooraf toelichten bij de mededelingen?\",IF(OR((I120-J120)/IF(I120=0,1,I120)<-10%,(K120-L120)/IF(K120=0,1,K120)<-10%,(M120-N120)/IF(M120=0,1,M120)<-10%),\"De balans is < -10%, als dit plausibel is dan vragen wij u dit nader toe te lichten bij de opmerkingen, zo niet dan dient u uw raming aan te scherpen.\",\"\")))","v":""}]
[null,null,null," SCHADE T.L.V. HET VRIJWILLIG EIGEN RISICO",null,null,null,"910   ",null,null,null,null,null,null,null,null,{"$f":"IF(AND(OR(I121<0,J121<0,J121<0,L121<0,L121<0,M121<0),OR((I121-I121)/IF(I121=0,1,I121)<-10%,(K121-L121)/IF(K121=0,1,K121)<-10%,(M121-N121)/IF(M121=0,1,M121)<-10%)), \"U rapporteert een bedrag <0. Kunt u dit vooraf toelichten bij de mededelingen? En De balans is < -10%, als dit plausibel is dan vragen wij u dit nader toe te lichten bij de opmerkingen, zo niet dan dient u uw raming aan te scherpen.\",IF(OR(I121<0,J121<0,K121<0,L121<0,M121<0,N121<0),\"U rapporteert een bedrag <0. Kunt u dit vooraf toelichten bij de mededelingen?\",IF(OR((I121-J121)/IF(I121=0,1,I121)<-10%,(K121-L121)/IF(K121=0,1,K121)<-10%,(M121-N121)/IF(M121=0,1,M121)<-10%),\"De balans is < -10%, als dit plausibel is dan vragen wij u dit nader toe te lichten bij de opmerkingen, zo niet dan dient u uw raming aan te scherpen.\",\"\")))","v":""}]
[null,null,null," SCHADE T.L.V. HET VERPLICHT EIGEN RISICO",null,null,null,"915   ",null,null,null,null,null,null,null,null,{"$f":"IF(AND(OR(I122<0,J122<0,J122<0,L122<0,L122<0,M122<0),OR((I122-I122)/IF(I122=0,1,I122)<-10%,(K122-L122)/IF(K122=0,1,K122)<-10%,(M122-N122)/IF(M122=0,1,M122)<-10%)), \"U rapporteert een bedrag <0. Kunt u dit vooraf toelichten bij de mededelingen? En De balans is < -10%, als dit plausibel is dan vragen wij u dit nader toe te lichten bij de opmerkingen, zo niet dan dient u uw raming aan te scherpen.\",IF(OR(I122<0,J122<0,K122<0,L122<0,M122<0,N122<0),\"U rapporteert een bedrag <0. Kunt u dit vooraf toelichten bij de mededelingen?\",IF(OR((I122-J122)/IF(I122=0,1,I122)<-10%,(K122-L122)/IF(K122=0,1,K122)<-10%,(M122-N122)/IF(M122=0,1,M122)<-10%),\"De balans is < -10%, als dit plausibel is dan vragen wij u dit nader toe te lichten bij de opmerkingen, zo niet dan dient u uw raming aan te scherpen.\",\"\")))","v":""}]
[null,null,null," GEBOEKTE NETTO PREMIES",null,null,null,"940   ",null,null,null,null,null,null,null,null,""]
[]
[]
[]
[]
[]
[]
[]
[]
[]
[]
[]
[]
[]
[]
[]
[]
[]
[]
[]
[]
[]
[]
[null,null,null,{"$f":"NOW()","v":"2020-03-11T10:01:03.950"},null,null,null,null,null,null,null,null,null,{"$f":"CONCATENATE(\"Specifieke informatie A, \",LOWER(A113))","v":"Specifieke informatie A, pagina 4"}]

{"sheet":"Specifieke informatie A","index":6,"n_rows":93,"n_cols":12,"rows_kept":93,"cut":false,"hidden":false,"merged":[[11,11,12,11],[13,3,13,10],[14,3,14,10],[11,3,12,10],[92,3,92,4],[15,3,15,10],[16,3,16,10],[86,9,88,11],[47,3,47,4],[56,11,57,11],[56,8,56,10],[56,4,57,4]]}
[null,null,"INVULSPECIFICATIES SPECIFIEKE INFORMATIE A"]
[]
[]
[]
[]
["Pagina 1",null,null,{"$f":"CONCATENATE(\"KWARTAALSTAAT ZVW \", jaar_id,\" \",kwartaal_id,\"E KWARTAAL\")","v":"KWARTAALSTAAT ZVW 2020 1E KWARTAAL"}]
[null,null,null,"SPECIFIEKE INFORMATIE A"]
[null,null,null,{"$f":"IF(naw_uzovi_zorgverzekeraar<>\"0000\",CONCATENATE(UPPER(naw_naam_zorgverzekeraar),\", \",UPPER(naw_plaats_zorgverzekeraar)),\"\")","v":""},null,null,null,null,null,null,null,{"$f":"CONCATENATE(\"UZOVI: \",naw_uzovi_zorgverzekeraar)","v":"UZOVI: 0000"}]
[]
[null,null,null,"SPECIFICATIES INFORMATIE RISICOVEREVENING"]
[null,null,null,"KOSTEN NAAR DEELBIJDRAGE"]
[null,null,null," KOSTEN NAAR DEELBIJDRAGE",null,null,null,null,null,null,null,"Lasten 2020 inclusief balanspost "]
[]
[null,null,null," Variabele zorgkosten "]
[null,null,null," Vaste zorgkosten"]
[null,null,null," Kosten geneeskundige geestelijke gezondheidszorg "]
[null,null,null," TOTAAL lasten (bruto-schade, definitie ZIN)",null,null,null,null,null,null,null,{"$f":"SUM(L14:L16)","v":0}]
[]
[]
[]
[]
[]
[]
[]
[]
[]
[]
[]
[]
[]
[]
[]
[]
[]
[]
[]
[]
[]
[]
[]
[]
[]
[]
[]
[]
[]
[]
[null,null,null,{"$f":"NOW()","v":"2020-03-11T10:01:03.950"},null,null,null,null,null,null,null,{"$f":"CONCATENATE(\"Specifieke informatie A, \",LOWER(A6))","v":"Specifieke informatie A, pagina 1"}]
[]
["Pagina 2",null,null,{"$f":"CONCATENATE(\"KWARTAALSTAAT ZVW \", jaar_id,\" \",kwartaal_id,\"E KWARTAAL\")","v":"KWARTAALSTAAT ZVW 2020 1E KWARTAAL"}]
[null,null,null,"SPECIFIEKE INFORMATIE A"]
[null,null,null,{"$f":"IF(naw_uzovi_zorgverzekeraar<>\"0000\",CONCATENATE(UPPER(naw_naam_zorgverzekeraar),\", \",UPPER(naw_plaats_zorgverzekeraar)),\"\")","v":""},null,null,null,null,null,null,null,{"$f":"CONCATENATE(\"UZOVI: \",naw_uzovi_zorgverzekeraar)","v":"UZOVI: 0000"}]
[]
[null,null,null,"SPECIFICATIES INFORMATIE RISICOVEREVENING"]
[null,null,null,"VERZEKERDENSTAND NAAR RISICOKLASSE",null,null,null,null,null,null,null,"Peildatum: datum van nominale premieprolongatie"]
[null,null,null,null,null,null,null,null,null,null,null,"voor de maand APRIL 2020"]
[null,null,null,null,"LEEFTIJD",null,null,null,"AANTAL NAAR GESLACHT",null,null,"TOTAAL \nAANTAL"]
[null,null,null,null,null,null,null,null,"MAN","VROUW","ONBEPAALD"]
[null,null,null,"  1a.   0  t/m   1",null,null,null,null,null,null,null,{"$f":"SUM(I59:K59)","v":0}]
[null,null,null,"  1b.   2  t/m   4",null,null,null,null,null,null,null,{"$f":"SUM(I60:K60)","v":0}]
[null,null,null,"  2.     5  t/m   9",null,null,null,null,null,null,null,0]
[null,null,null,"  3.   10  t/m 14",null,null,null,null,null,null,null,0]
[null,null,null,"  4.   15  t/m 19",null,null,null,null,null,null,null,0]
[null,null,null,"  5.   20  t/m 24",null,null,null,null,null,null,null,0]
[null,null,null,"  6.   25  t/m 29",null,null,null,null,null,null,null,0]
[null,null,null,"  7.   30  t/m 34",null,null,null,null,null,null,null,0]
[null,null,null,"  8.   35  t/m 39",null,null,null,null,null,null,null,0]
[null,null,null,"  9.   40  t/m 44",null,null,null,null,null,null,null,0]
[null,null,null," 10.  45  t/m 49",null,null,null,null,null,null,null,0]
[null,null,null," 11.  50  t/m 54",null,null,null,null,null,null,null,0]
[null,null,null," 12.  55  t/m 59",null,null,null,null,null,null,null,0]
[null,null,null," 13.  60  t/m 64",null,null,null,null,null,null,null,0]
[null,null,null," 14.  65  t/m 69",null,null,null,null,null,null,null,0]
[null,null,null," 15.  70  t/m 74",null,null,null,null,null,null,null,0]
[null,null,null," 16.  75  t/m 79",null,null,null,null,null,null,null,0]
[null,null,null," 17.  80  t/m 84",null,null,null,null,null,null,null,0]
[null,null,null," 18.  85  t/m 89",null,null,null,null,null,null,null,0]
[null,null,null," 19.  90 en ouder",null,null,null,null,null,null,null,0]
[null,null,null," TOTAAL",null,null,null,null,{"$f":"SUM(I59:I78)","v":0},{"$f":"SUM(J59:J78)","v":0},{"$f":"SUM(K59:K78)","v":0},0]
[]
[null,null,null,"VERZEKERDENSTAND NAAR NOMINALE PREMIE",null,null,null,null,null,null,null,"Peildatum: datum van nominale premieprolongatie"]
[null,null,null,null,null,null,null,null,null,null,null,"voor de maand APRIL 2020"]
[null,null,null,null,null,null,null,null,null,null,null,"AANTAL"]
[null,null,null," Verzekerden met nominale premie Zvw"]
[null,null,null," Verzekerden zonder nominale premie Zvw"]
[null,null,null," TOTAAL",null,null,null,null,null,null,null,{"$f":"SUM(L84:L85)","v":0}]
[null,null,null,null,null,null,null,null,null,{"$f":"IF(AND(ISBLANK(K78)=FALSE,ISBLANK(L84)=FALSE),IF(L84<SUM(L64:L78),\"ATTENTIE: is het juist dat het aantal verzekerden \nmet nominale premie kleiner is dan het totaal\naantal verzekerden van 20 jaar en ouder?\",\"\"),\"\")","v":""}]
[]
[]
[]
[]
[]
[null,null,null,{"$f":"NOW()","v":"2020-03-11T10:01:03.950"},null,null,null,null,null,null,null,{"$f":"CONCATENATE(\"Specifieke informatie A, \",LOWER(A50))","v":"Specifieke informatie A, pagina 2"}]

{"sheet":"Specifieke informatie C","index":7,"n_rows":216,"n_cols":12,"rows_kept":216,"cut":false,"hidden":false,"merged":[[140,8,141,8],[140,9,141,9],[140,10,141,10],[124,6,125,6],[124,7,125,7],[124,8,125,8],[124,9,125,9],[124,10,125,10],[140,11,141,11],[215,3,215,4],[195,3,195,10],[196,3,196,10],[197,3,197,10],[199,3,200,10],[192,3,192,10],[190,3,190,10],[191,3,191,10],[201,3,201,10],[202,3,202,10],[203,3,203,10],[193,3,193,10],[194,3,194,10],[107,3,107,11],[151,3,151,5],[152,3,152,5],[108,3,108,5],[109,3,109,5],[110,3,110,5],[111,3,111,5],[112,3,112,5],[149,10,150,10],[149,6,150,6],[149,8,150,8],[148,8,148,9],[132,3,132,4],[123,6,123,7],[123,8,123,9],[123,10,123,11],[149,7,150,7],[124,11,125,11],[139,3,141,5],[139,6,139,7],[139,8,139,9],[139,10,139,11],[140,6,141,6],[140,7,141,7],[142,3,142,5],[143,3,143,5],[144,3,144,5],[188,3,189,10],[199,11,200,11],[188,11,189,11],[175,3,175,4],[183,3,184,10],[183,11,184,11],[145,3,145,5],[146,3,146,5],[149,9,150,9],[148,10,148,11],[149,11,150,11],[153,3,153,5],[154,3,154,5],[155,3,155,5],[148,6,148,7],[148,3,150,5],[114,3,116,5],[114,6,114,7],[114,8,114,9],[114,10,114,11],[115,6,116,6],[115,7,116,7],[115,8,116,8],[115,9,116,9],[115,10,116,10],[115,11,116,11],[104,10,104,11],[104,8,104,9],[104,3,106,5],[104,6,104,7],[105,9,106,9],[96,3,98,5],[100,3,100,5],[99,3,99,5],[96,6,96,7],[102,3,102,5],[105,11,106,11],[105,7,106,7],[105,6,106,6],[105,8,106,8],[101,3,101,5],[97,7,98,7],[96,8,96,9],[97,6,98,6],[97,9,98,9],[96,10,96,11],[97,10,98,10],[97,8,98,8],[105,10,106,10],[58,11,59,11],[60,3,60,10],[58,3,59,10],[61,3,61,10],[62,3,62,10],[97,11,98,11],[88,3,88,4],[22,3,23,4],[19,5,19,10],[56,3,56,10],[54,3,54,10],[21,5,21,10],[43,3,43,10],[24,3,24,10],[31,3,31,10],[55,3,55,10],[25,3,25,10],[33,3,33,10],[40,3,40,10],[45,3,45,4],[41,3,41,10],[20,5,20,10],[23,5,23,10],[34,3,34,10],[10,11,11,11],[12,3,12,10],[17,11,18,11],[17,3,18,10],[10,3,11,10],[13,3,13,10],[15,3,15,10],[14,3,14,10],[52,11,53,11],[37,11,38,11],[37,3,38,10],[32,3,32,10],[28,11,29,11],[39,3,39,10],[35,3,35,10],[30,3,30,10],[28,3,29,10],[52,3,53,10],[26,3,26,10],[42,3,42,10],[22,5,22,10],[19,3,21,4],[117,3,117,5],[118,3,118,5],[119,3,119,5],[120,3,120,5],[126,3,126,5],[127,3,127,5],[128,3,128,5],[129,3,129,5],[130,3,130,5],[123,3,125,5],[121,3,121,5]]}
[" ",null,"INVULSPECIFICATIES SPECIFIEKE INFORMATIE C"]
[]
[]
[]
[]
["Pagina 1",null,null,{"$f":"CONCATENATE(\"KWARTAALSTAAT ZVW \", jaar_id,\" \",kwartaal_id,\"E KWARTAAL\")","v":"KWARTAALSTAAT ZVW 2020 1E KWARTAAL"}]
[null,null,null,"SPECIFIEKE INFORMATIE C "]
[null,null,null,{"$f":"IF(naw_uzovi_zorgverzekeraar<>\"0000\",CONCATENATE(UPPER(naw_naam_zorgverzekeraar),\", \",UPPER(naw_plaats_zorgverzekeraar)),\"\")","v":""},null,null,null,null,null,null,null,{"$f":"CONCATENATE(\"UZOVI: \",naw_uzovi_zorgverzekeraar)","v":"UZOVI: 0000"}]
[null,null,null,"SPECIFICATIES VAN KOSTEN EN PRODUCTIE"]
[null,null,null,"RUBRIEK 01 HUISARTSENZORG"]
[null,null,null,"  CODE 503 - BIJZONDERE BETALINGEN",null,null,null,null,null,null,null,"Ontvangen en geaccepteerde declaraties tot en met 1e kwartaal 2020"]
[]
[null,null,null," Module achterstandsfonds"]
[null,null,null," Module modernisering en innovatie"]
[null,null,null," Overige kosten"]
[null,null,null," TOTAAL code 503",null,null,null,null,null,null,null,{"$f":"SUM(L13:L15)","v":0}]
[]
[null,null,null,"  CODE 506 - CONSULTTARIEVEN",null,null,null,null,null,null,null,"Ontvangen en geaccepteerde declaraties tot en met 1e kwartaal 2020"]
[]
[null,null,null," Kosten consulten huisartsen",null," korter dan 5 minuten"]
[null,null,null,null,null," van 5 tot 20 minuten"]
[null,null,null,null,null," 20 minuten en langer"]
[null,null,null," Kosten visites huisartsen",null," ≤ 20 minuten"]
[null,null,null,null,null," > 20 minuten"]
[null,null,null," Kosten consulttarieven POH GGZ"]
[null,null,null," Kosten huisartsenzorg ELV en Intensieve zorg "]
[null,null,null," TOTAAL code 506",null,null,null,null,null,null,null,{"$f":"SUM(L20:L26)","v":0}]
[]
[null,null,null,"  CODE 507 - OVERIGE TARIEVEN",null,null,null,null,null,null,null,"Ontvangen en geaccepteerde declaraties tot en met 1e kwartaal 2020"]
[null,null,null,null,null,null,null,null,null,null,null,"Ontvangen en geaccepteerde declaraties mbt jaar T"]
[null,null,null," Module POH GGZ"]
[null,null,null," S1 Verrichtingen "]
[null,null,null," Vaccinaties"]
[null,null,null," Passantentarieven"]
[null,null,null," Verloskundige zorg door huisartsen"]
[null,null,null," TOTAAL code 507",null,null,null,null,null,null,null,{"$f":"SUM(L31:L35)","v":0}]
[]
[null,null,null,"  CODE 510 - MULTIDISCIPLINAIRE ZORG",null,null,null,null,null,null,null,"Ontvangen en geaccepteerde declaraties tot en met 1e kwartaal 2020"]
[null,null,null,null,null,null,null,null,null,null,null,"Ontvangen en geaccepteerde declaraties mbt jaar T"]
[null,null,null," Multidisciplinaire zorgverlening Diabetes Mellitus type 2 en multidisciplinaire zorgverlening Cardiovasculair risicomanagement \n (vergoedingscomponent te verzekeren prestatie Zvw)"]
[null,null,null," Multidisciplinaire zorgverlening COPD (vergoedingscomponent te verzekeren prestatie Zvw) "]
[null,null,null," Organisatie en infrastructuur"]
[null,null,null," Programma stoppen met roken"]
[null,null,null," TOTAAL code 510",null,null,null,null,null,null,null,{"$f":"SUM(L40:L43)","v":0}]
[]
[null,null,null,{"$f":"NOW()","v":"2020-03-11T10:01:03.950"},null,null,null,null,null,null,null,{"$f":"CONCATENATE(\"Specifieke informatie C, \",LOWER(A6))","v":"Specifieke informatie C, pagina 1"}]
[]
["Pagina 2",null,null,{"$f":"CONCATENATE(\"KWARTAALSTAAT ZVW \", jaar_id,\" \",kwartaal_id,\"E KWARTAAL\")","v":"KWARTAALSTAAT ZVW 2020 1E KWARTAAL"}]
[null,null,null,"SPECIFIEKE INFORMATIE C"]
[null,null,null,{"$f":"IF(naw_uzovi_zorgverzekeraar<>\"0000\",CONCATENATE(UPPER(naw_naam_zorgverzekeraar),\", \",UPPER(naw_plaats_zorgverzekeraar)),\"\")","v":""},null,null,null,null,null,null,null,{"$f":"CONCATENATE(\"UZOVI: \",naw_uzovi_zorgverzekeraar)","v":"UZOVI: 0000"}]
[null,null,null,"SPECIFICATIES VAN KOSTEN EN PRODUCTIE"]
[null,null,null,"RUBRIEK 01 HUISARTSENZORG - vervolg"]
[null,null,null,"  CODE 515 - RESULTAATBELONING EN ZORGVERNIEUWING HUISARTSEN",null,null,null,null,null,null,null,"Ontvangen en geaccepteerde declaraties tot en met 1e kwartaal 2020"]
[null,null,null,null,null,null,null,null,null,null,null,"Ontvangen en geaccepteerde declaraties mbt jaar T"]
[null,null,null," Kosten resultaatbeloning huisartsen"]
[null,null,null," Kosten zorgvernieuwing huisartsen"]
[null,null,null," TOTAAL code 515",null,null,null,null,null,null,null,{"$f":"SUM(L55:L56)","v":0}]
[]
[null,null,null,"  CODE 516 - RESULTAATBELONING EN ZORGVERNIEUWING MDZ",null,null,null,null,null,null,null,"Ontvangen en geaccepteerde declaraties tot en met 1e kwartaal 2020"]
[null,null,null,null,null,null,null,null,null,null,null,"Ontvangen en geaccepteerde declaraties mbt jaar T"]
[null,null,null," Kosten resultaatbeloning MDZ"]
[null,null,null," Kosten zorgvernieuwing MDZ"]
[null,null,null," TOTAAL code 516",null,null,null,null,null,null,null,{"$f":"SUM(L61:L62)","v":0}]
[]
[]
[]
[]
[]
[]
[]
[]
[]
[]
[]
[]
[]
[]
[]
[]
[]
[]
[]
[]
[]
[]
[]
[]
[]
[null,null,null,{"$f":"NOW()","v":"2020-03-11T10:01:03.950"},null,null,null,null,null,null,null,{"$f":"CONCATENATE(\"Specifieke informatie C, \",LOWER(A48))","v":"Specifieke informatie C, pagina 2"}]
[]
["Pagina 3",null,null,{"$f":"CONCATENATE(\"KWARTAALSTAAT ZVW \", jaar_id,\" \",kwartaal_id,\"E KWARTAAL\")","v":"KWARTAALSTAAT ZVW 2020 1E KWARTAAL"}]
[null,null,null,"SPECIFIEKE INFORMATIE C "]
[null,null,null,{"$f":"IF(naw_uzovi_zorgverzekeraar<>\"0000\",CONCATENATE(UPPER(naw_naam_zorgverzekeraar),\", \",UPPER(naw_plaats_zorgverzekeraar)),\"\")","v":""},null,null,null,null,null,null,null,{"$f":"CONCATENATE(\"UZOVI: \",naw_uzovi_zorgverzekeraar)","v":"UZOVI: 0000"}]
[null,null,null,"SPECIFICATIES VAN KOSTEN EN PRODUCTIE"]
[]
[null,null,null,"RUBRIEK 06 MEDISCH SPECIALISTISCHE ZORG"]
[null,null,null," CODE 610 - OVERIGE KOSTEN \n ZIEKENHUISZORG EN CURATIEVE ZORG",null,null,"Lasten 2020 t/m 1e kwartaal",null,"Lasten 2019 ",null,"Lasten 2018 en ouder"]
[null,null,null,null,null,null,"Lasten 2020 inclusief balanspost","Ontvangen en geaccepteerde declaraties t/m 1 kwartaal 2020","Lasten 2019 inclusief balanspost","Ontvangen en geaccepteerde declaraties m.b.t. 2019","Lasten 2018 en ouder inclusief balanspost ","Ontvangen en geaccepteerde declaraties m.b.t. 2018 en ouder"]
[null,null,null,null,null,null,null,null,"Ontvangen en geaccepteerde declaraties mbt jaar T","Ontvangen en geaccepteerde declaraties mbt jaar T","Ontvangen en geaccepteerde declaraties mbt jaar T","Ontvangen en geaccepteerde declaraties mbt jaar T"]
[null,null,null," Kosten van eerstelijnsdiagnostiek \n aangevraagd door eerstelijnszorg-\n aanbieders geleverd door \n huisartsenlaboratoria "]
[null,null,null," Trombosediensten "]
[null,null,null," SKION en NTS"]
[null,null,null," TOTAAL code 610",null,null,{"$f":"SUM(G100:G102)","v":0},0,0,0,0,0]
[]
[null,null,null,"  CODE 611 - NAAR INSTELLING",null,null,"Lasten 2020 t/m 2e kwartaal",null,"Lasten 2019 ",null,"Lasten 2018 en ouder"]
[null,null,null,null,null,null,"Lasten 2020 inclusief balanspost","Ontvangen en geaccepteerde declaraties t/m 2e kwartaal 2020","Lasten 2019 inclusief balanspost","Ontvangen en geaccepteerde declaraties m.b.t. 2019","Lasten 2018 en ouder inclusief balanspost ","Ontvangen en geaccepteerde declaraties m.b.t. 2018 en ouder"]
[null,null,null,null,null,null,null,null,"Ontvangen en geaccepteerde declaraties mbt jaar T","Ontvangen en geaccepteerde declaraties mbt jaar T","Ontvangen en geaccepteerde declaraties mbt jaar T","Ontvangen en geaccepteerde declaraties mbt jaar T"]
[null,null,null," Overige zorgproducten"]
[null,null,null," Academische ziekenhuizen"]
[null,null,null," Algemene ziekenhuizen"]
[null,null,null," Zelfstandige behandelcentra"]
[null,null,null," Overige zorgaanbieders"]
[null,null,null," TOTAAL code 611",null,null,{"$f":"SUM(G109:G112)","v":0},0,0,0,0,0]
[]
[null,null,null," CODE 612.1 - KOSTEN ADD-ONS DURE \n GENEESMIDDELEN NAAR INSTELLING",null,null,"Lasten 2020 t/m 1e kwartaal",null,"Lasten 2019 ",null,"Lasten 2018 en ouder"]
[null,null,null,null,null,null,"Lasten 2020 inclusief balanspost","Ontvangen en geaccepteerde declaraties t/m 1e kwartaal 2020","Lasten 2019 inclusief balanspost","Ontvangen en geaccepteerde declaraties m.b.t. 2019","Lasten 2018 en ouder inclusief balanspost ","Ontvangen en geaccepteerde declaraties m.b.t. 2018 en ouder"]
[null,null,null,null,null,null,null,null,"Ontvangen en geaccepteerde declaraties mbt jaar T","Ontvangen en geaccepteerde declaraties mbt jaar T","Ontvangen en geaccepteerde declaraties mbt jaar T","Ontvangen en geaccepteerde declaraties mbt jaar T"]
[null,null,null," Academische ziekenhuizen"]
[null,null,null," Algemene ziekenhuizen"]
[null,null,null," Zelfstandige behandelcentra"]
[null,null,null," Overige zorgaanbieders"]
[null,null,null," TOTAAL code 612.1",null,null,{"$f":"SUM(G118:G121)","v":0},{"$f":"SUM(H118:H121)","v":0},0,0,0,0]
[]
[null,null,null," CODE 612.2 - KOSTEN ADD-ONS IC  \n NAAR INSTELLING",null,null,"Lasten 2020 t/m 1e kwartaal",null,"Lasten 2019 ",null,"Lasten 2018 en ouder"]
[null,null,null,null,null,null,"Lasten 2020 inclusief balanspost","Ontvangen en geaccepteerde declaraties t/m 1e kwartaal 2020","Lasten 2019 inclusief balanspost","Ontvangen en geaccepteerde declaraties m.b.t. 2019","Lasten 2018 en ouder inclusief balanspost ","Ontvangen en geaccepteerde declaraties m.b.t. 2018 en ouder"]
[null,null,null,null,null,null,null,null,"Ontvangen en geaccepteerde declaraties mbt jaar T","Ontvangen en geaccepteerde declaraties mbt jaar T","Ontvangen en geaccepteerde declaraties mbt jaar T","Ontvangen en geaccepteerde declaraties mbt jaar T"]
[null,null,null," Academische ziekenhuizen"]
[null,null,null," Algemene ziekenhuizen"]
[null,null,null," Zelfstandige behandelcentra"]
[null,null,null," Overige zorgaanbieders"]
[null,null,null," TOTAAL code 612.2",null,null,{"$f":"SUM(G127:G130)","v":0},{"$f":"SUM(H127:H130)","v":0},0,0,0,0]
[]
[null,null,null,{"$f":"NOW()","v":"2020-03-11T10:01:03.950"},null,null,null,null,null,null,null,{"$f":"CONCATENATE(\"Specifieke informatie C, \",LOWER(A91))","v":"Specifieke informatie C, pagina 3"}]
[]
["Pagina 4",null,null,{"$f":"CONCATENATE(\"KWARTAALSTAAT ZVW \", jaar_id,\" \",kwartaal_id,\"E KWARTAAL\")","v":"KWARTAALSTAAT ZVW 2020 1E KWARTAAL"}]
[null,null,null,"SPECIFIEKE INFORMATIE C "]
[null,null,null,{"$f":"IF(naw_uzovi_zorgverzekeraar<>\"0000\",CONCATENATE(UPPER(naw_naam_zorgverzekeraar),\", \",UPPER(naw_plaats_zorgverzekeraar)),\"\")","v":""},null,null,null,null,null,null,null,{"$f":"CONCATENATE(\"UZOVI: \",naw_uzovi_zorgverzekeraar)","v":"UZOVI: 0000"}]
[null,null,null,"SPECIFICATIES VAN KOSTEN EN PRODUCTIE"]
[null,null,null,"RUBRIEK 06 MEDISCH SPECIALISTISCHE ZORG - vervolg"]
[null,null,null,"  CODE 613.1 - INTEGRALE KOSTEN VAN \n  DBC-ZORGPRODUCTEN GEREGULEERDE \n  SEGMENT NAAR \n  INSTELLING",null,null,"Lasten 2020 t/m 1e kwartaal",null,"Lasten 2019 ",null,"Lasten 2018 en ouder"]
[null,null,null,null,null,null,"Lasten 2020 inclusief balanspost","Ontvangen en geaccepteerde declaraties t/m 1e kwartaal 2020","Lasten 2019 inclusief balanspost","Ontvangen en geaccepteerde declaraties m.b.t. 2019","Lasten 2018 en ouder inclusief balanspost ","Ontvangen en geaccepteerde declaraties m.b.t. 2018 en ouder"]
[null,null,null,null,null,"code",null,null,"Ontvangen en geaccepteerde declaraties mbt jaar T","Ontvangen en geaccepteerde declaraties mbt jaar T","Ontvangen en geaccepteerde declaraties mbt jaar T","Ontvangen en geaccepteerde declaraties mbt jaar T"]
[null,null,null," Academische ziekenhuizen"]
[null,null,null," Algemene ziekenhuizen"]
[null,null,null," Zelfstandige behandelcentra"]
[null,null,null," Overige zorgaanbieders"]
[null,null,null," TOTAAL code 613.1",null,null,{"$f":"SUM(G143:G146)","v":0},{"$f":"SUM(H143:H146)","v":0},{"$f":"SUM(I143:I146)","v":0},0,0,0]
[]
[null,null,null,"  CODE 615.1 - INTEGRALE KOSTEN VAN\n  DBC-ZORGPRODUCTEN VRIJE SEGMENT\n  NAAR INSTELLING",null,null,"Lasten 2020 t/m 1e kwartaal",null,"Lasten 2019 ",null,"Lasten 2018 en ouder"]
[null,null,null,null,null,null,"Lasten 2020 inclusief balanspost","Ontvangen en geaccepteerde declaraties t/m 1e kwartaal 2020","Lasten 2019 inclusief balanspost","Ontvangen en geaccepteerde declaraties m.b.t. 2019","Lasten 2018 en ouder inclusief balanspost ","Ontvangen en geaccepteerde declaraties m.b.t. 2018 en ouder"]
[null,null,null,null,null,"code",null,null,"Ontvangen en geaccepteerde declaraties mbt jaar T","Ontvangen en geaccepteerde declaraties mbt jaar T","Ontvangen en geaccepteerde declaraties mbt jaar T","Ontvangen en geaccepteerde declaraties mbt jaar T"]
[null,null,null," Academische ziekenhuizen"]
[null,null,null," Algemene ziekenhuizen"]
[null,null,null," Zelfstandige behandelcentra"]
[null,null,null," Overige zorgaanbieders"]
[null,null,null," TOTAAL code 615.1",null,null,{"$f":"SUM(G152:G155)","v":0},0,0,0,0,0]
[]
[]
[]
[]
[]
[]
[]
[]
[]
[]
[]
[]
[]
[]
[]
[]
[]
[]
[]
[null,null,null,{"$f":"NOW()","v":"2020-03-11T10:01:03.950"},null,null,null,null,null,null,null,{"$f":"CONCATENATE(\"Specifieke informatie C, \",LOWER(A135))","v":"Specifieke informatie C, pagina 4"}]
[]
["Pagina 5",null,null,{"$f":"CONCATENATE(\"KWARTAALSTAAT ZVW \", jaar_id,\" \",kwartaal_id,\"E KWARTAAL\")","v":"KWARTAALSTAAT ZVW 2020 1E KWARTAAL"}]
[null,null,null,"SPECIFIEKE INFORMATIE C "]
[null,null,null,{"$f":"IF(naw_uzovi_zorgverzekeraar<>\"0000\",CONCATENATE(UPPER(naw_naam_zorgverzekeraar),\", \",UPPER(naw_plaats_zorgverzekeraar)),\"\")","v":""},null,null,null,null,null,null,null,{"$f":"CONCATENATE(\"UZOVI: \",naw_uzovi_zorgverzekeraar)","v":"UZOVI: 0000"}]
[null,null,null,"SPECIFICATIES VAN KOSTEN EN PRODUCTIE"]
[]
[null,null,null,"RUBRIEK 13 DIVERSE OVERIGE KOSTEN"]
[null,null,null," CODE 700 - OVERIGE KOSTEN",null,null,null,null,null,null,null,"Ontvangen en geaccepteerde declaraties tot en met 1e kwartaal 2020"]
[null,null,null,null,null,null,null,null,null,null,null,"Ontvangen en geaccepteerde declaraties mbt jaar T"]
[null,null,null," Kosten i.v.m. beleidsregel innovatie t.b.v. nieuwe zorgprestaties "]
[null,null,null," TOTAAL code 700",null,null,null,null,null,null,null,{"$f":"SUM(L186:L186)","v":0}]
[]
[null,null,null," CODE 701 - OVERIGE GENEESKUNDIGE ZORG",null,null,null,null,null,null,null,"Ontvangen en geaccepteerde declaraties tot en met 1e kwartaal 2020"]
[null,null,null,null,null,null,null,null,null,null,null,"Ontvangen en geaccepteerde declaraties mbt jaar T"]
[null,null,null," Geneeskundige individuele zorg bij tuberculose en infectieziekten door GGD'en"]
[null,null,null," Huidtherapie"]
[null,null,null," Orthoptie"]
[null,null,null," Optometrie"]
[null,null,null," Kosten voetzorg bij Diabetes Mellitus type 2"]
[null,null,null," Koemelkallergietest (niet horend bij Multidisciplinaire Zorg) "]
[null,null,null," Regiefunctie complexe wondzorg"]
[null,null,null," TOTAAL code 701",null,null,null,null,null,null,null,{"$f":"SUM(L191:L197)","v":0}]
[]
[null,null,null," CODE 702 - ZINTUIGLIJK GEHANDICAPTEN",null,null,null,null,null,null,null,"Ontvangen en geaccepteerde declaraties tot en met 1e kwartaal 2020"]
[null,null,null,null,null,null,null,null,null,null,null,"Ontvangen en geaccepteerde declaraties mbt jaar T"]
[null,null,null," Kosten van zorg ivm visuele beperking"]
[null,null,null," Kosten van zorg ivm auditieve en communicatieve beperking"]
[null,null,null," TOTAAL code 702",null,null,null,null,null,null,null,{"$f":"SUM(L202:L203)","v":0}]
[]
[]
[]
[]
[]
[]
[]
[]
[]
[]
[]
[null,null,null,{"$f":"NOW()","v":"2020-03-11T10:01:03.950"},null,null,null,null,null,null,null,{"$f":"CONCATENATE(\"Specifieke informatie C, \",LOWER(A178))","v":"Specifieke informatie C, pagina 5"}]

{"sheet":"Contractinformatie","index":8,"n_rows":92,"n_cols":11,"rows_kept":92,"cut":false,"hidden":false,"merged":[[89,3,89,9],[75,3,75,9],[76,3,76,9],[77,3,77,9],[78,3,78,9],[80,3,80,9],[67,3,67,9],[68,3,68,9],[69,3,69,9],[70,3,70,9],[73,3,73,9],[42,3,42,9],[32,3,32,9],[33,3,33,9],[34,3,34,9],[35,3,35,9],[36,3,36,9],[91,3,91,4],[46,3,46,4],[74,3,74,10],[85,3,85,9],[86,3,86,9],[87,3,87,9],[54,3,54,9],[55,3,55,9],[56,3,56,9],[57,3,57,9],[58,3,58,9],[59,3,59,9],[60,3,60,9],[62,3,62,9],[63,3,63,9],[66,3,66,9],[10,3,10,10],[9,3,9,9],[11,3,11,9],[12,3,12,9],[13,3,13,9],[14,3,14,9],[16,3,16,9],[17,3,17,9],[18,3,18,9],[15,3,15,10],[19,3,19,9],[20,3,20,9],[23,3,23,9],[24,3,24,9],[25,3,25,9],[26,3,26,9],[27,3,27,9],[28,3,28,9],[31,3,31,9],[84,3,84,10],[72,3,72,10],[79,3,79,10],[81,3,81,9],[82,3,82,9],[83,3,83,9],[52,3,52,9],[53,3,53,9],[37,3,37,9],[38,3,38,9],[39,3,39,9],[41,3,41,9]]}
[null,null,"INVULSPECIFICATIES SPECIFIEKE INFORMATIE C"]
[]
[]
[]
[]
["Pagina 1",null,null,{"$f":"CONCATENATE(\"KWARTAALSTAAT ZVW \", jaar_id,\" \",kwartaal_id,\"E KWARTAAL\")","v":"KWARTAALSTAAT ZVW 2020 1E KWARTAAL"}]
[null,null,null,"SPECIFIEKE INFORMATIE C - CONTRACTINFORMATIE"]
[null,null,null,{"$f":"IF(naw_uzovi_zorgverzekeraar<>\"0000\",CONCATENATE(UPPER(naw_naam_zorgverzekeraar),\"\",),\"\")","v":""},null,null,null,null,null,null,{"$f":"CONCATENATE(\"UZOVI: \",naw_uzovi_zorgverzekeraar)","v":"UZOVI: 0000"}]
[null,null,null," CONTRACTINFORMATIE HUISARTSENZORG EN MULTIDISCIPLINAIRE ZORG, rubriek 01"]
[null,null,null,null,null,null,null,null,null,null,"Lasten inclusief \nbalanspost \n2020"]
[null,null,null," Huisartsenzorg, codes 503, 504, 505, 506, 507, 515"]
[null,null,null," Gecontracteerde zorg"]
[null,null,null," Lopende onderhandelingen"]
[null,null,null," Niet gecontracteerde zorg"]
[null,null,null," Subtotaal huisartsenzorg",null,null,null,null,null,{"$f":"SUM(J12:J14)","v":0},{"$f":"SUM(K12:K14)","v":0}]
[null,null,null," Multidisciplinaire zorg, codes 510 en 516"]
[null,null,null," Gecontracteerde zorg"]
[null,null,null," Lopende onderhandelingen"]
[null,null,null," Niet gecontracteerde zorg"]
[null,null,null," Subtotaal multidisciplinaire zorg",null,null,null,null,null,{"$f":"SUM(J17:J19)","v":0},{"$f":"SUM(K17:K19)","v":0}]
[null,null,null," TOTAAL RUBRIEK 01 ",null,null,null,null,null,{"$f":"SUM(J15+J20)","v":0},{"$f":"SUM(K15+K20)","v":0}]
[]
[null,null,null," CONTRACTINFORMATIE VERPLEGING EN VERZORGING, rubriek 03"]
[null,null,null,null,null,null,null,null,null,"Lasten inclusief \nbalanspost \n2020","Lasten inclusief \nbalanspost \n2020"]
[null,null,null," Gecontracteerde zorg"]
[null,null,null," Lopende onderhandelingen"]
[null,null,null," Niet gecontracteerde zorg"]
[null,null,null," PGB"]
[null,null,null," TOTAAL RUBRIEK 03",null,null,null,null,null,{"$f":"SUM(J25:J27)","v":0},{"$f":"SUM(K25:K28)","v":0}]
[]
[null,null,null," CONTRACTINFORMATIE MEDISCH SPECIALISTISCHE ZORG, rubriek 06"]
[null,null,null,null,null,null,null,null,null,"Lasten inclusief \nbalanspost \n2020","Lasten inclusief \nbalanspost \n2020"]
[null,null,null," Gecontracteerde zorg: aanneemsom"]
[null,null,null," Gecontracteerde zorg: plafond"]
[null,null,null," Gecontracteerde zorg: nacalculatie bij aanneemsommen en plafondcontracten"]
[null,null,null," Gecontracteerde zorg: open einde contract"]
[null,null,null," Subtotaal gecontracteerde zorg",null,null,null,null,null,{"$f":"SUM(J33:J36)","v":0},{"$f":"SUM(K33:K36)","v":0}]
[null,null,null," Lopende onderhandelingen"]
[null,null,null," Niet gecontracteerde zorg"]
[null,null,null," TOTAAL RUBRIEK 06 ",null,null,null,null,null,{"$f":"SUM(J37:J39)","v":0},{"$f":"SUM(K37:K39)","v":0}]
[]
[null,null,null,null,null,null,null,null,null,2020,2020]
[null,null,null," Totaal afgesproken maximumomzet plafondcontracten"]
[]
[]
[]
[null,null,null,{"$f":"NOW()","v":"2020-03-11T10:01:03.950"},null,null,null,null,null,null,{"$f":"CONCATENATE(\"Specifieke informatie C - Contractinformatie, \",LOWER(A6))","v":"Specifieke informatie C - Contractinformatie, pagina 1"}]
[]
["Pagina 2",null,null,{"$f":"CONCATENATE(\"KWARTAALSTAAT ZVW \", jaar_id,\" \",kwartaal_id,\"E KWARTAAL\")","v":"KWARTAALSTAAT ZVW 2020 1E KWARTAAL"}]
[null,null,null,"SPECIFIEKE INFORMATIE C - CONTRACTINFORMATIE"]
[null,null,null,{"$f":"IF(naw_uzovi_zorgverzekeraar<>\"0000\",CONCATENATE(UPPER(naw_naam_zorgverzekeraar),\"\",),\"\")","v":""},null,null,null,null,null,null,{"$f":"CONCATENATE(\"UZOVI: \",naw_uzovi_zorgverzekeraar)","v":"UZOVI: 0000"}]
[null,null,null," CONTRACTINFORMATIE GENEESKUNDIGE GEESTELIJKE GEZONDHEIDSZORG, rubriek 10"]
[null,null,null,null,null,null,null,null,null,"Lasten inclusief \nbalanspost \n2020","Lasten inclusief \nbalanspost \n2020"]
[null,null,null," Gecontracteerde zorg: aanneemsom"]
[null,null,null," Gecontracteerde zorg: plafond"]
[null,null,null," Gecontracteerde zorg: nacalculatie bij aanneemsommen en plafondcontracten"]
[null,null,null," Gecontracteerde zorg: open einde contract"]
[null,null,null," Subtotaal gecontracteerde zorg",null,null,null,null,null,{"$f":"SUM(J54:J57)","v":0},{"$f":"SUM(K54:K57)","v":0}]
[null,null,null," Lopende onderhandelingen"]
[null,null,null," Niet gecontracteerde zorg"]
[null,null,null," TOTAAL RUBRIEK 10 ",null,null,null,null,null,{"$f":"SUM(J58:J60)","v":0},{"$f":"SUM(K58:K60)","v":0}]
[]
[null,null,null,null,null,null,null,null,null,2020,2020]
[null,null,null," Totaal afgesproken maximumomzet plafondcontracten"]
[]
[null,null,null," CONTRACTINFORMATIE ZINTUIGLIJK GEHANDICAPTEN, code 702 "]
[null,null,null,null,null,null,null,null,null,"Lasten inclusief \nbalanspost \n2020","Lasten inclusief \nbalanspost \n2020"]
[null,null,null," Gecontracteerde zorg"]
[null,null,null," Lopende onderhandelingen"]
[null,null,null," Niet gecontracteerde zorg"]
[null,null,null," TOTAAL CODE 702",null,null,null,null,null,{"$f":"SUM(J68:J70)","v":0},{"$f":"SUM(K68:K70)","v":0}]
[]
[null,null,null," CONTRACTINFORMATIE GERIATRISCHE REVALIDATIE, EERSTELIJNSVERBLIJF EN GENEESKUNDIGE ZORG       SPECIFIEKE PATIENTGROEPEN, rubriek 11"]
[null,null,null,null,null,null,null,null,null,"Lasten inclusief \nbalanspost \n2020","Lasten inclusief \nbalanspost \n2020"]
[null,null,null," Geriatrische Revalidatie, code 670"]
[null,null,null," Gecontracteerde zorg"]
[null,null,null," Lopende onderhandelingen"]
[null,null,null," Niet gecontracteerde zorg"]
[null,null,null," Subtotaal Geriatrische Revalidatie zorg",null,null,null,null,null,{"$f":"SUM(J76:J78)","v":0},{"$f":"SUM(K76:K78)","v":0}]
[null,null,null," Eerstelijnsverblijf, code 671"]
[null,null,null," Gecontracteerde zorg"]
[null,null,null," Lopende onderhandelingen"]
[null,null,null," Niet gecontracteerde zorg"]
[null,null,null," Subtotaal Eerstelijnsverblijf ",null,null,null,null,null,{"$f":"SUM(J81:J83)","v":0},{"$f":"SUM(K81:K83)","v":0}]
[null,null,null," Geneeskundige Zorg Specifieke Patiëntgroepen, code 672"]
[null,null,null," Gecontracteerde zorg"]
[null,null,null," Lopende onderhandelingen"]
[null,null,null," Niet gecontracteerde zorg"]
[null,null,null," Subtotaal Geneeskundige Zorg Specifieke Patiëntgroepen",null,null,null,null,null,{"$f":"SUM(J86:J88)","v":0},{"$f":"SUM(K86:K88)","v":0}]
[null,null,null," TOTAAL RUBRIEK 11 ",null,null,null,null,null,{"$f":"SUM(J79+J84+J89)","v":0},{"$f":"SUM(K79+K84+K89)","v":0}]
[]
[null,null,null,{"$f":"NOW()","v":"2020-03-11T10:01:03.950"},null,null,null,null,null,null,{"$f":"CONCATENATE(\"Specifieke informatie C - Contractinformatie, \",LOWER(A49))","v":"Specifieke informatie C - Contractinformatie, pagina 2"}]

{"sheet":"Wanbetalers","index":9,"n_rows":48,"n_cols":11,"rows_kept":48,"cut":false,"hidden":false,"merged":[[26,3,26,7],[47,3,47,4],[27,3,27,7],[17,3,17,7],[19,3,19,7],[20,3,20,7],[21,3,21,7],[22,3,22,7],[24,3,24,7],[25,3,25,7],[15,3,15,7],[16,3,16,7],[10,3,10,7],[11,3,11,7],[12,3,12,7],[13,3,13,7]]}
[null,null,"INVULSPECIFICATIES SPECIFIEKE INFORMATIE C"]
[]
[]
[]
[]
["Pagina 1",null,null,{"$f":"CONCATENATE(\"KWARTAALSTAAT ZVW \", jaar_id,\" \",kwartaal_id,\"E KWARTAAL\")","v":"KWARTAALSTAAT ZVW 2020 1E KWARTAAL"}]
[null,null,null,"SPECIFIEKE INFORMATIE C - WANBETALERS"]
[null,null,null,{"$f":"IF(naw_uzovi_zorgverzekeraar<>\"0000\",CONCATENATE(UPPER(naw_naam_zorgverzekeraar),\", \",UPPER(naw_plaats_zorgverzekeraar)),\"\")","v":""},null,null,null,null,null,null,{"$f":"CONCATENATE(\"UZOVI: \",naw_uzovi_zorgverzekeraar)","v":"UZOVI: 0000"}]
[]
[null,null,null,"SPECIFICATIES VAN WANBETALERS"]
[null,null,null,null,null,null,null,null,"AANTAL \njanuari","AANTAL \nfebruari","AANTAL \nmaart"]
[null,null,null," Verzekeringnemers die een achterstand in de premiebetaling hebben van \n twee of meer, maar minder dan vier volle maandpremies."]
[null,null,null," Verzekeringnemers die een achterstand in de premiebetaling hebben van \n vier of meer, maar minder dan zes volle maandpremies."]
[null,null,null," Verzekeringnemers die een achterstand in de premiebetaling hebben van \n zes of meer volle maandpremies."]
[]
[null,null,null,null,null,null,null,null,"AANTAL \njanuari","AANTAL \nfebruari","AANTAL \nmaart"]
[null,null,null," Verstuurde tweedemaandsbrieven"]
[null,null,null," Verstuurde vierdemaandsbrieven"]
[]
[null,null,null,null,null,null,null,null,"AANTAL \njanuari","AANTAL \nfebruari","AANTAL \nmaart"]
[null,null,null," Debiteuren met een interne betalingsregeling, al dan niet uitsluitend \n voor premiebetaling."]
[null,null,null," Debiteuren met een externe betalingsregeling, al dan niet uitsluitend \n voor premiebetaling."]
[null,null,null," Actieve stabilisatieovereenkomsten voor premiebetaling."]
[]
[null,null,null,null,null,null,null,null,"AANTAL \njanuari","AANTAL \nfebruari","AANTAL \nmaart"]
[null,null,null," Wanbetalers bij CAK aangemeld met een betalingsachterstand van minder \n dan € 250."]
[null,null,null," Wanbetalers bij CAK aangemeld met een betalingsachterstand van \n meer dan € 250, maar minder dan € 750."]
[null,null,null," Wanbetalers bij CAK aangemeld met een betalingsachterstand van meer \n dan € 750."]
[]
[]
[]
[]
[]
[]
[]
[]
[]
[]
[]
[]
[]
[]
[]
[]
[]
[]
[]
[null,null,null,{"$f":"NOW()","v":"2020-03-11T10:01:03.950"},null,null,null,null,null,null,{"$f":"CONCATENATE(\"Specifieke informatie C - Wanbetalers, \",LOWER(A6))","v":"Specifieke informatie C - Wanbetalers, pagina 1"}]

{"sheet":"Controleoverzicht","index":10,"n_rows":172,"n_cols":12,"rows_kept":172,"cut":false,"hidden":false,"merged":[[15,11,16,11],[15,9,16,9],[15,10,16,10],[38,3,38,8],[41,3,41,8],[167,3,167,8],[160,3,161,8],[160,9,161,9],[160,10,161,10],[160,11,161,11],[162,3,162,8],[163,3,163,8],[164,3,164,8],[165,3,165,8],[166,3,166,8],[71,3,71,8],[81,3,81,8],[69,3,69,8],[75,3,75,8],[67,3,67,8],[45,3,45,8],[47,3,47,8],[48,3,48,8],[59,11,60,11],[9,9,10,9],[9,3,10,8],[11,3,11,8],[15,3,16,8],[12,3,12,8],[13,3,13,8],[29,3,29,8],[30,3,30,8],[28,3,28,8],[24,3,24,8],[26,3,26,8],[23,3,23,8],[25,3,25,8],[59,10,60,10],[59,9,60,9],[139,11,140,11],[139,10,140,10],[139,9,140,9],[139,3,140,8],[107,9,108,9],[141,3,141,8],[84,10,85,10],[117,3,117,8],[115,3,115,8],[84,3,85,8],[107,10,108,10],[128,3,128,8],[125,3,125,8],[124,3,124,8],[84,9,85,9],[86,3,86,8],[87,3,87,8],[88,3,88,8],[89,3,89,8],[97,3,97,8],[90,3,90,8],[91,3,91,8],[84,11,85,11],[144,3,144,8],[143,3,143,8],[142,3,142,8],[152,3,152,8],[151,3,151,8],[150,3,150,8],[149,3,149,8],[145,3,145,8],[109,3,109,8],[107,11,108,11],[111,3,111,8],[110,3,110,8],[157,3,157,11],[147,11,148,11],[147,10,148,10],[153,3,153,8],[147,9,148,9],[156,3,156,10],[147,3,148,8],[155,3,155,10],[113,11,114,11],[113,10,114,10],[113,3,114,8],[116,3,116,8],[122,10,123,10],[119,3,119,8],[122,9,123,9],[113,9,114,9],[122,3,123,8],[118,3,118,8],[129,3,129,8],[122,11,123,11],[120,3,120,8],[19,11,20,11],[19,9,20,9],[19,10,20,10],[21,3,21,8],[17,3,17,8],[19,3,20,8],[27,3,27,8],[22,3,22,8],[31,3,31,8],[33,3,33,8],[39,3,39,8],[72,3,72,8],[65,3,65,8],[36,3,36,8],[34,3,34,8],[62,3,62,8],[35,3,35,8],[32,3,32,8],[43,3,43,8],[44,3,44,8],[40,3,40,8],[42,3,42,8],[63,3,63,8],[66,3,66,8],[80,3,80,8],[37,3,37,8],[73,3,73,8],[74,3,74,8],[126,3,126,8],[127,3,127,8],[107,3,108,8],[70,3,70,8],[68,3,68,8],[64,3,64,8],[61,3,61,8],[46,3,46,8],[95,3,95,8],[92,3,92,8],[93,3,93,8],[94,3,94,8],[79,3,79,8],[76,3,76,8],[78,3,78,8],[77,3,77,8],[59,3,60,8],[96,3,96,8]]}
[null,null,"CONTROLEOVERZICHT"]
[]
[]
[]
[]
["Pagina 1",null,null,{"$f":"CONCATENATE(\"KWARTAALSTAAT ZVW \", jaar_id,\" \",kwartaal_id,\"E KWARTAAL\")","v":"KWARTAALSTAAT ZVW 2020 1E KWARTAAL"}]
[null,null,null,"CONTROLEOVERZICHT"]
[null,null,null,{"$f":"IF(naw_uzovi_zorgverzekeraar<>\"0000\",CONCATENATE(UPPER(naw_naam_zorgverzekeraar),\", \",UPPER(naw_plaats_zorgverzekeraar)),\"\")","v":""},null,null,null,null,null,null,null,{"$f":"CONCATENATE(\"UZOVI: \",naw_uzovi_zorgverzekeraar)","v":"UZOVI: 0000"}]
[null,null,null,"SPECIFIEKE INFORMATIE A"]
[null,null,null," VERZEKERDENSTANDEN",null,null,null,null,null,"APRIL"]
[]
[null,null,null," Verzekerdenstand naar risicoklasse",null,null,null,null,null,{"$f":"'Specifieke informatie A'!L79","v":0}]
[null,null,null," Verzekerdenstand naar nominale premie",null,null,null,null,null,{"$f":"'Specifieke informatie A'!L86","v":0}]
[null,null,null," Verschil",null,null,null,null,null,{"$f":"IF(J12<>J13,J12-J13,\"\")","v":""}]
[]
[null,null,null," KOSTENSPECIFICATIES",null,null,null,null,null,"VOLGENS\nKOSTENVER- \nZAMELSTAAT","VOLGENS\nDETAIL- \nSPECIFICATIE ","VERSCHIL"]
[]
[null,null,null," Totaal kosten t.l.v. deelbijdragen (totaal lasten t/m rubriek 16)\n - inclusief balanspost",null,null,null,null,null,{"$f":"Kostenverzamelstaat!I110","v":0},{"$f":"'Specifieke informatie A'!L17","v":0},{"$f":"IF(J18<>K18,J18-K18,\"\")","v":""}]
[]
[null,null,null," KOSTENVERZAMELSTAAT",null,null,null,null,null,"Kosten balanspost 2018","Kosten balanspost 2019","Kosten balanspost 2020"]
[]
[null,null,null," 503 Bijzondere betalingen",null,null,null,null,null,{"$f":"Kostenverzamelstaat!M16-Kostenverzamelstaat!N16","v":0},{"$f":"Kostenverzamelstaat!K16-Kostenverzamelstaat!L16","v":0},{"$f":"Kostenverzamelstaat!I16-Kostenverzamelstaat!J16","v":0}]
[null,null,null," 504 Avond-, nacht- en weekenddiensten",null,null,null,null,null,{"$f":"Kostenverzamelstaat!M17-Kostenverzamelstaat!N17","v":0},{"$f":"Kostenverzamelstaat!K17-Kostenverzamelstaat!L17","v":0},{"$f":"Kostenverzamelstaat!I17-Kostenverzamelstaat!J17","v":0}]
[null,null,null," 505 Inschrijftarieven",null,null,null,null,null,{"$f":"Kostenverzamelstaat!M18-Kostenverzamelstaat!N18","v":0},{"$f":"Kostenverzamelstaat!K18-Kostenverzamelstaat!L18","v":0},{"$f":"Kostenverzamelstaat!I18-Kostenverzamelstaat!J18","v":0}]
[null,null,null," 506 Consulttarieven",null,null,null,null,null,{"$f":"Kostenverzamelstaat!M19-Kostenverzamelstaat!N19","v":0},{"$f":"Kostenverzamelstaat!K19-Kostenverzamelstaat!L19","v":0},{"$f":"Kostenverzamelstaat!I19-Kostenverzamelstaat!J19","v":0}]
[null,null,null," 507 Overige tarieven",null,null,null,null,null,{"$f":"Kostenverzamelstaat!M20-Kostenverzamelstaat!N20","v":0},{"$f":"Kostenverzamelstaat!K20-Kostenverzamelstaat!L20","v":0},{"$f":"Kostenverzamelstaat!I20-Kostenverzamelstaat!J20","v":0}]
[null,null,null," 510 Multidisciplinaire zorg",null,null,null,null,null,{"$f":"Kostenverzamelstaat!M21-Kostenverzamelstaat!N21","v":0},{"$f":"Kostenverzamelstaat!K21-Kostenverzamelstaat!L21","v":0},{"$f":"Kostenverzamelstaat!I21-Kostenverzamelstaat!J21","v":0}]
[null,null,null," 515 Resultaatbeloning en zorgvernieuwing huisartsen",null,null,null,null,null,{"$f":"Kostenverzamelstaat!M22-Kostenverzamelstaat!N22","v":0},{"$f":"Kostenverzamelstaat!K22-Kostenverzamelstaat!L22","v":0},{"$f":"Kostenverzamelstaat!I22-Kostenverzamelstaat!J22","v":0}]
[null,null,null," 516 Resultaatbeloning en zorgvernieuwing MDZ",null,null,null,null,null,{"$f":"Kostenverzamelstaat!M23-Kostenverzamelstaat!N23","v":0},{"$f":"Kostenverzamelstaat!K23-Kostenverzamelstaat!L23","v":0},{"$f":"Kostenverzamelstaat!I23-Kostenverzamelstaat!J23","v":0}]
[null,null,null," 520 Farmaceutische zorg",null,null,null,null,null,{"$f":"Kostenverzamelstaat!M26-Kostenverzamelstaat!N26","v":0},{"$f":"Kostenverzamelstaat!K26-Kostenverzamelstaat!L26","v":0},{"$f":"Kostenverzamelstaat!I26-Kostenverzamelstaat!J26","v":0}]
[null,null,null," 530 Kosten van verpleging en verzorging",null,null,null,null,null,{"$f":"Kostenverzamelstaat!M28-Kostenverzamelstaat!N28","v":0},{"$f":"Kostenverzamelstaat!K28-Kostenverzamelstaat!L28","v":0},{"$f":"Kostenverzamelstaat!I28-Kostenverzamelstaat!J28","v":0}]
[null,null,null," 545 Kosten specialisten mondziekten en kaakchirurgie",null,null,null,null,null,{"$f":"Kostenverzamelstaat!M51-Kostenverzamelstaat!N51","v":0},{"$f":"Kostenverzamelstaat!K51-Kostenverzamelstaat!L51","v":0},{"$f":"Kostenverzamelstaat!I51-Kostenverzamelstaat!J51","v":0}]
[null,null,null," 560.1 Kosten mondzorg volwassen verzekerden",null,null,null,null,null,{"$f":"Kostenverzamelstaat!M30-Kostenverzamelstaat!N30","v":0},{"$f":"Kostenverzamelstaat!K30-Kostenverzamelstaat!L30","v":0},{"$f":"Kostenverzamelstaat!I30-Kostenverzamelstaat!J30","v":0}]
[null,null,null," 560.2 Kosten mondzorg jeugdige verzekerden",null,null,null,null,null,{"$f":"Kostenverzamelstaat!M31-Kostenverzamelstaat!N31","v":0},{"$f":"Kostenverzamelstaat!K31-Kostenverzamelstaat!L31","v":0},{"$f":"Kostenverzamelstaat!I31-Kostenverzamelstaat!J31","v":0}]
[null,null,null," 561 Kosten gebitsprothesen",null,null,null,null,null,{"$f":"Kostenverzamelstaat!M32-Kostenverzamelstaat!N32","v":0},{"$f":"Kostenverzamelstaat!K32-Kostenverzamelstaat!L32","v":0},{"$f":"Kostenverzamelstaat!I32-Kostenverzamelstaat!J32","v":0}]
[null,null,null," 580 Kosten verloskundige zorg door verloskundigen",null,null,null,null,null,{"$f":"Kostenverzamelstaat!M35-Kostenverzamelstaat!N35","v":0},{"$f":"Kostenverzamelstaat!K35-Kostenverzamelstaat!L35","v":0},{"$f":"Kostenverzamelstaat!I35-Kostenverzamelstaat!J35","v":0}]
[null,null,null," 581 Kosten verloskundige zorg door huisartsen",null,null,null,null,null,{"$f":"Kostenverzamelstaat!M36-Kostenverzamelstaat!N36","v":0},{"$f":"Kostenverzamelstaat!K36-Kostenverzamelstaat!L36","v":0},{"$f":"Kostenverzamelstaat!I36-Kostenverzamelstaat!J36","v":0}]
[null,null,null," 582 Kosten Integrale geboortezorg ",null,null,null,null,null,{"$f":"Kostenverzamelstaat!M37-Kostenverzamelstaat!N37","v":0},{"$f":"Kostenverzamelstaat!K37-Kostenverzamelstaat!L37","v":0},{"$f":"Kostenverzamelstaat!I37-Kostenverzamelstaat!J37","v":0}]
[null,null,null," 610 Overige kosten ziekenhuiszorg en curatieve zorg",null,null,null,null,null,{"$f":"Kostenverzamelstaat!M52-Kostenverzamelstaat!N52","v":0},{"$f":"Kostenverzamelstaat!K52-Kostenverzamelstaat!L52","v":0},{"$f":"Kostenverzamelstaat!I52-Kostenverzamelstaat!J52","v":0}]
[null,null,null," 611 Overige zorgproducten",null,null,null,null,null,{"$f":"Kostenverzamelstaat!M53-Kostenverzamelstaat!N53","v":0},{"$f":"Kostenverzamelstaat!K53-Kostenverzamelstaat!L53","v":0},{"$f":"Kostenverzamelstaat!I53-Kostenverzamelstaat!J53","v":0}]
[null,null,null," 612 Kosten add-ons ",null,null,null,null,null,{"$f":"Kostenverzamelstaat!M54-Kostenverzamelstaat!N54","v":0},{"$f":"Kostenverzamelstaat!K54-Kostenverzamelstaat!L54","v":0},{"$f":"Kostenverzamelstaat!I54-Kostenverzamelstaat!J54","v":0}]
[null,null,null," 612.1 Kosten add-ons - Dure geneesmiddelen",null,null,null,null,null,{"$f":"Kostenverzamelstaat!M55-Kostenverzamelstaat!N55","v":0},{"$f":"Kostenverzamelstaat!K55-Kostenverzamelstaat!L55","v":0},{"$f":"Kostenverzamelstaat!I55-Kostenverzamelstaat!J55","v":0}]
[null,null,null," 612.2 Kosten add-ons - IC",null,null,null,null,null,{"$f":"Kostenverzamelstaat!M56-Kostenverzamelstaat!N56","v":0},{"$f":"Kostenverzamelstaat!K56-Kostenverzamelstaat!L56","v":0},{"$f":"Kostenverzamelstaat!I56-Kostenverzamelstaat!J56","v":0}]
[null,null,null," 613.1 Integrale kosten van DBC-zorgproduct gereguleerde segment ",null,null,null,null,null,{"$f":"Kostenverzamelstaat!M57-Kostenverzamelstaat!N57","v":0},{"$f":"Kostenverzamelstaat!K57-Kostenverzamelstaat!L57","v":0},{"$f":"Kostenverzamelstaat!I57-Kostenverzamelstaat!J57","v":0}]
[null,null,null," 615.1 Integrale kosten van DBC-zorgproduct vrije segment",null,null,null,null,null,{"$f":"Kostenverzamelstaat!M58-Kostenverzamelstaat!N58","v":0},{"$f":"Kostenverzamelstaat!K58-Kostenverzamelstaat!L58","v":0},{"$f":"Kostenverzamelstaat!I58-Kostenverzamelstaat!J58","v":0}]
[null,null,null," 619 Integrale kosten extramuraal werkende specialisten",null,null,null,null,null,{"$f":"Kostenverzamelstaat!M59-Kostenverzamelstaat!N59","v":0},{"$f":"Kostenverzamelstaat!K59-Kostenverzamelstaat!L59","v":0},{"$f":"Kostenverzamelstaat!I59-Kostenverzamelstaat!J59","v":0}]
[null,null,null," 620 Kosten fysiotherapie",null,null,null,null,null,{"$f":"Kostenverzamelstaat!M62-Kostenverzamelstaat!N62","v":0},{"$f":"Kostenverzamelstaat!K62-Kostenverzamelstaat!L62","v":0},{"$f":"Kostenverzamelstaat!I62-Kostenverzamelstaat!J62","v":0}]
[null,null,null," 621 Kosten oefentherapie Mensendieck/Cesar",null,null,null,null,null,{"$f":"Kostenverzamelstaat!M63-Kostenverzamelstaat!N63","v":0},{"$f":"Kostenverzamelstaat!K63-Kostenverzamelstaat!L63","v":0},{"$f":"Kostenverzamelstaat!I63-Kostenverzamelstaat!J63","v":0}]
[null,null,null," 623 Kosten logopedie",null,null,null,null,null,{"$f":"Kostenverzamelstaat!M64-Kostenverzamelstaat!N64","v":0},{"$f":"Kostenverzamelstaat!K64-Kostenverzamelstaat!L64","v":0},{"$f":"Kostenverzamelstaat!I64-Kostenverzamelstaat!J64","v":0}]
[]
[]
[]
[]
[null,null,null,{"$f":"NOW()","v":"2020-03-11T10:01:03.950"},null,null,null,null,null,null,null,{"$f":"CONCATENATE(\"Controleoverzicht \",LOWER(A6))","v":"Controleoverzicht pagina 1"}]
[]
["Pagina 2",null,null,{"$f":"CONCATENATE(\"KWARTAALSTAAT ZVW \", jaar_id,\" \",kwartaal_id,\"E KWARTAAL\")","v":"KWARTAALSTAAT ZVW 2020 1E KWARTAAL"}]
[null,null,null,"CONTROLEOVERZICHT"]
[null,null,null,{"$f":"IF(naw_uzovi_zorgverzekeraar<>\"0000\",CONCATENATE(UPPER(naw_naam_zorgverzekeraar),\", \",UPPER(naw_plaats_zorgverzekeraar)),\"\")","v":""},null,null,null,null,null,null,null,{"$f":"CONCATENATE(\"UZOVI: \",naw_uzovi_zorgverzekeraar)","v":"UZOVI: 0000"}]
[null,null,null,"SPECIFIEKE INFORMATIE A - vervolg"]
[null,null,null," KOSTENVERZAMELSTAAT",null,null,null,null,null,"Kosten balanspost 2018","Kosten balanspost 2019","Kosten balanspost 2020"]
[]
[null,null,null," 624 Kosten ergotherapie",null,null,null,null,null,{"$f":"Kostenverzamelstaat!M65-Kostenverzamelstaat!N65","v":0},{"$f":"Kostenverzamelstaat!K65-Kostenverzamelstaat!L65","v":0},{"$f":"Kostenverzamelstaat!I65-Kostenverzamelstaat!J65","v":0}]
[null,null,null," 625 Kosten dieetadvisering ",null,null,null,null,null,{"$f":"Kostenverzamelstaat!M66-Kostenverzamelstaat!N66","v":0},{"$f":"Kostenverzamelstaat!K66-Kostenverzamelstaat!L66","v":0},{"$f":"Kostenverzamelstaat!I66-Kostenverzamelstaat!J66","v":0}]
[null,null,null," 626 Gecombineerde Leefstijl Interventie (GLI)",null,null,null,null,null,{"$f":"Kostenverzamelstaat!M67-Kostenverzamelstaat!N67","v":0},{"$f":"Kostenverzamelstaat!K67-Kostenverzamelstaat!L67","v":0},{"$f":"Kostenverzamelstaat!I67-Kostenverzamelstaat!J67","v":0}]
[null,null,null," 640 Hulpmiddelenzorg",null,null,null,null,null,{"$f":"Kostenverzamelstaat!M70-Kostenverzamelstaat!N70","v":0},{"$f":"Kostenverzamelstaat!K70-Kostenverzamelstaat!L70","v":0},{"$f":"Kostenverzamelstaat!I70-Kostenverzamelstaat!J70","v":0}]
[null,null,null," 650 Kosten vervoer per ambulance/helikopter",null,null,null,null,null,{"$f":"Kostenverzamelstaat!M72-Kostenverzamelstaat!N72","v":0},{"$f":"Kostenverzamelstaat!K72-Kostenverzamelstaat!L72","v":0},{"$f":"Kostenverzamelstaat!I72-Kostenverzamelstaat!J72","v":0}]
[null,null,null," 650.1 Opbrengstenverrekeningen regionale ambulance-\n voorzieningen",null,null,null,null,null,{"$f":"Kostenverzamelstaat!M73-Kostenverzamelstaat!N73","v":0},{"$f":"Kostenverzamelstaat!K73-Kostenverzamelstaat!L73","v":0},{"$f":"Kostenverzamelstaat!I73-Kostenverzamelstaat!J73","v":0}]
[null,null,null," 651 Kosten vervoer per openbaar vervoer, taxi en eigen auto",null,null,null,null,null,{"$f":"Kostenverzamelstaat!M74-Kostenverzamelstaat!N74","v":0},{"$f":"Kostenverzamelstaat!K74-Kostenverzamelstaat!L74","v":0},{"$f":"Kostenverzamelstaat!I74-Kostenverzamelstaat!J74","v":0}]
[null,null,null," 661 Kosten specialistische GGZ met verblijf",null,null,null,null,null,{"$f":"Kostenverzamelstaat!M87-Kostenverzamelstaat!N87","v":0},{"$f":"Kostenverzamelstaat!K87-Kostenverzamelstaat!L87","v":0},{"$f":"Kostenverzamelstaat!I87-Kostenverzamelstaat!J87","v":0}]
[null,null,null," 661.1 Kosten LGGZ (langdurige GGZ, jaar 2 en 3)",null,null,null,null,null,{"$f":"Kostenverzamelstaat!M88-Kostenverzamelstaat!N88","v":0},{"$f":"Kostenverzamelstaat!K88-Kostenverzamelstaat!L88","v":0},{"$f":"Kostenverzamelstaat!I88-Kostenverzamelstaat!J88","v":0}]
[null,null,null," 662 Kosten specialistische GGZ zonder verblijf",null,null,null,null,null,{"$f":"Kostenverzamelstaat!M89-Kostenverzamelstaat!N89","v":0},{"$f":"Kostenverzamelstaat!K89-Kostenverzamelstaat!L89","v":0},{"$f":"Kostenverzamelstaat!I89-Kostenverzamelstaat!J89","v":0}]
[null,null,null," 665 Generalistische basis GGZ",null,null,null,null,null,{"$f":"Kostenverzamelstaat!M90-Kostenverzamelstaat!N90","v":0},{"$f":"Kostenverzamelstaat!K90-Kostenverzamelstaat!L90","v":0},{"$f":"Kostenverzamelstaat!I90-Kostenverzamelstaat!J90","v":0}]
[null,null,null," 670 Geriatrische revalidatiezorg",null,null,null,null,null,{"$f":"Kostenverzamelstaat!M93-Kostenverzamelstaat!N93","v":0},{"$f":"Kostenverzamelstaat!K93-Kostenverzamelstaat!L93","v":0},{"$f":"Kostenverzamelstaat!I93-Kostenverzamelstaat!J93","v":0}]
[null,null,null," 671 Eerstelijnsverblijf (ELV)",null,null,null,null,null,{"$f":"Kostenverzamelstaat!M94-Kostenverzamelstaat!N94","v":0},{"$f":"Kostenverzamelstaat!K94-Kostenverzamelstaat!L94","v":0},{"$f":"Kostenverzamelstaat!I94-Kostenverzamelstaat!J94","v":0}]
[null,null,null," 672 Geneeskundige  Zorg Specifieke Patiëntgroepen (GZSP)",null,null,null,null,null,{"$f":"Kostenverzamelstaat!M95-Kostenverzamelstaat!N95","v":0},{"$f":"Kostenverzamelstaat!K95-Kostenverzamelstaat!L95","v":0},{"$f":"Kostenverzamelstaat!I95-Kostenverzamelstaat!J95","v":0}]
[null,null,null," 680 Kraamzorg",null,null,null,null,null,{"$f":"Kostenverzamelstaat!M98-Kostenverzamelstaat!N98","v":0},{"$f":"Kostenverzamelstaat!K98-Kostenverzamelstaat!L98","v":0},{"$f":"Kostenverzamelstaat!I98-Kostenverzamelstaat!J98","v":0}]
[null,null,null," 700 Overige kosten",null,null,null,null,null,{"$f":"Kostenverzamelstaat!M100-Kostenverzamelstaat!N100","v":0},{"$f":"Kostenverzamelstaat!K100-Kostenverzamelstaat!L100","v":0},{"$f":"Kostenverzamelstaat!I100-Kostenverzamelstaat!J100","v":0}]
[null,null,null," 701 Overige geneeskundige zorg",null,null,null,null,null,{"$f":"Kostenverzamelstaat!M101-Kostenverzamelstaat!N101","v":0},{"$f":"Kostenverzamelstaat!K101-Kostenverzamelstaat!L101","v":0},{"$f":"Kostenverzamelstaat!I101-Kostenverzamelstaat!J101","v":0}]
[null,null,null," 702 Kosten van zorg zintuiglijk gehandicapten ",null,null,null,null,null,{"$f":"Kostenverzamelstaat!M102-Kostenverzamelstaat!N102","v":0},{"$f":"Kostenverzamelstaat!K102-Kostenverzamelstaat!L102","v":0},{"$f":"Kostenverzamelstaat!I102-Kostenverzamelstaat!J102","v":0}]
[null,null,null," 720 Kosten via verzekeraar",null,null,null,null,null,{"$f":"Kostenverzamelstaat!M105-Kostenverzamelstaat!N105","v":0},{"$f":"Kostenverzamelstaat!K105-Kostenverzamelstaat!L105","v":0},{"$f":"Kostenverzamelstaat!I105-Kostenverzamelstaat!J105","v":0}]
[null,null,null," 721 Kosten via verbindingsorgaan",null,null,null,null,null,{"$f":"Kostenverzamelstaat!M106-Kostenverzamelstaat!N106","v":0},{"$f":"Kostenverzamelstaat!K106-Kostenverzamelstaat!L106","v":0},{"$f":"Kostenverzamelstaat!I106-Kostenverzamelstaat!J106","v":0}]
[null,null,null," 730 Kwaliteitsgelden",null,null,null,null,null,{"$f":"Kostenverzamelstaat!M109-Kostenverzamelstaat!N109","v":0},{"$f":"Kostenverzamelstaat!K109-Kostenverzamelstaat!L109","v":0},{"$f":"Kostenverzamelstaat!I109-Kostenverzamelstaat!J109","v":0}]
[]
[null,null,null,"VERGELIJKING SPECIFIEKE INFORMATIE A EN C"]
[null,null,null,"KOSTEN PER CODENUMMER\n(ONTVANGEN EN GEACCEPTEERDE DECLARATIES \nT/M 1E KWARTAAL 2020)",null,null,null,null,null,"Spec. inform. A\nkostenver-\nzamelstaat","Spec. inform. C\ndetail-\ninformatie","VERSCHIL"]
[]
[null,null,null," 503 Bijzondere betalingen"]
[null,null,null," 506 Consulttarieven"]
[null,null,null," 507 Overige tarieven"]
[null,null,null," 510 Multidisciplinaire zorg"]
[null,null,null," 515 Resultaatbeloning en zorgvernieuwing huisartsen"]
[null,null,null," 516 Resultaatbeloning en zorgvernieuwing MDZ"]
[null,null,null," 610 Overige kosten ziekenhuiszorg en curatieve zorg"]
[null,null,null," 611 Overige zorgproducten (naar instelling)"]
[null,null,null," 612.1 Kosten add-ons - Dure geneesmiddelen"]
[null,null,null," 612.2  Kosten add-ons - IC"]
[null,null,null," 613.1 Integrale kosten DBC-zorgproduct gereguleerd segment"]
[null,null,null," 615.1 Integrale kosten DBC-zorgproduct vrije segment"]
[]
[]
[null,null,null,{"$f":"NOW()","v":"2020-03-11T10:01:03.950"},null,null,null,null,null,null,null,{"$f":"CONCATENATE(\"Controleoverzicht \",LOWER(A56))","v":"Controleoverzicht pagina 2"}]
[]
["Pagina 3",null,null,{"$f":"CONCATENATE(\"KWARTAALSTAAT ZVW \", jaar_id,\" \",kwartaal_id,\"E KWARTAAL\")","v":"KWARTAALSTAAT ZVW 2020 1E KWARTAAL"}]
[null,null,null,"CONTROLEOVERZICHT"]
[null,null,null,{"$f":"IF(naw_uzovi_zorgverzekeraar<>\"0000\",CONCATENATE(UPPER(naw_naam_zorgverzekeraar),\", \",UPPER(naw_plaats_zorgverzekeraar)),\"\")","v":""},null,null,null,null,null,null,null,{"$f":"CONCATENATE(\"UZOVI: \",naw_uzovi_zorgverzekeraar)","v":"UZOVI: 0000"}]
[]
[null,null,null,"VERGELIJKING SPECIFIEKE INFORMATIE A EN C - vervolg"]
[null,null,null,"KOSTEN PER CODENUMMER \n(ONTVANGEN EN GEACCEPTEERDE DECLARATIES \n T/M 1E KWARTAAL 2020)",null,null,null,null,null,"Spec. inform. A\nkostenver-\nzamelstaat","Spec. inform. C\ndetail-\ninformatie","VERSCHIL"]
[]
[null,null,null," 700 Overige kosten"]
[null,null,null," 701 Overige geneeskundige zorg"]
[null,null,null," 702 Kosten van zorg zintuiglijk gehandicapten "]
[]
[null,null,null," KOSTEN PER CODENUMMER (KOSTEN INCLUSIEF BALANSPOST) 2020",null,null,null,null,null,"Spec. inform. A\nkostenver-\nzamelstaat","Spec. inform. C\ndetail-\ninformatie","VERSCHIL"]
[]
[null,null,null," 610 Overige kosten ziekenhuiszorg en curatieve zorg"]
[null,null,null," 611 Overige zorgproducten (naar instelling)"]
[null,null,null," 612.1 Kosten add-ons - Dure geneesmiddelen"]
[null,null,null," 612.2  Kosten add-ons - IC"]
[null,null,null," 613.1 Integrale kosten DBC-zorgproduct gereguleerd segment"]
[null,null,null," 615.1 Integrale kosten DBC-zorgproduct vrije segment"]
[]
[null,null,null," KOSTEN PER CODENUMMER (KOSTEN INCLUSIEF BALANSPOST) 2019",null,null,null,null,null,"Spec. inform. A\nkostenver-\nzamelstaat","Spec. inform. C\ndetail-\ninformatie","VERSCHIL"]
[]
[null,null,null," 610 Overige kosten ziekenhuiszorg en curatieve zorg"]
[null,null,null," 611 Overige zorgproducten (naar instelling)"]
[null,null,null," 612.1 Kosten add-ons - Dure geneesmiddelen"]
[null,null,null," 612.2  Kosten add-ons - IC"]
[null,null,null," 613.1 Integrale kosten DBC-zorgproduct gereguleerd segment"]
[null,null,null," 615.1 Integrale kosten DBC-zorgproduct vrije segment"]
[]
[null,null,null,{"$f":"NOW()","v":"2020-03-11T10:01:03.950"},null,null,null,null,null,null,null,{"$f":"CONCATENATE(\"Controleoverzicht \",LOWER(A103))","v":"Controleoverzicht pagina 3"}]
[]
["Pagina 4",null,null,{"$f":"CONCATENATE(\"KWARTAALSTAAT ZVW \", jaar_id,\" \",kwartaal_id,\"E KWARTAAL\")","v":"KWARTAALSTAAT ZVW 2020 1E KWARTAAL"}]
[null,null,null,"CONTROLEOVERZICHT"]
[null,null,null,{"$f":"IF(naw_uzovi_zorgverzekeraar<>\"0000\",CONCATENATE(UPPER(naw_naam_zorgverzekeraar),\", \",UPPER(naw_plaats_zorgverzekeraar)),\"\")","v":""},null,null,null,null,null,null,null,{"$f":"CONCATENATE(\"UZOVI: \",naw_uzovi_zorgverzekeraar)","v":"UZOVI: 0000"}]
[]
[]
[null,null,null,"VERGELIJKING SPECIFIEKE INFORMATIE A EN C - vervolg"]
[null,null,null," KOSTEN PER CODENUMMER \n (KOSTEN INCLUSIEF BALANSPOST) 2018 EN OUDER",null,null,null,null,null,"Spec. inform. A\nkostenver-\nzamelstaat","Spec. inform. C\ndetail-\ninformatie","VERSCHIL"]
[]
[null,null,null," 610 Overige kosten ziekenhuiszorg en curatieve zorg"]
[null,null,null," 611 Overige zorgproducten (naar instelling)"]
[null,null,null," 612 Kosten add-on's "]
[null,null,null," 613.1 Integrale kosten DBC-zorgproduct gereguleerd segment"]
[null,null,null," 615.1 Integrale kosten DBC-zorgproduct vrije segment"]
[]
[null,null,null,"KOSTEN PER CODENUMMER \n(ONTVANGEN EN GEACCEPTEERDE DECLARATIES \n M.B.T. 2018 EN OUDER)",null,null,null,null,null,"Spec. inform. A\nkostenver-\nzamelstaat","Spec. inform. C\ndetail-\ninformatie","VERSCHIL"]
[]
[null,null,null," 610 Overige kosten ziekenhuiszorg en curatieve zorg"]
[null,null,null," 611 Overige zorgproducten (naar instelling)"]
[null,null,null," 612 Kosten add-on's "]
[null,null,null," 613.1 Integrale kosten DBC-zorgproduct gereguleerd segment"]
[null,null,null," 615.1 Integrale kosten DBC-zorgproduct vrije segment"]
[]
[null,null,null," Controle code 505 kostenverzamelstaat"]
[null,null,null," Kosten per verzekerde o.b.v. laatst bekende verzekerdenstand (in hele euro's)"]
[null,null,null,{"$f":"IF(OR(L157>kwartaal_id*112),\"Attentiebericht: Kosten per verzekerde liggen buiten het verwachte bereik. Controleer de kostenverzamelstaat!\",\"\")","v":""}]
[]
[null,null,null,"VERGELIJKING SPECIFIEKE INFORMATIE A EN C (Contractinformatie)"]
[null,null,null," KOSTEN PER RUBRIEK OF CODENUMMER \n (KOSTEN INCLUSIEF BALANSPOST) 2018",null,null,null,null,null,"Spec. inform. A\nkostenver-\nzamelstaat","Spec. inform. C\ncontract-\ninformatie","VERSCHIL"]
[]
[null,null,null," Huisartsenzorg en Multidisciplinaire zorg, rubriek 01"]
[null,null,null," Verpleging en Verzorging, rubriek 03"]
[null,null,null," Medisch Specialistische zorg, rubriek 06"]
[null,null,null," Geneeskundige Geestelijke Gezondheidszorg, rubriek 10"]
[null,null,null," Geriatrische Revalidatiezorg & Eerstelijnsverblijf, rubriek 11"]
[null,null,null," Zintuiglijk Gehandicapten, code 702"]
[]
[]
[]
[null,null,null,{"$f":"NOW()","v":"2020-03-11T10:01:03.950"},null,null,null,null,null,null,null,{"$f":"CONCATENATE(\"Controleoverzicht \",LOWER(A134))","v":"Controleoverzicht pagina 4"}]

{"sheet":"Blad1","index":11,"n_rows":430,"n_cols":17,"rows_kept":430,"cut":false,"hidden":true,"merged":[]}
[]
[]
[]
[]
[]
[]
[]
[]
[]
[]
[]
[null,null,null,null,"vcd_spec_idvar","vcd_waarde_flt","vcd_waarde_txt","vcd_toelichting_txt","vcd_spec1_idvar","vcd_spec2_idvar","vcd_spec3_idvar","vcd_attrib_idvar","vcd_eenheid_txt","vcd_dsnorder_flt","vcd_datatype_txt","vcd_format_txt","vcd_eenheid_flt"]
[null,null,null,null,"xstaat_kdrwet_id_","*=0","ZVQ1","Excel numeriek om te zetten sleutel kdrwet via waarden","xstaat","kdrwet","id","","",null,"C",""]
[null,null,null,null,"xstaat_kdrwet_idjmd_","*=0","20200331","Excel numeriek om te zetten sleutel kdrwet periode","xstaat","kdrwet","idjmd","","",null,"C",""]
[null,null,null,null,"xstaat_uzovi_filename_","*=0","*=CEL(\"bestandsnaam\")","Excel numeriek filenaam bevat ook sleutels","xstaat","uzovi","filename","","",null,"C",""]
[null,null,null,null,"xstaat_uzovi_id_","*=0","*=NUMERIEKE.WAARDE(NAW_gegevens!$C$6)","Excel numeriek om te zetten sleutel uzovi","xstaat","uzovi","id","","",null,"C",""]
[null,null,null,null,"xstaat_uzovi_idvrs_","*=0","01","Excel numeriek om te zetten sleutel uzovi versie levering","xstaat","uzovi","idvrs","","",null,"C",""]
[null,null,null,null,"zvkx01_a503__TY0V01","*=Kostenverzamelstaat!$J$16","","Huisartsen- bijz betalingen- geaccepteerd","zvkx01","a503","","TY0V01","Euro's",null,"N","",1]
[null,null,null,null,"zvkx01_a503__TY1V01","*=Kostenverzamelstaat!$L$16","","Huisartsen- bijz betalingen- geaccepteerd","zvkx01","a503","","TY1V01","Euro's",null,"N","",1]
[null,null,null,null,"zvkx01_a503__TY2V01","*=Kostenverzamelstaat!$N$16","","Huisartsen- bijz betalingen- geaccepteerd","zvkx01","a503","","TY2V01","Euro's",null,"N","",1]
[null,null,null,null,"zvkx01_a504__TY0V01","*=Kostenverzamelstaat!$J$17","","Huisartsen- bijz diensttijden- geaccepteerd","zvkx01","a504","","TY0V01","Euro's",null,"N","",1]
[null,null,null,null,"zvkx01_a504__TY1V01","*=Kostenverzamelstaat!$L$17","","Huisartsen- bijz diensttijden- geaccepteerd","zvkx01","a504","","TY1V01","Euro's",null,"N","",1]
[null,null,null,null,"zvkx01_a504__TY2V01","*=Kostenverzamelstaat!$N$17","","Huisartsen- bijz diensttijden- geaccepteerd","zvkx01","a504","","TY2V01","Euro's",null,"N","",1]
[null,null,null,null,"zvkx01_a505__TY0V01","*=Kostenverzamelstaat!$J$18","","Huisartsen- Inschrijvingen- geaccepteerd","zvkx01","a505","","TY0V01","Euro's",null,"N","",1]
[null,null,null,null,"zvkx01_a505__TY1V01","*=Kostenverzamelstaat!$L$18","","Huisartsen- Inschrijvingen- geaccepteerd","zvkx01","a505","","TY1V01","Euro's",null,"N","",1]
[null,null,null,null,"zvkx01_a505__TY2V01","*=Kostenverzamelstaat!$N$18","","Huisartsen- Inschrijvingen- geaccepteerd","zvkx01","a505","","TY2V01","Euro's",null,"N","",1]
[null,null,null,null,"zvkx01_a506__TY0V01","*=Kostenverzamelstaat!$J$19","","Huisartsen- Consult- geaccepteerd","zvkx01","a506","","TY0V01","Euro's",null,"N","",1]
[null,null,null,null,"zvkx01_a506__TY1V01","*=Kostenverzamelstaat!$L$19","","Huisartsen- Consult- geaccepteerd","zvkx01","a506","","TY1V01","Euro's",null,"N","",1]
[null,null,null,null,"zvkx01_a506__TY2V01","*=Kostenverzamelstaat!$N$19","","Huisartsen- Consult- geaccepteerd","zvkx01","a506","","TY2V01","Euro's",null,"N","",1]
[null,null,null,null,"zvkx01_a507__TY0V01","*=Kostenverzamelstaat!$J$20","","Huisartsen- Overige- geaccepteerd","zvkx01","a507","","TY0V01","Euro's",null,"N","",1]
[null,null,null,null,"zvkx01_a507__TY1V01","*=Kostenverzamelstaat!$L$20","","Huisartsen- Overige- geaccepteerd","zvkx01","a507","","TY1V01","Euro's",null,"N","",1]
[null,null,null,null,"zvkx01_a507__TY2V01","*=Kostenverzamelstaat!$N$20","","Huisartsen- Overige- geaccepteerd","zvkx01","a507","","TY2V01","Euro's",null,"N","",1]
[null,null,null,null,"zvkx01_a510__TY0V01","*=Kostenverzamelstaat!$J$21","","Huisartsen- MDZ- geaccepteerd","zvkx01","a510","","TY0V01","Euro's",null,"N","",1]
[null,null,null,null,"zvkx01_a510__TY1V01","*=Kostenverzamelstaat!$L$21","","Huisartsen- MDZ- geaccepteerd","zvkx01","a510","","TY1V01","Euro's",null,"N","",1]
[null,null,null,null,"zvkx01_a510__TY2V01","*=Kostenverzamelstaat!$N$21","","Huisartsen- MDZ- geaccepteerd","zvkx01","a510","","TY2V01","Euro's",null,"N","",1]
[null,null,null,null,"zvkx01_a515__TY0V01","*=Kostenverzamelstaat!$J$22","","Huisartsen- Resultaatbel. huisartsen- geaccepteerd","zvkx01","a515","","TY0V01","Euro's",null,"N","",1]
[null,null,null,null,"zvkx01_a515__TY1V01","*=Kostenverzamelstaat!$L$22","","Huisartsen- Resultaatbel. huisartsen- geaccepteerd","zvkx01","a515","","TY1V01","Euro's",null,"N","",1]
[null,null,null,null,"zvkx01_a515__TY2V01","*=Kostenverzamelstaat!$N$22","","Huisartsen- Resultaatbel. huisartsen- geaccepteerd","zvkx01","a515","","TY2V01","Euro's",null,"N","",1]
[null,null,null,null,"zvkx01_a516__TY0V01","*=Kostenverzamelstaat!$J$23","","Huisartsen- Resultaatbel. MDZ- geaccepteerd","zvkx01","a516","","TY0V01","Euro's",null,"N","",1]
[null,null,null,null,"zvkx01_a516__TY1V01","*=Kostenverzamelstaat!$L$23","","Huisartsen- Resultaatbel. MDZ- geaccepteerd","zvkx01","a516","","TY1V01","Euro's",null,"N","",1]
[null,null,null,null,"zvkx01_a516__TY2V01","*=Kostenverzamelstaat!$N$23","","Huisartsen- Resultaatbel. MDZ- geaccepteerd","zvkx01","a516","","TY2V01","Euro's",null,"N","",1]
[null,null,null,null,"zvkx01_c503__TY0V01","*=Kostenverzamelstaat!$I$16","","Huisartsen- bijz betalingen- incl balans","zvkx01","c503","","TY0V01","Euro's",null,"N","",1]
[null,null,null,null,"zvkx01_c503__TY1V01","*=Kostenverzamelstaat!$K$16","","Huisartsen- bijz betalingen- incl balans","zvkx01","c503","","TY1V01","Euro's",null,"N","",1]
[null,null,null,null,"zvkx01_c503__TY2V01","*=Kostenverzamelstaat!$M$16","","Huisartsen- bijz betalingen- incl balans","zvkx01","c503","","TY2V01","Euro's",null,"N","",1]
[null,null,null,null,"zvkx01_c504__TY0V01","*=Kostenverzamelstaat!$I$17","","Huisartsen- bijz diensttijden- incl balans","zvkx01","c504","","TY0V01","Euro's",null,"N","",1]
[null,null,null,null,"zvkx01_c504__TY1V01","*=Kostenverzamelstaat!$K$17","","Huisartsen- bijz diensttijden- incl balans","zvkx01","c504","","TY1V01","Euro's",null,"N","",1]
[null,null,null,null,"zvkx01_c504__TY2V01","*=Kostenverzamelstaat!$M$17","","Huisartsen- bijz diensttijden- incl balans","zvkx01","c504","","TY2V01","Euro's",null,"N","",1]
[null,null,null,null,"zvkx01_c505__TY0V01","*=Kostenverzamelstaat!$I$18","","Huisartsen- Inschrijvingen- incl balans","zvkx01","c505","","TY0V01","Euro's",null,"N","",1]
[null,null,null,null,"zvkx01_c505__TY1V01","*=Kostenverzamelstaat!$K$18","","Huisartsen- Inschrijvingen- incl balans","zvkx01","c505","","TY1V01","Euro's",null,"N","",1]
[null,null,null,null,"zvkx01_c505__TY2V01","*=Kostenverzamelstaat!$M$18","","Huisartsen- Inschrijvingen- incl balans","zvkx01","c505","","TY2V01","Euro's",null,"N","",1]
[null,null,null,null,"zvkx01_c506__TY0V01","*=Kostenverzamelstaat!$I$19","","Huisartsen- Consult- incl balans","zvkx01","c506","","TY0V01","Euro's",null,"N","",1]
[null,null,null,null,"zvkx01_c506__TY1V01","*=Kostenverzamelstaat!$K$19","","Huisartsen- Consult- incl balans","zvkx01","c506","","TY1V01","Euro's",null,"N","",1]
[null,null,null,null,"zvkx01_c506__TY2V01","*=Kostenverzamelstaat!$M$19","","Huisartsen- Consult- incl balans","zvkx01","c506","","TY2V01","Euro's",null,"N","",1]
[null,null,null,null,"zvkx01_c507__TY0V01","*=Kostenverzamelstaat!$I$20","","Huisartsen- Overige- incl balans","zvkx01","c507","","TY0V01","Euro's",null,"N","",1]
[null,null,null,null,"zvkx01_c507__TY1V01","*=Kostenverzamelstaat!$K$20","","Huisartsen- Overige- incl balans","zvkx01","c507","","TY1V01","Euro's",null,"N","",1]
[null,null,null,null,"zvkx01_c507__TY2V01","*=Kostenverzamelstaat!$M$20","","Huisartsen- Overige- incl balans","zvkx01","c507","","TY2V01","Euro's",null,"N","",1]
[null,null,null,null,"zvkx01_c510__TY0V01","*=Kostenverzamelstaat!$I$21","","Huisartsen- MDZ- incl balans","zvkx01","c510","","TY0V01","Euro's",null,"N","",1]
[null,null,null,null,"zvkx01_c510__TY1V01","*=Kostenverzamelstaat!$K$21","","Huisartsen- MDZ- incl balans","zvkx01","c510","","TY1V01","Euro's",null,"N","",1]
[null,null,null,null,"zvkx01_c510__TY2V01","*=Kostenverzamelstaat!$M$21","","Huisartsen- MDZ- incl balans","zvkx01","c510","","TY2V01","Euro's",null,"N","",1]
[null,null,null,null,"zvkx01_c515__TY0V01","*=Kostenverzamelstaat!$I$22","","Huisartsen- Resultaatbel. huisartsen- incl balans","zvkx01","c515","","TY0V01","Euro's",null,"N","",1]
[null,null,null,null,"zvkx01_c515__TY1V01","*=Kostenverzamelstaat!$K$22","","Huisartsen- Resultaatbel. huisartsen- incl balans","zvkx01","c515","","TY1V01","Euro's",null,"N","",1]
[null,null,null,null,"zvkx01_c515__TY2V01","*=Kostenverzamelstaat!$M$22","","Huisartsen- Resultaatbel. huisartsen- incl balans","zvkx01","c515","","TY2V01","Euro's",null,"N","",1]
[null,null,null,null,"zvkx01_c516__TY0V01","*=Kostenverzamelstaat!$I$23","","Huisartsen- Resultaatbel. MDZ- incl balans","zvkx01","c516","","TY0V01","Euro's",null,"N","",1]
[null,null,null,null,"zvkx01_c516__TY1V01","*=Kostenverzamelstaat!$K$23","","Huisartsen- Resultaatbel. MDZ- incl balans","zvkx01","c516","","TY1V01","Euro's",null,"N","",1]
[null,null,null,null,"zvkx01_c516__TY2V01","*=Kostenverzamelstaat!$M$23","","Huisartsen- Resultaatbel. MDZ- incl balans","zvkx01","c516","","TY2V01","Euro's",null,"N","",1]
[null,null,null,null,"zvkx02_a520__TY0V01","*=Kostenverzamelstaat!$J$26","","Farmaceutische hulp- geaccepteerd","zvkx02","a520","","TY0V01","Euro's",null,"N","",1]
[null,null,null,null,"zvkx02_a520__TY1V01","*=Kostenverzamelstaat!$L$26","","Farmaceutische hulp- geaccepteerd","zvkx02","a520","","TY1V01","Euro's",null,"N","",1]
[null,null,null,null,"zvkx02_a520__TY2V01","*=Kostenverzamelstaat!$N$26","","Farmaceutische hulp- geaccepteerd","zvkx02","a520","","TY2V01","Euro's",null,"N","",1]
[null,null,null,null,"zvkx02_c520__TY0V01","*=Kostenverzamelstaat!$I$26","","Farmaceutische hulp- incl balans","zvkx02","c520","","TY0V01","Euro's",null,"N","",1]
[null,null,null,null,"zvkx02_c520__TY1V01","*=Kostenverzamelstaat!$K$26","","Farmaceutische hulp- incl balans","zvkx02","c520","","TY1V01","Euro's",null,"N","",1]
[null,null,null,null,"zvkx02_c520__TY2V01","*=Kostenverzamelstaat!$M$26","","Farmaceutische hulp- incl balans","zvkx02","c520","","TY2V01","Euro's",null,"N","",1]
[null,null,null,null,"zvkx03_a530__TY0V01","*=Kostenverzamelstaat!$J$28","","Verpleging en verzorging- geaccepteerd","zvkx03","a530","","TY0V01","Euro's",null,"N","",1]
[null,null,null,null,"zvkx03_a530__TY1V01","*=Kostenverzamelstaat!$L$28","","Verpleging en verzorging- geaccepteerd","zvkx03","a530","","TY1V01","Euro's",null,"N","",1]
[null,null,null,null,"zvkx03_a530__TY2V01","*=Kostenverzamelstaat!$N$28","","Verpleging en verzorging- geaccepteerd","zvkx03","a530","","TY2V01","Euro's",null,"N","",1]
[null,null,null,null,"zvkx03_c530__TY0V01","*=Kostenverzamelstaat!$I$28","","Verpleging en verzorging- incl balans","zvkx03","c530","","TY0V01","Euro's",null,"N","",1]
[null,null,null,null,"zvkx03_c530__TY1V01","*=Kostenverzamelstaat!$K$28","","Verpleging en verzorging- incl balans","zvkx03","c530","","TY1V01","Euro's",null,"N","",1]
[null,null,null,null,"zvkx03_c530__TY2V01","*=Kostenverzamelstaat!$M$28","","Verpleging en verzorging- incl balans","zvkx03","c530","","TY2V01","Euro's",null,"N","",1]
[null,null,null,null,"zvkx04_a5601__TY0V01","*=Kostenverzamelstaat!$J$30","","Mondzorg- volwassen verzekerden- geaccepteerd","zvkx04","a5601","","TY0V01","Euro's",null,"N","",1]
[null,null,null,null,"zvkx04_a5601__TY1V01","*=Kostenverzamelstaat!$L$30","","Mondzorg- volwassen verzekerden- geaccepteerd","zvkx04","a5601","","TY1V01","Euro's",null,"N","",1]
[null,null,null,null,"zvkx04_a5601__TY2V01","*=Kostenverzamelstaat!$N$30","","Mondzorg- volwassen verzekerden- geaccepteerd","zvkx04","a5601","","TY2V01","Euro's",null,"N","",1]
[null,null,null,null,"zvkx04_a5602__TY0V01","*=Kostenverzamelstaat!$J$31","","Mondzorg- jeugdige verzekerden- geaccepteerd","zvkx04","a5602","","TY0V01","Euro's",null,"N","",1]
[null,null,null,null,"zvkx04_a5602__TY1V01","*=Kostenverzamelstaat!$L$31","","Mondzorg- jeugdige verzekerden- geaccepteerd","zvkx04","a5602","","TY1V01","Euro's",null,"N","",1]
[null,null,null,null,"zvkx04_a5602__TY2V01","*=Kostenverzamelstaat!$N$31","","Mondzorg- jeugdige verzekerden- geaccepteerd","zvkx04","a5602","","TY2V01","Euro's",null,"N","",1]
[null,null,null,null,"zvkx04_a561__TY0V01","*=Kostenverzamelstaat!$J$32","","Mondzorg- gebitsprothesen- geaccepteerd","zvkx04","a561","","TY0V01","Euro's",null,"N","",1]
[null,null,null,null,"zvkx04_a561__TY1V01","*=Kostenverzamelstaat!$L$32","","Mondzorg- gebitsprothesen- geaccepteerd","zvkx04","a561","","TY1V01","Euro's",null,"N","",1]
[null,null,null,null,"zvkx04_a561__TY2V01","*=Kostenverzamelstaat!$N$32","","Mondzorg- gebitsprothesen- geaccepteerd","zvkx04","a561","","TY2V01","Euro's",null,"N","",1]
[null,null,null,null,"zvkx04_c5601__TY0V01","*=Kostenverzamelstaat!$I$30","","Mondzorg- volwassen verzekerden- incl balans","zvkx04","c5601","","TY0V01","Euro's",null,"N","",1]
[null,null,null,null,"zvkx04_c5601__TY1V01","*=Kostenverzamelstaat!$K$30","","Mondzorg- volwassen verzekerden- incl balans","zvkx04","c5601","","TY1V01","Euro's",null,"N","",1]
[null,null,null,null,"zvkx04_c5601__TY2V01","*=Kostenverzamelstaat!$M$30","","Mondzorg- volwassen verzekerden- incl balans","zvkx04","c5601","","TY2V01","Euro's",null,"N","",1]
[null,null,null,null,"zvkx04_c5602__TY0V01","*=Kostenverzamelstaat!$I$31","","Mondzorg- jeugdige verzekerden- incl balans","zvkx04","c5602","","TY0V01","Euro's",null,"N","",1]
[null,null,null,null,"zvkx04_c5602__TY1V01","*=Kostenverzamelstaat!$K$31","","Mondzorg- jeugdige verzekerden- incl balans","zvkx04","c5602","","TY1V01","Euro's",null,"N","",1]
[null,null,null,null,"zvkx04_c5602__TY2V01","*=Kostenverzamelstaat!$M$31","","Mondzorg- jeugdige verzekerden- incl balans","zvkx04","c5602","","TY2V01","Euro's",null,"N","",1]
[null,null,null,null,"zvkx04_c561__TY0V01","*=Kostenverzamelstaat!$I$32","","Mondzorg- gebitsprothesen- incl balans","zvkx04","c561","","TY0V01","Euro's",null,"N","",1]
[null,null,null,null,"zvkx04_c561__TY1V01","*=Kostenverzamelstaat!$K$32","","Mondzorg- gebitsprothesen- incl balans","zvkx04","c561","","TY1V01","Euro's",null,"N","",1]
[null,null,null,null,"zvkx04_c561__TY2V01","*=Kostenverzamelstaat!$M$32","","Mondzorg- gebitsprothesen- incl balans","zvkx04","c561","","TY2V01","Euro's",null,"N","",1]
[null,null,null,null,"zvkx05_a580__TY0V01","*=Kostenverzamelstaat!$J$35","","Verloskundige hulp- door verloskundigen- geaccepteerd","zvkx05","a580","","TY0V01","Euro's",null,"N","",1]
[null,null,null,null,"zvkx05_a580__TY1V01","*=Kostenverzamelstaat!$L$35","","Verloskundige hulp- door verloskundigen- geaccepteerd","zvkx05","a580","","TY1V01","Euro's",null,"N","",1]
[null,null,null,null,"zvkx05_a580__TY2V01","*=Kostenverzamelstaat!$N$35","","Verloskundige hulp- door verloskundigen- geaccepteerd","zvkx05","a580","","TY2V01","Euro's",null,"N","",1]
[null,null,null,null,"zvkx05_a581__TY0V01","*=Kostenverzamelstaat!$J$36","","Verloskundige hulp- door huisartsen- geaccepteerd","zvkx05","a581","","TY1V01","Euro's",null,"N","",1]
[null,null,null,null,"zvkx05_a581__TY1V01","*=Kostenverzamelstaat!$L$36","","Verloskundige hulp- door huisartsen- geaccepteerd","zvkx05","a581","","TY1V01","Euro's",null,"N","",1]
[null,null,null,null,"zvkx05_a581__TY2V01","*=Kostenverzamelstaat!$N$36","","Verloskundige hulp- door huisartsen- geaccepteerd","zvkx05","a581","","TY2V01","Euro's",null,"N","",1]
[null,null,null,null,"zvkx05_a582__TY0V01","*=Kostenverzamelstaat!$J$37","","Verloskundige hulp- Integrale geboortezorg- geaccepteerd","zvkx05","a582","","TY0V01","Euro's",null,"N","",1]
[null,null,null,null,"zvkx05_a582__TY1V01","*=Kostenverzamelstaat!$L$37","","Verloskundige hulp- Integrale geboortezorg- geaccepteerd","zvkx05","a582","","TY1V01","Euro's",null,"N","",1]
[null,null,null,null,"zvkx05_a582__TY2V01","*=Kostenverzamelstaat!$N$37","","Verloskundige hulp- Integrale geboortezorg- geaccepteerd","zvkx05","a582","","TY2V01","Euro's",null,"N","",1]
[null,null,null,null,"zvkx05_c580__TY0V01","*=Kostenverzamelstaat!$I$35","","Verloskundige hulp- door verloskundigen- incl balans","zvkx05","c580","","TY0V01","Euro's",null,"N","",1]
[null,null,null,null,"zvkx05_c580__TY1V01","*=Kostenverzamelstaat!$K$35","","Verloskundige hulp- door verloskundigen- incl balans","zvkx05","c580","","TY1V01","Euro's",null,"N","",1]
[null,null,null,null,"zvkx05_c580__TY2V01","*=Kostenverzamelstaat!$M$35","","Verloskundige hulp- door verloskundigen- incl balans","zvkx05","c580","","TY2V01","Euro's",null,"N","",1]
[null,null,null,null,"zvkx05_c581__TY0V01","*=Kostenverzamelstaat!$J$36","","Verloskundige hulp- door huisartsen- incl balans","zvkx05","c581","","TY0V01","Euro's",null,"N","",1]
[null,null,null,null,"zvkx05_c581__TY1V01","*=Kostenverzamelstaat!$K$36","","Verloskundige hulp- door huisartsen- incl balans","zvkx05","c581","","TY1V01","Euro's",null,"N","",1]
[null,null,null,null,"zvkx05_c581__TY2V01","*=Kostenverzamelstaat!$M$36","","Verloskundige hulp- door huisartsen- incl balans","zvkx05","c581","","TY2V01","Euro's",null,"N","",1]
[null,null,null,null,"zvkx05_c582__TY0V01","*=Kostenverzamelstaat!$I$37","","Verloskundige hulp- Integrale geboortezorg-  incl balans","zvkx05","a582","","TY0V01","Euro's",null,"N","",1]
[null,null,null,null,"zvkx05_c582__TY1V01","*=Kostenverzamelstaat!$K$37","","Verloskundige hulp- Integrale geboortezorg-  incl balans","zvkx05","a582","","TY1V01","Euro's",null,"N","",1]
[null,null,null,null,"zvkx05_c582__TY2V01","*=Kostenverzamelstaat!$M$37","","Verloskundige hulp- Integrale geboortezorg-  incl balans","zvkx05","a582","","TY2V01","Euro's",null,"N","",1]
[null,null,null,null,"zvkx06_a545__TY0V01","*=Kostenverzamelstaat!$J$51","","Medisch specialistische hulp- mondziekten en kaakchirurgie- geaccepteerd","zvkx06","a545","","TY0V01","Euro's",null,"N","",1]
[null,null,null,null,"zvkx06_a545__TY1V01","*=Kostenverzamelstaat!$L$51","","Medisch specialistische hulp- mondziekten en kaakchirurgie- geaccepteerd","zvkx06","a545","","TY1V01","Euro's",null,"N","",1]
[null,null,null,null,"zvkx06_a545__TY2V01","*=Kostenverzamelstaat!$N$51","","Medisch specialistische hulp- mondziekten en kaakchirurgie- geaccepteerd","zvkx06","a545","","TY2V01","Euro's",null,"N","",1]
[null,null,null,null,"zvkx06_a610__TY0V01","*=Kostenverzamelstaat!$J$52","","Medisch specialistische hulp- Overige ziekenhuiszorg,curatief- geaccepteerd","zvkx06","a610","","TY0V01","Euro's",null,"N","",1]
[null,null,null,null,"zvkx06_a610__TY1V01","*=Kostenverzamelstaat!$L$52","","Medisch specialistische hulp- Overige ziekenhuiszorg,curatief- geaccepteerd","zvkx06","a610","","TY1V01","Euro's",null,"N","",1]
[null,null,null,null,"zvkx06_a610__TY2V01","*=Kostenverzamelstaat!$N$52","","Medisch specialistische hulp- Overige ziekenhuiszorg,curatief- geaccepteerd","zvkx06","a610","","TY2V01","Euro's",null,"N","",1]
[null,null,null,null,"zvkx06_a611__TY0V01","*=Kostenverzamelstaat!$J$53","","Medisch specialistische hulp- Overige zorg- geaccepteerd","zvkx06","a611","","TY0V01","Euro's",null,"N","",1]
[null,null,null,null,"zvkx06_a611__TY1V01","*=Kostenverzamelstaat!$L$53","","Medisch specialistische hulp- Overige zorg- geaccepteerd","zvkx06","a611","","TY1V01","Euro's",null,"N","",1]
[null,null,null,null,"zvkx06_a611__TY2V01","*=Kostenverzamelstaat!$N$53","","Medisch specialistische hulp- Overige zorg- geaccepteerd","zvkx06","a611","","TY2V01","Euro's",null,"N","",1]
[null,null,null,null,"zvkx06_a612__TY0V01","*=Kostenverzamelstaat!$J$54","","Medisch specialistische hulp- add-on's- geaccepteerd","zvkx06","a612","","TY1V01","Euro's",null,"N","",1]
[null,null,null,null,"zvkx06_a612__TY1V01","*=Kostenverzamelstaat!$L$54","","Medisch specialistische hulp- add-on's- geaccepteerd","zvkx06","a612","","TY1V01","Euro's",null,"N","",1]
[null,null,null,null,"zvkx06_a612__TY2V01","*=Kostenverzamelstaat!$N$54","","Medisch specialistische hulp- add-on's- geaccepteerd","zvkx06","a612","","TY2V01","Euro's",null,"N","",1]
[null,null,null,null,"zvkx06_a6121__TY0V01","*=Kostenverzamelstaat!$J$55","","Medisch specialistische hulp- add-on's Dure geneesmiddelen- geaccepteerd","zvkx06","a6121","","TY0V01","Euro's",null,"N","",1]
[null,null,null,null,"zvkx06_a6121__TY1V01","*=Kostenverzamelstaat!$L55","","Medisch specialistische hulp- add-on's Dure geneesmiddelen- geaccepteerd","zvkx06","a6121","","TY0V01","Euro's",null,"N","",1]
[null,null,null,null,"zvkx06_a6121__TY1V01","*=Kostenverzamelstaat!$N$55","","Medisch specialistische hulp- add-on's Dure geneesmiddelen- geaccepteerd","zvkx06","a6121","","TY0V01","Euro's",null,"N","",1]
[null,null,null,null,"zvkx06_a6122__TY0V01","*=Kostenverzamelstaat!$J$56","","Medisch specialistische hulp- IC- geaccepteerd","zvkx06","a6122","","TY0V01","Euro's",null,"N","",1]
[null,null,null,null,"zvkx06_a6122__TY1V01","*=Kostenverzamelstaat!$L$56","","Medisch specialistische hulp- IC- geaccepteerd","zvkx06","a6122","","TY0V01","Euro's",null,"N","",1]
[null,null,null,null,"zvkx06_a6122__TY2V01","*=Kostenverzamelstaat!$N$56","","Medisch specialistische hulp- IC- geaccepteerd","zvkx06","a6122","","TY0V01","Euro's",null,"N","",1]
[null,null,null,null,"zvkx06_a6131__TY0V01","*=Kostenverzamelstaat!$J$57","","Medisch specialistische hulp- Integraal DBC-zorgproduct gereguleerd- geaccepteerd","zvkx06","a6131","","TY0V01","Euro's",null,"N","",1]
[null,null,null,null,"zvkx06_a6131__TY1V01","*=Kostenverzamelstaat!$L$57","","Medisch specialistische hulp- Integraal DBC-zorgproduct gereguleerd- geaccepteerd","zvkx06","a6131","","TY1V01","Euro's",null,"N","",1]
[null,null,null,null,"zvkx06_a6131__TY2V01","*=Kostenverzamelstaat!$N$57","","Medisch specialistische hulp- Integraal DBC-zorgproduct gereguleerd- geaccepteerd","zvkx06","a6131","","TY2V01","Euro's",null,"N","",1]
[null,null,null,null,"zvkx06_a6151__TY0V01","*=Kostenverzamelstaat!$J$58","","Medisch specialistische hulp- Integraal DBC-zorgproduct vrije segment- geaccepteerd","zvkx06","a6151","","TY0V01","Euro's",null,"N","",1]
[null,null,null,null,"zvkx06_a6151__TY1V01","*=Kostenverzamelstaat!$L$58","","Medisch specialistische hulp- Integraal DBC-zorgproduct vrije segment- geaccepteerd","zvkx06","a6151","","TY1V01","Euro's",null,"N","",1]
[null,null,null,null,"zvkx06_a6151__TY2V01","*=Kostenverzamelstaat!$N$58","","Medisch specialistische hulp- Integraal DBC-zorgproduct vrije segment- geaccepteerd","zvkx06","a6151","","TY2V01","Euro's",null,"N","",1]
[null,null,null,null,"zvkx06_a619__TY0V01","*=Kostenverzamelstaat!$J$59","","Medisch specialistische hulp- honoraria extramuraal- geaccepteerd","zvkx06","a619","","TY0V01","Euro's",null,"N","",1]
[null,null,null,null,"zvkx06_a619__TY1V01","*=Kostenverzamelstaat!$L$59","","Medisch specialistische hulp- honoraria extramuraal- geaccepteerd","zvkx06","a619","","TY1V01","Euro's",null,"N","",1]
[null,null,null,null,"zvkx06_a619__TY2V01","*=Kostenverzamelstaat!$N$59","","Medisch specialistische hulp- honoraria extramuraal- geaccepteerd","zvkx06","a619","","TY2V01","Euro's",null,"N","",1]
[null,null,null,null,"zvkx06_c545__TY0V01","*=Kostenverzamelstaat!$I$51","","Medisch specialistische hulp- mondziekten en kaakchirurgie- incl balans","zvkx06","c545","","TY0V01","Euro's",null,"N","",1]
[null,null,null,null,"zvkx06_c545__TY1V01","*=Kostenverzamelstaat!$K$51","","Medisch specialistische hulp- mondziekten en kaakchirurgie- incl balans","zvkx06","c545","","TY1V01","Euro's",null,"N","",1]
[null,null,null,null,"zvkx06_c545__TY2V01","*=Kostenverzamelstaat!$M$51","","Medisch specialistische hulp- mondziekten en kaakchirurgie- incl balans","zvkx06","c545","","TY2V01","Euro's",null,"N","",1]
[null,null,null,null,"zvkx06_c610__TY0V01","*=Kostenverzamelstaat!$I$52","","Medisch specialistische hulp- Overige ziekenhuiszorg,curatief- incl balans","zvkx06","c610","","TY0V01","Euro's",null,"N","",1]
[null,null,null,null,"zvkx06_c610__TY1V01","*=Kostenverzamelstaat!$K$52","","Medisch specialistische hulp- Overige ziekenhuiszorg,curatief- incl balans","zvkx06","c610","","TY1V01","Euro's",null,"N","",1]
[null,null,null,null,"zvkx06_c610__TY2V01","*=Kostenverzamelstaat!$M$52","","Medisch specialistische hulp- Overige ziekenhuiszorg,curatief- incl balans","zvkx06","c610","","TY2V01","Euro's",null,"N","",1]
[null,null,null,null,"zvkx06_c611__TY0V01","*=Kostenverzamelstaat!$I$53","","Medisch specialistische hulp- Overige zorg- incl balans","zvkx06","c611","","TY0V01","Euro's",null,"N","",1]
[null,null,null,null,"zvkx06_c611__TY1V01","*=Kostenverzamelstaat!$K$53","","Medisch specialistische hulp- Overige zorg- incl balans","zvkx06","c611","","TY1V01","Euro's",null,"N","",1]
[null,null,null,null,"zvkx06_c611__TY2V01","*=Kostenverzamelstaat!$M$53","","Medisch specialistische hulp- Overige zorg- incl balans","zvkx06","c611","","TY2V01","Euro's",null,"N","",1]
[null,null,null,null,"zvkx06_c612__TY0V01","*=Kostenverzamelstaat!$I$54","","Medisch specialistische hulp- add-on's- incl balans","zvkx06","c612","","TY1V01","Euro's",null,"N","",1]
[null,null,null,null,"zvkx06_c612__TY1V01","*=Kostenverzamelstaat!$K$54","","Medisch specialistische hulp- add-on's- incl balans","zvkx06","c612","","TY1V01","Euro's",null,"N","",1]
[null,null,null,null,"zvkx06_c612__TY2V01","*=Kostenverzamelstaat!$M$54","","Medisch specialistische hulp- add-on's- incl balans","zvkx06","c612","","TY2V01","Euro's",null,"N","",1]
[null,null,null,null,"zvkx06_c6121__TY0V01","*=Kostenverzamelstaat!$I$55","","Medisch specialistische hulp- add-on's Dure geneesmiddelen- incl balans","zvkx06","c6121","","TY0V01","Euro's",null,"N","",1]
[null,null,null,null,"zvkx06_c6121__TY1V01","*=Kostenverzamelstaat!$K$55","","Medisch specialistische hulp- add-on's Dure geneesmiddelen- incl balans","zvkx06","c6121","","TY0V01","Euro's",null,"N","",1]
[null,null,null,null,"zvkx06_c6121__TY2V01","*=Kostenverzamelstaat!$M$55","","Medisch specialistische hulp- add-on's Dure geneesmiddelen- incl balans","zvkx06","c6121","","TY0V01","Euro's",null,"N","",1]
[null,null,null,null,"zvkx06_c6122__TY0V01","*=Kostenverzamelstaat!$I$56","","Medisch specialistische hulp- IC- incl balans","zvkx06","c6122","","TY0V01","Euro's",null,"N","",1]
[null,null,null,null,"zvkx06_c6122__TY1V01","*=Kostenverzamelstaat!$K$56","","Medisch specialistische hulp- IC- incl balans","zvkx06","c6122","","TY0V01","Euro's",null,"N","",1]
[null,null,null,null,"zvkx06_c6122__TY2V01","*=Kostenverzamelstaat!$M$56","","Medisch specialistische hulp- IC- incl balans","zvkx06","c6122","","TY0V01","Euro's",null,"N","",1]
[null,null,null,null,"zvkx06_c6131__TY0V01","*=Kostenverzamelstaat!$I$57","","Medisch specialistische hulp- Integraal DBC-zorgproduct gereguleerd- incl balans","zvkx06","c6131","","TY0V01","Euro's",null,"N","",1]
[null,null,null,null,"zvkx06_c6131__TY1V01","*=Kostenverzamelstaat!$K$57","","Medisch specialistische hulp- Integraal DBC-zorgproduct gereguleerd- incl balans","zvkx06","c6131","","TY1V01","Euro's",null,"N","",1]
[null,null,null,null,"zvkx06_c6131__TY2V01","*=Kostenverzamelstaat!$M$57","","Medisch specialistische hulp- Integraal DBC-zorgproduct gereguleerd- incl balans","zvkx06","c6131","","TY2V01","Euro's",null,"N","",1]
[null,null,null,null,"zvkx06_c6151__TY0V01","*=Kostenverzamelstaat!$I$58","","Medisch specialistische hulp- Integraal DBC-zorgproduct vrije segment- incl balans","zvkx06","c6151","","TY0V01","Euro's",null,"N","",1]
[null,null,null,null,"zvkx06_c6151__TY1V01","*=Kostenverzamelstaat!$K$58","","Medisch specialistische hulp- Integraal DBC-zorgproduct vrije segment- incl balans","zvkx06","c6151","","TY1V01","Euro's",null,"N","",1]
[null,null,null,null,"zvkx06_c6151__TY2V01","*=Kostenverzamelstaat!$M$58","","Medisch specialistische hulp- Integraal DBC-zorgproduct vrije segment- incl balans","zvkx06","c6151","","TY2V01","Euro's",null,"N","",1]
[null,null,null,null,"zvkx06_c619__TY0V01","*=Kostenverzamelstaat!$I$59","","Medisch specialistische hulp- honoraria extramuraal- incl balans","zvkx06","c619","","TY0V01","Euro's",null,"N","",1]
[null,null,null,null,"zvkx06_c619__TY1V01","*=Kostenverzamelstaat!$K$59","","Medisch specialistische hulp- honoraria extramuraal- incl balans","zvkx06","c619","","TY1V01","Euro's",null,"N","",1]
[null,null,null,null,"zvkx06_c619__TY2V01","*=Kostenverzamelstaat!$M$59","","Medisch specialistische hulp- honoraria extramuraal- incl balans","zvkx06","c619","","TY2V01","Euro's",null,"N","",1]
[null,null,null,null,"zvkx07_a620__TY0V01","*=Kostenverzamelstaat!$J$62","","Paramedische hulp- fysiotherapie- geaccepteerd","zvkx07","a620","","TY0V01","Euro's",null,"N","",1]
[null,null,null,null,"zvkx07_a620__TY1V01","*=Kostenverzamelstaat!$L$62","","Paramedische hulp- fysiotherapie- geaccepteerd","zvkx07","a620","","TY1V01","Euro's",null,"N","",1]
[null,null,null,null,"zvkx07_a620__TY2V01","*=Kostenverzamelstaat!$N$62","","Paramedische hulp- fysiotherapie- geaccepteerd","zvkx07","a620","","TY2V01","Euro's",null,"N","",1]
[null,null,null,null,"zvkx07_a621__TY0V01","*=Kostenverzamelstaat!$J$63","","Paramedische hulp- Mensendieck/Cesar- geaccepteerd","zvkx07","a621","","TY0V01","Euro's",null,"N","",1]
[null,null,null,null,"zvkx07_a621__TY1V01","*=Kostenverzamelstaat!$L$63","","Paramedische hulp- Mensendieck/Cesar- geaccepteerd","zvkx07","a621","","TY1V01","Euro's",null,"N","",1]
[null,null,null,null,"zvkx07_a621__TY2V01","*=Kostenverzamelstaat!$N$63","","Paramedische hulp- Mensendieck/Cesar- geaccepteerd","zvkx07","a621","","TY2V01","Euro's",null,"N","",1]
[null,null,null,null,"zvkx07_a623__TY0V01","*=Kostenverzamelstaat!$J$64","","Paramedische hulp- logopedie- geaccepteerd","zvkx07","a623","","TY0V01","Euro's",null,"N","",1]
[null,null,null,null,"zvkx07_a623__TY1V01","*=Kostenverzamelstaat!$L$64","","Paramedische hulp- logopedie- geaccepteerd","zvkx07","a623","","TY1V01","Euro's",null,"N","",1]
[null,null,null,null,"zvkx07_a623__TY2V01","*=Kostenverzamelstaat!$N$64","","Paramedische hulp- logopedie- geaccepteerd","zvkx07","a623","","TY2V01","Euro's",null,"N","",1]
[null,null,null,null,"zvkx07_a624__TY0V01","*=Kostenverzamelstaat!$J$65","","Paramedische hulp- ergotherapie- geaccepteerd","zvkx07","a624","","TY0V01","Euro's",null,"N","",1]
[null,null,null,null,"zvkx07_a624__TY1V01","*=Kostenverzamelstaat!$L$65","","Paramedische hulp- ergotherapie- geaccepteerd","zvkx07","a624","","TY1V01","Euro's",null,"N","",1]
[null,null,null,null,"zvkx07_a624__TY2V01","*=Kostenverzamelstaat!$N$65","","Paramedische hulp- ergotherapie- geaccepteerd","zvkx07","a624","","TY2V01","Euro's",null,"N","",1]
[null,null,null,null,"zvkx07_a625__TY0V01","*=Kostenverzamelstaat!$J$66","","Paramedische hulp- dieetadvisering- geaccepteerd","zvkx07","a625","","TY0V01","Euro's",null,"N","",1]
[null,null,null,null,"zvkx07_a625__TY1V01","*=Kostenverzamelstaat!$L$66","","Paramedische hulp- dieetadvisering- geaccepteerd","zvkx07","a625","","TY1V01","Euro's",null,"N","",1]
[null,null,null,null,"zvkx07_a625__TY2V01","*=Kostenverzamelstaat!$N$66","","Paramedische hulp- dieetadvisering- geaccepteerd","zvkx07","a625","","TY2V01","Euro's",null,"N","",1]
[null,null,null,null,"zvkx07_a626__TY0V01","*=Kostenverzamelstaat!$J$67","","Paramedische hulp- GLI- geaccepteerd","zvkx07","a625","","TY0V01","Euro's",null,"N","",1]
[null,null,null,null,"zvkx07_a626__TY1V01","*=Kostenverzamelstaat!$L$67","","Paramedische hulp- GLI- geaccepteerd","zvkx07","a625","","TY1V01","Euro's",null,"N","",1]
[null,null,null,null,"zvkx07_a626__TY2V01","*=Kostenverzamelstaat!$N$67","","Paramedische hulp- GLI- geaccepteerd","zvkx07","a625","","TY2V01","Euro's",null,"N","",1]
[null,null,null,null,"zvkx07_c620__TY0V01","*=Kostenverzamelstaat!$I$63","","Paramedische hulp- fysiotherapie- incl balans","zvkx07","c620","","TY0V01","Euro's",null,"N","",1]
[null,null,null,null,"zvkx07_c620__TY1V01","*=Kostenverzamelstaat!$K$63","","Paramedische hulp- fysiotherapie- incl balans","zvkx07","c620","","TY1V01","Euro's",null,"N","",1]
[null,null,null,null,"zvkx07_c620__TY2V01","*=Kostenverzamelstaat!$M$63","","Paramedische hulp- fysiotherapie- incl balans","zvkx07","c620","","TY2V01","Euro's",null,"N","",1]
[null,null,null,null,"zvkx07_c621__TY0V01","*=Kostenverzamelstaat!$I$64","","Paramedische hulp- Mensendieck/Cesar- incl balans","zvkx07","c621","","TY0V01","Euro's",null,"N","",1]
[null,null,null,null,"zvkx07_c621__TY1V01","*=Kostenverzamelstaat!$K$64","","Paramedische hulp- Mensendieck/Cesar- incl balans","zvkx07","c621","","TY1V01","Euro's",null,"N","",1]
[null,null,null,null,"zvkx07_c621__TY2V01","*=Kostenverzamelstaat!$M$64","","Paramedische hulp- Mensendieck/Cesar- incl balans","zvkx07","c621","","TY2V01","Euro's",null,"N","",1]
[null,null,null,null,"zvkx07_c623__TY0V01","*=Kostenverzamelstaat!$I$65","","Paramedische hulp- logopedie- incl balans","zvkx07","c623","","TY0V01","Euro's",null,"N","",1]
[null,null,null,null,"zvkx07_c623__TY1V01","*=Kostenverzamelstaat!$K$65","","Paramedische hulp- logopedie- incl balans","zvkx07","c623","","TY1V01","Euro's",null,"N","",1]
[null,null,null,null,"zvkx07_c623__TY2V01","*=Kostenverzamelstaat!$M$65","","Paramedische hulp- logopedie- incl balans","zvkx07","c623","","TY2V01","Euro's",null,"N","",1]
[null,null,null,null,"zvkx07_c624__TY0V01","*=Kostenverzamelstaat!$I$66","","Paramedische hulp- ergotherapie- incl balans","zvkx07","c624","","TY0V01","Euro's",null,"N","",1]
[null,null,null,null,"zvkx07_c624__TY1V01","*=Kostenverzamelstaat!$K$66","","Paramedische hulp- ergotherapie- incl balans","zvkx07","c624","","TY1V01","Euro's",null,"N","",1]
[null,null,null,null,"zvkx07_c624__TY2V01","*=Kostenverzamelstaat!$M$66","","Paramedische hulp- ergotherapie- incl balans","zvkx07","c624","","TY2V01","Euro's",null,"N","",1]
[null,null,null,null,"zvkx07_c625__TY0V01","*=Kostenverzamelstaat!$I$67","","Paramedische hulp- dieetadvisering- incl balans","zvkx07","c625","","TY0V01","Euro's",null,"N","",1]
[null,null,null,null,"zvkx07_c625__TY1V01","*=Kostenverzamelstaat!$K$67","","Paramedische hulp- dieetadvisering- incl balans","zvkx07","c625","","TY1V01","Euro's",null,"N","",1]
[null,null,null,null,"zvkx07_c625__TY2V01","*=Kostenverzamelstaat!$M$67","","Paramedische hulp- dieetadvisering- incl balans","zvkx07","c625","","TY2V01","Euro's",null,"N","",1]
[null,null,null,null,"zvkx07_c626__TY0V01","*=Kostenverzamelstaat!$I$67","","Paramedische hulp- GLI-  incl balans","zvkx07","a625","","TY0V01","Euro's",null,"N","",1]
[null,null,null,null,"zvkx07_c626__TY1V01","*=Kostenverzamelstaat!$K$67","","Paramedische hulp- GLI-  incl balans","zvkx07","a625","","TY1V01","Euro's",null,"N","",1]
[null,null,null,null,"zvkx07_c626__TY2V01","*=Kostenverzamelstaat!$M$67","","Paramedische hulp- GLI-  incl balans","zvkx07","a625","","TY2V01","Euro's",null,"N","",1]
[null,null,null,null,"zvkx08_a640__TY0V01","*=Kostenverzamelstaat!$J$70","","Hulpmiddelen-- geaccepteerd","zvkx08","a640","","TY0V01","Euro's",null,"N","",1]
[null,null,null,null,"zvkx08_a640__TY1V01","*=Kostenverzamelstaat!$L$70","","Hulpmiddelen-- geaccepteerd","zvkx08","a640","","TY1V01","Euro's",null,"N","",1]
[null,null,null,null,"zvkx08_a640__TY2V01","*=Kostenverzamelstaat!$N$70","","Hulpmiddelen-- geaccepteerd","zvkx08","a640","","TY2V01","Euro's",null,"N","",1]
[null,null,null,null,"zvkx08_c640__TY0V01","*=Kostenverzamelstaat!$I$70","","Hulpmiddelen-- incl balans","zvkx08","c640","","TY0V01","Euro's",null,"N","",1]
[null,null,null,null,"zvkx08_c640__TY1V01","*=Kostenverzamelstaat!$K$70","","Hulpmiddelen-- incl balans","zvkx08","c640","","TY1V01","Euro's",null,"N","",1]
[null,null,null,null,"zvkx08_c640__TY2V01","*=Kostenverzamelstaat!$M$70","","Hulpmiddelen-- incl balans","zvkx08","c640","","TY2V01","Euro's",null,"N","",1]
[null,null,null,null,"zvkx09_a650__TY0V01","*=Kostenverzamelstaat!$J$72","","Ziekenvervoer- ambulance/helicopter- geaccepteerd","zvkx09","a650","","TY0V01","Euro's",null,"N","",1]
[null,null,null,null,"zvkx09_a650__TY1V01","*=Kostenverzamelstaat!$L$72","","Ziekenvervoer- ambulance/helicopter- geaccepteerd","zvkx09","a650","","TY1V01","Euro's",null,"N","",1]
[null,null,null,null,"zvkx09_a650__TY2V01","*=Kostenverzamelstaat!$N$72","","Ziekenvervoer- ambulance/helicopter- geaccepteerd","zvkx09","a650","","TY2V01","Euro's",null,"N","",1]
[null,null,null,null,"zvkx09_a6501__TY0V01","*=Kostenverzamelstaat!$J$73","","Ziekenvervoer- regionale ambulance- geaccepteerd","zvkx09","a6501","","TY0V01","Euro's",null,"N","",1]
[null,null,null,null,"zvkx09_a6501__TY1V01","*=Kostenverzamelstaat!$L$73","","Ziekenvervoer- regionale ambulance- geaccepteerd","zvkx09","a6501","","TY1V01","Euro's",null,"N","",1]
[null,null,null,null,"zvkx09_a6501__TY2V01","*=Kostenverzamelstaat!$N$73","","Ziekenvervoer- regionale ambulance- geaccepteerd","zvkx09","a6501","","TY2V01","Euro's",null,"N","",1]
[null,null,null,null,"zvkx09_a651__TY0V01","*=Kostenverzamelstaat!$J$74","","Ziekenvervoer- ov, taxi en eigen auto- geaccepteerd","zvkx09","a651","","TY0V01","Euro's",null,"N","",1]
[null,null,null,null,"zvkx09_a651__TY1V01","*=Kostenverzamelstaat!$L$74","","Ziekenvervoer- ov, taxi en eigen auto- geaccepteerd","zvkx09","a651","","TY1V01","Euro's",null,"N","",1]
[null,null,null,null,"zvkx09_a651__TY2V01","*=Kostenverzamelstaat!$N$74","","Ziekenvervoer- ov, taxi en eigen auto- geaccepteerd","zvkx09","a651","","TY2V01","Euro's",null,"N","",1]
[null,null,null,null,"zvkx09_c650__TY0V01","*=Kostenverzamelstaat!$I$72","","Ziekenvervoer- ambulance/helicopter- incl balans","zvkx09","c650","","TY0V01","Euro's",null,"N","",1]
[null,null,null,null,"zvkx09_c650__TY1V01","*=Kostenverzamelstaat!$K$72","","Ziekenvervoer- ambulance/helicopter- incl balans","zvkx09","c650","","TY1V01","Euro's",null,"N","",1]
[null,null,null,null,"zvkx09_c650__TY2V01","*=Kostenverzamelstaat!$M$72","","Ziekenvervoer- ambulance/helicopter- incl balans","zvkx09","c650","","TY2V01","Euro's",null,"N","",1]
[null,null,null,null,"zvkx09_c6501__TY0V01","*=Kostenverzamelstaat!$I$73","","Ziekenvervoer- regionale ambulance- incl balans","zvkx09","c6501","","TY0V01","Euro's",null,"N","",1]
[null,null,null,null,"zvkx09_c6501__TY1V01","*=Kostenverzamelstaat!$K$73","","Ziekenvervoer- regionale ambulance- incl balans","zvkx09","c6501","","TY1V01","Euro's",null,"N","",1]
[null,null,null,null,"zvkx09_c6501__TY2V01","*=Kostenverzamelstaat!$M$73","","Ziekenvervoer- regionale ambulance- incl balans","zvkx09","c6501","","TY2V01","Euro's",null,"N","",1]
[null,null,null,null,"zvkx09_c651__TY0V01","*=Kostenverzamelstaat!$I$74","","Ziekenvervoer- ov, taxi en eigen auto- incl balans","zvkx09","c651","","TY0V01","Euro's",null,"N","",1]
[null,null,null,null,"zvkx09_c651__TY1V01","*=Kostenverzamelstaat!$K$74","","Ziekenvervoer- ov, taxi en eigen auto- incl balans","zvkx09","c651","","TY1V01","Euro's",null,"N","",1]
[null,null,null,null,"zvkx09_c651__TY2V01","*=Kostenverzamelstaat!$M$74","","Ziekenvervoer- ov, taxi en eigen auto- incl balans","zvkx09","c651","","TY2V01","Euro's",null,"N","",1]
[null,null,null,null,"zvkx10_a661__TY0V01","*=Kostenverzamelstaat!$J$87","","Geneeskundige GGZ- GGZ met verblijf- geaccepteerd","zvkx10","a661","","TY0V01","Euro's",null,"N","",1]
[null,null,null,null,"zvkx10_a661__TY1V01","*=Kostenverzamelstaat!$L$87","","Geneeskundige GGZ- GGZ met verblijf- geaccepteerd","zvkx10","a661","","TY1V01","Euro's",null,"N","",1]
[null,null,null,null,"zvkx10_a661__TY2V01","*=Kostenverzamelstaat!$N$87","","Geneeskundige GGZ- GGZ met verblijf- geaccepteerd","zvkx10","a661","","TY2V01","Euro's",null,"N","",1]
[null,null,null,null,"zvkx10_a6611__TY0V01","*=Kostenverzamelstaat!$J$88","","Geneeskundige GGZ- GGZ jaar 2 en 3- geaccepteerd","zvkx10","a6611","","TY0V01","Euro's",null,"N","",1]
[null,null,null,null,"zvkx10_a6611__TY1V01","*=Kostenverzamelstaat!$L$88","","Geneeskundige GGZ- GGZ jaar 2 en 3- geaccepteerd","zvkx10","a6611","","TY1V01","Euro's",null,"N","",1]
[null,null,null,null,"zvkx10_a6611__TY2V01","*=Kostenverzamelstaat!$N$88","","Geneeskundige GGZ- GGZ jaar 2 en 3- geaccepteerd","zvkx10","a6611","","TY2V01","Euro's",null,"N","",1]
[null,null,null,null,"zvkx10_a662__TY0V01","*=Kostenverzamelstaat!$J$89","","Geneeskundige GGZ- GGZ zonder verblijf- geaccepteerd","zvkx10","a662","","TY0V01","Euro's",null,"N","",1]
[null,null,null,null,"zvkx10_a662__TY1V01","*=Kostenverzamelstaat!$L$89","","Geneeskundige GGZ- GGZ zonder verblijf- geaccepteerd","zvkx10","a662","","TY1V01","Euro's",null,"N","",1]
[null,null,null,null,"zvkx10_a662__TY2V01","*=Kostenverzamelstaat!$N$89","","Geneeskundige GGZ- GGZ zonder verblijf- geaccepteerd","zvkx10","a662","","TY2V01","Euro's",null,"N","",1]
[null,null,null,null,"zvkx10_a665__TY0V01","*=Kostenverzamelstaat!$J$90","","Geneeskundige GGZ- basis GGZ- geaccepteerd","zvkx10","a665","","TY0V01","Euro's",null,"N","",1]
[null,null,null,null,"zvkx10_a665__TY1V01","*=Kostenverzamelstaat!$L$90","","Geneeskundige GGZ- basis GGZ- geaccepteerd","zvkx10","a665","","TY1V01","Euro's",null,"N","",1]
[null,null,null,null,"zvkx10_a665__TY2V01","*=Kostenverzamelstaat!$N$90","","Geneeskundige GGZ- basis GGZ- geaccepteerd","zvkx10","a665","","TY2V01","Euro's",null,"N","",1]
[null,null,null,null,"zvkx10_c661__TY0V01","*=Kostenverzamelstaat!$I$87","","Geneeskundige GGZ- GGZ met verblijf- incl balans","zvkx10","c661","","TY0V01","Euro's",null,"N","",1]
[null,null,null,null,"zvkx10_c661__TY1V01","*=Kostenverzamelstaat!$K$87","","Geneeskundige GGZ- GGZ met verblijf- incl balans","zvkx10","c661","","TY1V01","Euro's",null,"N","",1]
[null,null,null,null,"zvkx10_c661__TY2V01","*=Kostenverzamelstaat!$M$87","","Geneeskundige GGZ- GGZ met verblijf- incl balans","zvkx10","c661","","TY2V01","Euro's",null,"N","",1]
[null,null,null,null,"zvkx10_c6611__TY0V01","*=Kostenverzamelstaat!$I$88","","Geneeskundige GGZ- GGZ jaar 2 en 3- incl balans","zvkx10","c6611","","TY0V01","Euro's",null,"N","",1]
[null,null,null,null,"zvkx10_c6611__TY1V01","*=Kostenverzamelstaat!$K$88","","Geneeskundige GGZ- GGZ jaar 2 en 3- incl balans","zvkx10","c6611","","TY1V01","Euro's",null,"N","",1]
[null,null,null,null,"zvkx10_c6611__TY2V01","*=Kostenverzamelstaat!$M$88","","Geneeskundige GGZ- GGZ jaar 2 en 3- incl balans","zvkx10","c6611","","TY2V01","Euro's",null,"N","",1]
[null,null,null,null,"zvkx10_c662__TY0V01","*=Kostenverzamelstaat!$I$89","","Geneeskundige GGZ- GGZ zonder verblijf- incl balans","zvkx10","c662","","TY0V01","Euro's",null,"N","",1]
[null,null,null,null,"zvkx10_c662__TY1V01","*=Kostenverzamelstaat!$K$89","","Geneeskundige GGZ- GGZ zonder verblijf- incl balans","zvkx10","c662","","TY1V01","Euro's",null,"N","",1]
[null,null,null,null,"zvkx10_c662__TY2V01","*=Kostenverzamelstaat!$M$89","","Geneeskundige GGZ- GGZ zonder verblijf- incl balans","zvkx10","c662","","TY2V01","Euro's",null,"N","",1]
[null,null,null,null,"zvkx10_c665__TY0V01","*=Kostenverzamelstaat!$I$90","","Geneeskundige GGZ- basis GGZ- incl balans","zvkx10","c665","","TY0V01","Euro's",null,"N","",1]
[null,null,null,null,"zvkx10_c665__TY1V01","*=Kostenverzamelstaat!$K$90","","Geneeskundige GGZ- basis GGZ- incl balans","zvkx10","c665","","TY1V01","Euro's",null,"N","",1]
[null,null,null,null,"zvkx10_c665__TY2V01","*=Kostenverzamelstaat!$M$90","","Geneeskundige GGZ- basis GGZ- incl balans","zvkx10","c665","","TY2V01","Euro's",null,"N","",1]
[null,null,null,null,"zvkx11_a670__TY0V01","*=Kostenverzamelstaat!$J$93","","Geriatische revalidatiezorg-- geaccepteerd","zvkx11","a670","","TY0V01","Euro's",null,"N","",1]
[null,null,null,null,"zvkx11_a670__TY1V01","*=Kostenverzamelstaat!$L$93","","Geriatische revalidatiezorg-- geaccepteerd","zvkx11","a670","","TY1V01","Euro's",null,"N","",1]
[null,null,null,null,"zvkx11_a670__TY2V01","*=Kostenverzamelstaat!$N$93","","Geriatische revalidatiezorg-- geaccepteerd","zvkx11","a670","","TY2V01","Euro's",null,"N","",1]
[null,null,null,null,"zvkx11_a671__TY0V01","*=Kostenverzamelstaat!$J$94","","Geriatische revalidatiezorg- Eerstelijnsverblijf- geaccepteerd","zvkx11","a671","","TY0V01","Euro's",null,"N","",1]
[null,null,null,null,"zvkx11_a671__TY1V01","*=Kostenverzamelstaat!$L$94","","Geriatische revalidatiezorg- Eerstelijnsverblijf- geaccepteerd","zvkx11","a671","","TY1V01","Euro's",null,"N","",1]
[null,null,null,null,"zvkx11_a671__TY2V01","*=Kostenverzamelstaat!$N$94","","Geriatische revalidatiezorg- Eerstelijnsverblijf- geaccepteerd","zvkx11","a671","","TY2V01","Euro's",null,"N","",1]
[null,null,null,null,"zvkx11_a672__TY0V01","*=Kostenverzamelstaat!$J$95",null,"Geriatische revalidatiezorg- GZSP- geaccepteerd","zvkx11","a672","","TY0V01","Euro's",null,"N","",1]
[null,null,null,null,"zvkx11_a672__TY1V01","*=Kostenverzamelstaat!$L$95",null,"Geriatische revalidatiezorg- GZSP- geaccepteerd","zvkx11","a672","","TY1V01","Euro's",null,"N","",1]
[null,null,null,null,"zvkx11_a672__TY2V01","*=Kostenverzamelstaat!$N$95",null,"Geriatische revalidatiezorg- GZSP- geaccepteerd","zvkx11","a672","","TY2V01","Euro's",null,"N","",1]
[null,null,null,null,"zvkx11_c670__TY0V01","*=Kostenverzamelstaat!$I$93","","Geriatische revalidatiezorg- incl balans","zvkx11","c670","","TY0V01","Euro's",null,"N","",1]
[null,null,null,null,"zvkx11_c670__TY1V01","*=Kostenverzamelstaat!$K$93","","Geriatische revalidatiezorg- incl balans","zvkx11","c670","","TY1V01","Euro's",null,"N","",1]
[null,null,null,null,"zvkx11_c670__TY2V01","*=Kostenverzamelstaat!$M$93","","Geriatische revalidatiezorg- incl balans","zvkx11","c670","","TY2V01","Euro's",null,"N","",1]
[null,null,null,null,"zvkx11_c671__TY0V01","*=Kostenverzamelstaat!$I$94","","Geriatische revalidatiezorg- Eerstelijnsverblijf- incl balans","zvkx11","c671","","TY0V01","Euro's",null,"N","",1]
[null,null,null,null,"zvkx11_c671__TY1V01","*=Kostenverzamelstaat!$K$94","","Geriatische revalidatiezorg- Eerstelijnsverblijf- incl balans","zvkx11","c671","","TY1V01","Euro's",null,"N","",1]
[null,null,null,null,"zvkx11_c671__TY2V01","*=Kostenverzamelstaat!$M$94","","Geriatische revalidatiezorg- Eerstelijnsverblijf- incl balans","zvkx11","c671","","TY2V01","Euro's",null,"N","",1]
[null,null,null,null,"zvkx11_c672__TY0V01","*=Kostenverzamelstaat!$I$95",null,"Geriatische revalidatiezorg- GZSP- incl balans","zvkx11","a672","","TY0V01","Euro's",null,"N","",1]
[null,null,null,null,"zvkx11_c672__TY1V01","*=Kostenverzamelstaat!$K$95",null,"Geriatische revalidatiezorg- GZSP- incl balans","zvkx11","a672","","TY1V01","Euro's",null,"N","",1]
[null,null,null,null,"zvkx11_c672__TY2V01","*=Kostenverzamelstaat!$M$95",null,"Geriatische revalidatiezorg- GZSP- incl balans","zvkx11","a672","","TY2V01","Euro's",null,"N","",1]
[null,null,null,null,"zvkx12_a680__TY0V01","*=Kostenverzamelstaat!$J$98","","Kraamzorg-- geaccepteerd","zvkx12","a680","","TY0V01","Euro's",null,"N","",1]
[null,null,null,null,"zvkx12_a680__TY1V01","*=Kostenverzamelstaat!$L$98","","Kraamzorg-- geaccepteerd","zvkx12","a680","","TY1V01","Euro's",null,"N","",1]
[null,null,null,null,"zvkx12_a680__TY2V01","*=Kostenverzamelstaat!$N$98","","Kraamzorg-- geaccepteerd","zvkx12","a680","","TY2V01","Euro's",null,"N","",1]
[null,null,null,null,"zvkx12_c680__TY0V01","*=Kostenverzamelstaat!$I$98","","Kraamzorg-- incl balans","zvkx12","c680","","TY0V01","Euro's",null,"N","",1]
[null,null,null,null,"zvkx12_c680__TY1V01","*=Kostenverzamelstaat!$K$98","","Kraamzorg-- incl balans","zvkx12","c680","","TY1V01","Euro's",null,"N","",1]
[null,null,null,null,"zvkx12_c680__TY2V01","*=Kostenverzamelstaat!$M$98","","Kraamzorg-- incl balans","zvkx12","c680","","TY2V01","Euro's",null,"N","",1]
[null,null,null,null,"zvkx13_a700__TY0V01","*=Kostenverzamelstaat!$J$100","","Overige kosten-- geaccepteerd","zvkx13","a700","","TY0V01","Euro's",null,"N","",1]
[null,null,null,null,"zvkx13_a700__TY1V01","*=Kostenverzamelstaat!$L$100","","Overige kosten-- geaccepteerd","zvkx13","a700","","TY1V01","Euro's",null,"N","",1]
[null,null,null,null,"zvkx13_a700__TY2V01","*=Kostenverzamelstaat!$N$100","","Overige kosten-- geaccepteerd","zvkx13","a700","","TY2V01","Euro's",null,"N","",1]
[null,null,null,null,"zvkx13_a701__TY0V01","*=Kostenverzamelstaat!$J$101","","Overige kosten- geneeskundige zorg- geaccepteerd","zvkx13","a701","","TY0V01","Euro's",null,"N","",1]
[null,null,null,null,"zvkx13_a701__TY1V01","*=Kostenverzamelstaat!$L$101","","Overige kosten- geneeskundige zorg- geaccepteerd","zvkx13","a701","","TY1V01","Euro's",null,"N","",1]
[null,null,null,null,"zvkx13_a701__TY2V01","*=Kostenverzamelstaat!$N$101","","Overige kosten- geneeskundige zorg- geaccepteerd","zvkx13","a701","","TY2V01","Euro's",null,"N","",1]
[null,null,null,null,"zvkx13_a702__TY0V01","*=Kostenverzamelstaat!$J$102","","Overige kosten- zintuiglijk gehandicapten- geaccepteerd","zvkx13","a702","","TY0V01","Euro's",null,"N","",1]
[null,null,null,null,"zvkx13_a702__TY1V01","*=Kostenverzamelstaat!$L$102","","Overige kosten- zintuiglijk gehandicapten- geaccepteerd","zvkx13","a702","","TY1V01","Euro's",null,"N","",1]
[null,null,null,null,"zvkx13_a702__TY2V01","*=Kostenverzamelstaat!$N$102","","Overige kosten- zintuiglijk gehandicapten- geaccepteerd","zvkx13","a702","","TY2V01","Euro's",null,"N","",1]
[null,null,null,null,"zvkx13_c700__TY0V01","*=Kostenverzamelstaat!$I$100","","Overige kosten-- incl balans","zvkx13","c700","","TY0V01","Euro's",null,"N","",1]
[null,null,null,null,"zvkx13_c700__TY1V01","*=Kostenverzamelstaat!$K$100","","Overige kosten-- incl balans","zvkx13","c700","","TY1V01","Euro's",null,"N","",1]
[null,null,null,null,"zvkx13_c700__TY2V01","*=Kostenverzamelstaat!$M$100","","Overige kosten-- incl balans","zvkx13","c700","","TY2V01","Euro's",null,"N","",1]
[null,null,null,null,"zvkx13_c701__TY0V01","*=Kostenverzamelstaat!$I$101","","Overige kosten- geneeskundige zorg- incl balans","zvkx13","c701","","TY0V01","Euro's",null,"N","",1]
[null,null,null,null,"zvkx13_c701__TY1V01","*=Kostenverzamelstaat!$K$101","","Overige kosten- geneeskundige zorg- incl balans","zvkx13","c701","","TY1V01","Euro's",null,"N","",1]
[null,null,null,null,"zvkx13_c701__TY2V01","*=Kostenverzamelstaat!$M$101","","Overige kosten- geneeskundige zorg- incl balans","zvkx13","c701","","TY2V01","Euro's",null,"N","",1]
[null,null,null,null,"zvkx13_c702__TY0V01","*=Kostenverzamelstaat!$I$102","","Overige kosten- zintuiglijk gehandicapten- incl balans","zvkx13","c702","","TY0V01","Euro's",null,"N","",1]
[null,null,null,null,"zvkx13_c702__TY1V01","*=Kostenverzamelstaat!$K$102","","Overige kosten- zintuiglijk gehandicapten- incl balans","zvkx13","c702","","TY1V01","Euro's",null,"N","",1]
[null,null,null,null,"zvkx13_c702__TY2V01","*=Kostenverzamelstaat!$M$102","","Overige kosten- zintuiglijk gehandicapten- incl balans","zvkx13","c702","","TY2V01","Euro's",null,"N","",1]
[null,null,null,null,"zvkx15_a720__TY0V01","*=Kostenverzamelstaat!$J$105","","Grensoverschrijdende zorg- via verzekeraar- geaccepteerd","zvkx15","a722","","TY0V01","Euro's",null,"N","",1]
[null,null,null,null,"zvkx15_a720__TY1V01","*=Kostenverzamelstaat!$L$105","","Grensoverschrijdende zorg- via verzekeraar- geaccepteerd","zvkx15","a722","","TY1V01","Euro's",null,"N","",1]
[null,null,null,null,"zvkx15_a720__TY2V01","*=Kostenverzamelstaat!$N$105","","Grensoverschrijdende zorg- via verzekeraar- geaccepteerd","zvkx15","a722","","TY2V01","Euro's",null,"N","",1]
[null,null,null,null,"zvkx15_a721__TY0V01","*=Kostenverzamelstaat!J106","","Grensoverschrijdende zorg- via verbindingsorgaan- geaccepteerd","zvkx15","a721","","TY0V01","Euro's",null,"N","",1]
[null,null,null,null,"zvkx15_a721__TY1V01","*=Kostenverzamelstaat!L106","","Grensoverschrijdende zorg- via verbindingsorgaan- geaccepteerd","zvkx15","a721","","TY1V01","Euro's",null,"N","",1]
[null,null,null,null,"zvkx15_a721__TY2V01","*=Kostenverzamelstaat!N106","","Grensoverschrijdende zorg- via verbindingsorgaan- geaccepteerd","zvkx15","a721","","TY2V01","Euro's",null,"N","",1]
[null,null,null,null,"zvkx15_c720__TY0V01","*=Kostenverzamelstaat!$I$105","","Grensoverschrijdende zorg- via verzekeraar- incl balans","zvkx15","c722","","TY0V01","Euro's",null,"N","",1]
[null,null,null,null,"zvkx15_c720__TY1V01","*=Kostenverzamelstaat!$K$105","","Grensoverschrijdende zorg- via verzekeraar- incl balans","zvkx15","c722","","TY1V01","Euro's",null,"N","",1]
[null,null,null,null,"zvkx15_c720__TY2V01","*=Kostenverzamelstaat!$M$105","","Grensoverschrijdende zorg- via verzekeraar- incl balans","zvkx15","c722","","TY2V01","Euro's",null,"N","",1]
[null,null,null,null,"zvkx15_c721__TY0V01","*=Kostenverzamelstaat!I106","","Grensoverschrijdende zorg- via verbindingsorgaan- incl balans","zvkx15","c721","","TY0V01","Euro's",null,"N","",1]
[null,null,null,null,"zvkx15_c721__TY1V01","*=Kostenverzamelstaat!K106","","Grensoverschrijdende zorg- via verbindingsorgaan- incl balans","zvkx15","c721","","TY1V01","Euro's",null,"N","",1]
[null,null,null,null,"zvkx15_c721__TY2V01","*=Kostenverzamelstaat!M106","","Grensoverschrijdende zorg- via verbindingsorgaan- incl balans","zvkx15","c721","","TY2V01","Euro's",null,"N","",1]
[null,null,null,null,"zvkx16_a730__TY0V01","*=Kostenverzamelstaat!$J$109","","Kwaliteitsgelden-- geaccepteerd","zvkx16","a730","","TY0V01","Euro's",null,"N","",1]
[null,null,null,null,"zvkx16_a730__TY1V01","*=Kostenverzamelstaat!$L$109","","Kwaliteitsgelden-- geaccepteerd","zvkx16","a730","","TY1V01","Euro's",null,"N","",1]
[null,null,null,null,"zvkx16_a730__TY2V01","*=Kostenverzamelstaat!$N$109","","Kwaliteitsgelden-- geaccepteerd","zvkx16","a730","","TY2V01","Euro's",null,"N","",1]
[null,null,null,null,"zvkx16_c730__TY0V01","*=Kostenverzamelstaat!$I$109","","Kwaliteitsgelden-- incl balans","zvkx16","c730","","TY0V01","Euro's",null,"N","",1]
[null,null,null,null,"zvkx16_c730__TY1V01","*=Kostenverzamelstaat!$K$109","","Kwaliteitsgelden-- incl balans","zvkx16","c730","","TY1V01","Euro's",null,"N","",1]
[null,null,null,null,"zvkx16_c730__TY2V01","*=Kostenverzamelstaat!$M$109","","Kwaliteitsgelden-- incl balans","zvkx16","c730","","TY2V01","Euro's",null,"N","",1]
[null,null,null,null,"zvkxdnb_a8901__TY0V01","*=Kostenverzamelstaat!$J$120","","Verschilposten DNB- Opbrengsten verhaal- geaccepteerd","zvkxdnb","a8901","","TY0V01","Euro's",null,"N","",1]
[null,null,null,null,"zvkxdnb_a8901__TY1V01","*=Kostenverzamelstaat!$L$120","","Verschilposten DNB- Opbrengsten verhaal- geaccepteerd","zvkxdnb","a8901","","TY1V01","Euro's",null,"N","",1]
[null,null,null,null,"zvkxdnb_a8901__TY2V01","*=Kostenverzamelstaat!$N$120","","Verschilposten DNB- Opbrengsten verhaal- geaccepteerd","zvkxdnb","a8901","","TY2V01","Euro's",null,"N","",1]
[null,null,null,null,"zvkxdnb_a910__TY0V01","*=Kostenverzamelstaat!$J$121","","Verschilposten DNB- Schade tlv het vrijwillig eigen risico- geaccepteerd","zvkxdnb","a910","","TY0V01","Euro's",null,"N","",1]
[null,null,null,null,"zvkxdnb_a910__TY1V01","*=Kostenverzamelstaat!$L$121","","Verschilposten DNB- Schade tlv het vrijwillig eigen risico- geaccepteerd","zvkxdnb","a910","","TY1V01","Euro's",null,"N","",1]
[null,null,null,null,"zvkxdnb_a910__TY2V01","*=Kostenverzamelstaat!$N$121","","Verschilposten DNB- Schade tlv het vrijwillig eigen risico- geaccepteerd","zvkxdnb","a910","","TY2V01","Euro's",null,"N","",1]
[null,null,null,null,"zvkxdnb_a915__TY0V01","*=Kostenverzamelstaat!$J$122","","Verschilposten DNB- Schade tlv het verplicht eigen risico- geaccepteerd","zvkxdnb","a915","","TY0V01","Euro's",null,"N","",1]
[null,null,null,null,"zvkxdnb_a915__TY1V01","*=Kostenverzamelstaat!$L$122","","Verschilposten DNB- Schade tlv het verplicht eigen risico- geaccepteerd","zvkxdnb","a915","","TY1V01","Euro's",null,"N","",1]
[null,null,null,null,"zvkxdnb_a915__TY2V01","*=Kostenverzamelstaat!$N$122","","Verschilposten DNB- Schade tlv het verplicht eigen risico- geaccepteerd","zvkxdnb","a915","","TY2V01","Euro's",null,"N","",1]
[null,null,null,null,"zvkxdnb_a940__TY0V01","*=Kostenverzamelstaat!$J$123","","Verschilposten DNB- Netto Premieopbrengsten- geaccepteerd","zvkxdnb","a940","","TY0V01","Euro's",null,"N","",1]
[null,null,null,null,"zvkxdnb_a940__TY1V01","*=Kostenverzamelstaat!$L$123","","Verschilposten DNB- Netto Premieopbrengsten- geaccepteerd","zvkxdnb","a940","","TY1V01","Euro's",null,"N","",1]
[null,null,null,null,"zvkxdnb_a940__TY2V01","*=Kostenverzamelstaat!$N$123","","Verschilposten DNB- Netto Premieopbrengsten- geaccepteerd","zvkxdnb","a940","","TY2V01","Euro's",null,"N","",1]
[null,null,null,null,"zvkxdnb_c8901__TY0V01","*=Kostenverzamelstaat!$I$120","","Verschilposten DNB- Opbrengsten verhaal- incl balans","zvkxdnb","c8901","","TY0V01","Euro's",null,"N","",1]
[null,null,null,null,"zvkxdnb_c8901__TY1V01","*=Kostenverzamelstaat!$K$120","","Verschilposten DNB- Opbrengsten verhaal- incl balans","zvkxdnb","c8901","","TY1V01","Euro's",null,"N","",1]
[null,null,null,null,"zvkxdnb_c8901__TY2V01","*=Kostenverzamelstaat!$M$120","","Verschilposten DNB- Opbrengsten verhaal- incl balans","zvkxdnb","c8901","","TY2V01","Euro's",null,"N","",1]
[null,null,null,null,"zvkxdnb_c910__TY0V01","*=Kostenverzamelstaat!$I$121","","Verschilposten DNB- Schade tlv het vrijwillig eigen risico- incl balans","zvkxdnb","c910","","TY0V01","Euro's",null,"N","",1]
[null,null,null,null,"zvkxdnb_c910__TY1V01","*=Kostenverzamelstaat!$K$121","","Verschilposten DNB- Schade tlv het vrijwillig eigen risico- incl balans","zvkxdnb","c910","","TY1V01","Euro's",null,"N","",1]
[null,null,null,null,"zvkxdnb_c910__TY2V01","*=Kostenverzamelstaat!$M$121","","Verschilposten DNB- Schade tlv het vrijwillig eigen risico- incl balans","zvkxdnb","c910","","TY2V01","Euro's",null,"N","",1]
[null,null,null,null,"zvkxdnb_c915__TY0V01","*=Kostenverzamelstaat!$I$122","","Verschilposten DNB- Schade tlv het verplicht eigen risico- incl balans","zvkxdnb","c915","","TY0V01","Euro's",null,"N","",1]
[null,null,null,null,"zvkxdnb_c915__TY1V01","*=Kostenverzamelstaat!$K$122","","Verschilposten DNB- Schade tlv het verplicht eigen risico- incl balans","zvkxdnb","c915","","TY1V01","Euro's",null,"N","",1]
[null,null,null,null,"zvkxdnb_c915__TY2V01","*=Kostenverzamelstaat!$M$122","","Verschilposten DNB- Schade tlv het verplicht eigen risico- incl balans","zvkxdnb","c915","","TY2V01","Euro's",null,"N","",1]
[null,null,null,null,"zvkxdnb_c940__TY0V01","*=Kostenverzamelstaat!$I$123","","Verschilposten DNB- Netto Premieopbrengsten- incl balans","zvkxdnb","c940","","TY0V01","Euro's",null,"N","",1]
[null,null,null,null,"zvkxdnb_c940__TY1V01","*=Kostenverzamelstaat!$K$123","","Verschilposten DNB- Netto Premieopbrengsten- incl balans","zvkxdnb","c940","","TY1V01","Euro's",null,"N","",1]
[null,null,null,null,"zvkxdnb_c940__TY2V01","*=Kostenverzamelstaat!$M$123","","Verschilposten DNB- Netto Premieopbrengsten- incl balans","zvkxdnb","c940","","TY2V01","Euro's",null,"N","",1]
[null,null,null,null,"zvpxlft_m981_lft01a_m04V01","*='Specifieke informatie A'!$I$59","","Verzekerden risicoklasse- 00 t/m 01- man","zvpxlft","m981","lft01a","m04V01","Verzekerden",null,"N",""]
[null,null,null,null,"zvpxlft_m981_lft01b_m04V01","*='Specifieke informatie A'!$I$60","","Verzekerden risicoklasse- 02 t/m 04- man","zvpxlft","m981","lft01b","m04V01","Verzekerden",null,"N",""]
[null,null,null,null,"zvpxlft_m981_lft02_m04V01","*='Specifieke informatie A'!$I$61","","Verzekerden risicoklasse- 05 t/m 09- man","zvpxlft","m981","lft02","m04V01","Verzekerden",null,"N",""]
[null,null,null,null,"zvpxlft_m981_lft03_m04V01","*='Specifieke informatie A'!$I$62","","Verzekerden risicoklasse- 10 t/m 14- man","zvpxlft","m981","lft03","m04V01","Verzekerden",null,"N",""]
[null,null,null,null,"zvpxlft_m981_lft04_m04V01","*='Specifieke informatie A'!$I$63","","Verzekerden risicoklasse- 15 t/m 19- man","zvpxlft","m981","lft04","m04V01","Verzekerden",null,"N",""]
[null,null,null,null,"zvpxlft_m981_lft05_m04V01","*='Specifieke informatie A'!$I$64","","Verzekerden risicoklasse- 20 t/m 24- man","zvpxlft","m981","lft05","m04V01","Verzekerden",null,"N",""]
[null,null,null,null,"zvpxlft_m981_lft06_m04V01","*='Specifieke informatie A'!$I$65","","Verzekerden risicoklasse- 25 t/m 29- man","zvpxlft","m981","lft06","m04V01","Verzekerden",null,"N",""]
[null,null,null,null,"zvpxlft_m981_lft07_m04V01","*='Specifieke informatie A'!$I$66","","Verzekerden risicoklasse- 30 t/m 34- man","zvpxlft","m981","lft07","m04V01","Verzekerden",null,"N",""]
[null,null,null,null,"zvpxlft_m981_lft08_m04V01","*='Specifieke informatie A'!$I$67","","Verzekerden risicoklasse- 35 t/m 39- man","zvpxlft","m981","lft08","m04V01","Verzekerden",null,"N",""]
[null,null,null,null,"zvpxlft_m981_lft09_m04V01","*='Specifieke informatie A'!$I$68","","Verzekerden risicoklasse- 40 t/m 44- man","zvpxlft","m981","lft09","m04V01","Verzekerden",null,"N",""]
[null,null,null,null,"zvpxlft_m981_lft10_m04V01","*='Specifieke informatie A'!$I$69","","Verzekerden risicoklasse- 45 t/m 49- man","zvpxlft","m981","lft10","m04V01","Verzekerden",null,"N",""]
[null,null,null,null,"zvpxlft_m981_lft11_m04V01","*='Specifieke informatie A'!$I$70","","Verzekerden risicoklasse- 50 t/m 54- man","zvpxlft","m981","lft11","m04V01","Verzekerden",null,"N",""]
[null,null,null,null,"zvpxlft_m981_lft12_m04V01","*='Specifieke informatie A'!$I$71","","Verzekerden risicoklasse- 55 t/m 59- man","zvpxlft","m981","lft12","m04V01","Verzekerden",null,"N",""]
[null,null,null,null,"zvpxlft_m981_lft13_m04V01","*='Specifieke informatie A'!$I$72","","Verzekerden risicoklasse- 60 t/m 64- man","zvpxlft","m981","lft13","m04V01","Verzekerden",null,"N",""]
[null,null,null,null,"zvpxlft_m981_lft14_m04V01","*='Specifieke informatie A'!$I$73","","Verzekerden risicoklasse- 65 t/m 69- man","zvpxlft","m981","lft14","m04V01","Verzekerden",null,"N",""]
[null,null,null,null,"zvpxlft_m981_lft15_m04V01","*='Specifieke informatie A'!$I$74","","Verzekerden risicoklasse- 70 t/m 74- man","zvpxlft","m981","lft15","m04V01","Verzekerden",null,"N",""]
[null,null,null,null,"zvpxlft_m981_lft16_m04V01","*='Specifieke informatie A'!$I$75","","Verzekerden risicoklasse- 75 t/m 79- man","zvpxlft","m981","lft16","m04V01","Verzekerden",null,"N",""]
[null,null,null,null,"zvpxlft_m981_lft17_m04V01","*='Specifieke informatie A'!$I$76","","Verzekerden risicoklasse- 80 t/m 84- man","zvpxlft","m981","lft17","m04V01","Verzekerden",null,"N",""]
[null,null,null,null,"zvpxlft_m981_lft18_m04V01","*='Specifieke informatie A'!$I$77","","Verzekerden risicoklasse- 85 t/m 89- man","zvpxlft","m981","lft18","m04V01","Verzekerden",null,"N",""]
[null,null,null,null,"zvpxlft_m981_lft19_m04V01","*='Specifieke informatie A'!$I$78","","Verzekerden risicoklasse- 90 en ouder- man","zvpxlft","m981","lft19","m04V01","Verzekerden",null,"N",""]
[null,null,null,null,"zvpxlft_v981_lft01a_m04V01","*='Specifieke informatie A'!$J$59","","Verzekerden risicoklasse- 00 t/m 01- vrouw","zvpxlft","v981","lft01a","m04V01","Verzekerden",null,"N",""]
[null,null,null,null,"zvpxlft_v981_lft01b_m04V01","*='Specifieke informatie A'!$J$60","","Verzekerden risicoklasse- 02 t/m 04- vrouw","zvpxlft","v981","lft01b","m04V01","Verzekerden",null,"N",""]
[null,null,null,null,"zvpxlft_v981_lft02_m04V01","*='Specifieke informatie A'!$J$61","","Verzekerden risicoklasse- 05 t/m 09- vrouw","zvpxlft","v981","lft02","m04V01","Verzekerden",null,"N",""]
[null,null,null,null,"zvpxlft_v981_lft03_m04V01","*='Specifieke informatie A'!$J$62","","Verzekerden risicoklasse- 10 t/m 14- vrouw","zvpxlft","v981","lft03","m04V01","Verzekerden",null,"N",""]
[null,null,null,null,"zvpxlft_v981_lft04_m04V01","*='Specifieke informatie A'!$J$63","","Verzekerden risicoklasse- 15 t/m 19- vrouw","zvpxlft","v981","lft04","m04V01","Verzekerden",null,"N",""]
[null,null,null,null,"zvpxlft_v981_lft05_m04V01","*='Specifieke informatie A'!$J$64","","Verzekerden risicoklasse- 20 t/m 24- vrouw","zvpxlft","v981","lft05","m04V01","Verzekerden",null,"N",""]
[null,null,null,null,"zvpxlft_v981_lft06_m04V01","*='Specifieke informatie A'!$J$65","","Verzekerden risicoklasse- 25 t/m 29- vrouw","zvpxlft","v981","lft06","m04V01","Verzekerden",null,"N",""]
[null,null,null,null,"zvpxlft_v981_lft07_m04V01","*='Specifieke informatie A'!$J$66","","Verzekerden risicoklasse- 30 t/m 34- vrouw","zvpxlft","v981","lft07","m04V01","Verzekerden",null,"N",""]
[null,null,null,null,"zvpxlft_v981_lft08_m04V01","*='Specifieke informatie A'!$J$67","","Verzekerden risicoklasse- 35 t/m 39- vrouw","zvpxlft","v981","lft08","m04V01","Verzekerden",null,"N",""]
[null,null,null,null,"zvpxlft_v981_lft09_m04V01","*='Specifieke informatie A'!$J$68","","Verzekerden risicoklasse- 40 t/m 44- vrouw","zvpxlft","v981","lft09","m04V01","Verzekerden",null,"N",""]
[null,null,null,null,"zvpxlft_v981_lft10_m04V01","*='Specifieke informatie A'!$J$69","","Verzekerden risicoklasse- 45 t/m 49- vrouw","zvpxlft","v981","lft10","m04V01","Verzekerden",null,"N",""]
[null,null,null,null,"zvpxlft_v981_lft11_m04V01","*='Specifieke informatie A'!$J$70","","Verzekerden risicoklasse- 50 t/m 54- vrouw","zvpxlft","v981","lft11","m04V01","Verzekerden",null,"N",""]
[null,null,null,null,"zvpxlft_v981_lft12_m04V01","*='Specifieke informatie A'!$J$71","","Verzekerden risicoklasse- 55 t/m 59- vrouw","zvpxlft","v981","lft12","m04V01","Verzekerden",null,"N",""]
[null,null,null,null,"zvpxlft_v981_lft13_m04V01","*='Specifieke informatie A'!$J$72","","Verzekerden risicoklasse- 60 t/m 64- vrouw","zvpxlft","v981","lft13","m04V01","Verzekerden",null,"N",""]
[null,null,null,null,"zvpxlft_v981_lft14_m04V01","*='Specifieke informatie A'!$J$73","","Verzekerden risicoklasse- 65 t/m 69- vrouw","zvpxlft","v981","lft14","m04V01","Verzekerden",null,"N",""]
[null,null,null,null,"zvpxlft_v981_lft15_m04V01","*='Specifieke informatie A'!$J$74","","Verzekerden risicoklasse- 70 t/m 74- vrouw","zvpxlft","v981","lft15","m04V01","Verzekerden",null,"N",""]
[null,null,null,null,"zvpxlft_v981_lft16_m04V01","*='Specifieke informatie A'!$J$75","","Verzekerden risicoklasse- 75 t/m 79- vrouw","zvpxlft","v981","lft16","m04V01","Verzekerden",null,"N",""]
[null,null,null,null,"zvpxlft_v981_lft17_m04V01","*='Specifieke informatie A'!$J$76","","Verzekerden risicoklasse- 80 t/m 84- vrouw","zvpxlft","v981","lft17","m04V01","Verzekerden",null,"N",""]
[null,null,null,null,"zvpxlft_v981_lft18_m04V01","*='Specifieke informatie A'!$J$77","","Verzekerden risicoklasse- 85 t/m 89- vrouw","zvpxlft","v981","lft18","m04V01","Verzekerden",null,"N",""]
[null,null,null,null,"zvpxlft_v981_lft19_m04V01","*='Specifieke informatie A'!$J$78","","Verzekerden risicoklasse- 90 en ouder- vrouw","zvpxlft","v981","lft19","m04V01","Verzekerden",null,"N",""]
[null,null,null,null,"zvpxlft_o981_lft01a_m04V01","*='Specifieke informatie A'!$K$59","","Verzekerden risicoklasse- 00 t/m 01- onbepaald","zvpxlft","v981","lft01a","m04V01","Verzekerden",null,"N",""]
[null,null,null,null,"zvpxlft_o981_lft01b_m04V01","*='Specifieke informatie A'!$K$60","","Verzekerden risicoklasse- 02 t/m 04- onbepaald","zvpxlft","v981","lft01b","m04V01","Verzekerden",null,"N",""]
[null,null,null,null,"zvpxlft_o981_lft02_m04V01","*='Specifieke informatie A'!$K$61","","Verzekerden risicoklasse- 05 t/m 09- onbepaald","zvpxlft","v981","lft02","m04V01","Verzekerden",null,"N",""]
[null,null,null,null,"zvpxlft_o981_lft03_m04V01","*='Specifieke informatie A'!$K$62","","Verzekerden risicoklasse- 10 t/m 14- onbepaald","zvpxlft","v981","lft03","m04V01","Verzekerden",null,"N",""]
[null,null,null,null,"zvpxlft_o981_lft04_m04V01","*='Specifieke informatie A'!$K$63","","Verzekerden risicoklasse- 15 t/m 19- onbepaald","zvpxlft","v981","lft04","m04V01","Verzekerden",null,"N",""]
[null,null,null,null,"zvpxlft_o981_lft05_m04V01","*='Specifieke informatie A'!$K$64","","Verzekerden risicoklasse- 20 t/m 24- onbepaald","zvpxlft","v981","lft05","m04V01","Verzekerden",null,"N",""]
[null,null,null,null,"zvpxlft_o981_lft06_m04V01","*='Specifieke informatie A'!$K$65","","Verzekerden risicoklasse- 25 t/m 29- onbepaald","zvpxlft","v981","lft06","m04V01","Verzekerden",null,"N",""]
[null,null,null,null,"zvpxlft_o981_lft07_m04V01","*='Specifieke informatie A'!$K$66","","Verzekerden risicoklasse- 30 t/m 34- onbepaald","zvpxlft","v981","lft07","m04V01","Verzekerden",null,"N",""]
[null,null,null,null,"zvpxlft_o981_lft08_m04V01","*='Specifieke informatie A'!$K$67","","Verzekerden risicoklasse- 35 t/m 39- onbepaald","zvpxlft","v981","lft08","m04V01","Verzekerden",null,"N",""]
[null,null,null,null,"zvpxlft_o981_lft09_m04V01","*='Specifieke informatie A'!$K$68","","Verzekerden risicoklasse- 40 t/m 44- onbepaald","zvpxlft","v981","lft09","m04V01","Verzekerden",null,"N",""]
[null,null,null,null,"zvpxlft_o981_lft10_m04V01","*='Specifieke informatie A'!$K$69","","Verzekerden risicoklasse- 45 t/m 49- onbepaald","zvpxlft","v981","lft10","m04V01","Verzekerden",null,"N",""]
[null,null,null,null,"zvpxlft_o981_lft11_m04V01","*='Specifieke informatie A'!$K$70","","Verzekerden risicoklasse- 50 t/m 54- onbepaald","zvpxlft","v981","lft11","m04V01","Verzekerden",null,"N",""]
[null,null,null,null,"zvpxlft_o981_lft12_m04V01","*='Specifieke informatie A'!$K$71","","Verzekerden risicoklasse- 55 t/m 59- onbepaald","zvpxlft","v981","lft12","m04V01","Verzekerden",null,"N",""]
[null,null,null,null,"zvpxlft_o981_lft13_m04V01","*='Specifieke informatie A'!$K$72","","Verzekerden risicoklasse- 60 t/m 64- onbepaald","zvpxlft","v981","lft13","m04V01","Verzekerden",null,"N",""]
[null,null,null,null,"zvpxlft_o981_lft14_m04V01","*='Specifieke informatie A'!$K$73","","Verzekerden risicoklasse- 65 t/m 69- onbepaald","zvpxlft","v981","lft14","m04V01","Verzekerden",null,"N",""]
[null,null,null,null,"zvpxlft_o981_lft15_m04V01","*='Specifieke informatie A'!$K$74","","Verzekerden risicoklasse- 70 t/m 74- onbepaald","zvpxlft","v981","lft15","m04V01","Verzekerden",null,"N",""]
[null,null,null,null,"zvpxlft_o981_lft16_m04V01","*='Specifieke informatie A'!$K$75","","Verzekerden risicoklasse- 75 t/m 79- onbepaald","zvpxlft","v981","lft16","m04V01","Verzekerden",null,"N",""]
[null,null,null,null,"zvpxlft_o981_lft17_m04V01","*='Specifieke informatie A'!$K$76","","Verzekerden risicoklasse- 80 t/m 84- onbepaald","zvpxlft","v981","lft17","m04V01","Verzekerden",null,"N",""]
[null,null,null,null,"zvpxlft_o981_lft18_m04V01","*='Specifieke informatie A'!$K$77","","Verzekerden risicoklasse- 85 t/m 89- onbepaald","zvpxlft","v981","lft18","m04V01","Verzekerden",null,"N",""]
[null,null,null,null,"zvpxlft_o981_lft19_m04V01","*='Specifieke informatie A'!$K$78","","Verzekerden risicoklasse- 90 en ouder- onbepaald","zvpxlft","v981","lft19","m04V01","Verzekerden",null,"N",""]
[null,null,null,null,"zvpxprm_s981_nomn_m04V01","*='Specifieke informatie A'!$L$85","","Verzekerden premiekenmerk- zonder nominale premie ZVW","zvpxprm","s981","nomn","m04V01","Verzekerden",null,"N",""]
[null,null,null,null,"zvpxprm_s981_nomy_m04V01","*='Specifieke informatie A'!$L$84","","Verzekerden premiekenmerk- met nominale premie ZVW","zvpxprm","s981","nomy","m04V01","Verzekerden",null,"N",""]
[null,null,null,null,"zvpxwnb_s982_d2m_m01V01","*=Wanbetalers!$I$12","","Wanbetalers- achterstand 2 of 3 maanden","zvpxwnb","s982","d2m","m01V01","Wanbetalers",null,"N",""]
[null,null,null,null,"zvpxwnb_s982_d2m_m02V01","*=Wanbetalers!$J$12","","Wanbetalers- achterstand 2 of 3 maanden","zvpxwnb","s982","d2m","m02V01","Wanbetalers",null,"N",""]
[null,null,null,null,"zvpxwnb_s982_d2m_m03V01","*=Wanbetalers!$K$12","","Wanbetalers- achterstand 2 of 3 maanden","zvpxwnb","s982","d2m","m03V01","Wanbetalers",null,"N",""]
[null,null,null,null,"zvpxwnb_s982_d4m_m01V01","*=Wanbetalers!$I$13","","Wanbetalers- achterstand 4 of 5 maanden","zvpxwnb","s982","d4m","m01V01","Wanbetalers",null,"N",""]
[null,null,null,null,"zvpxwnb_s982_d4m_m02V01","*=Wanbetalers!$J$13","","Wanbetalers- achterstand 4 of 5 maanden","zvpxwnb","s982","d4m","m02V01","Wanbetalers",null,"N",""]
[null,null,null,null,"zvpxwnb_s982_d4m_m03V01","*=Wanbetalers!$K$13","","Wanbetalers- achterstand 4 of 5 maanden","zvpxwnb","s982","d4m","m03V01","Wanbetalers",null,"N",""]
[null,null,null,null,"zvpxwnb_s982_d6m_m01V01","*=Wanbetalers!$I$14","","Wanbetalers- achterstand 6 of meer maanden","zvpxwnb","s982","d6m","m01V01","Wanbetalers",null,"N",""]
[null,null,null,null,"zvpxwnb_s982_d6m_m02V01","*=Wanbetalers!$J$14","","Wanbetalers- achterstand 6 of meer maanden","zvpxwnb","s982","d6m","m02V01","Wanbetalers",null,"N",""]
[null,null,null,null,"zvpxwnb_s982_d6m_m03V01","*=Wanbetalers!$K$14","","Wanbetalers- achterstand 6 of meer maanden","zvpxwnb","s982","d6m","m03V01","Wanbetalers",null,"N",""]
[null,null,null,null,"zvpxwnb_s982_dm2b_m01V01","*=Wanbetalers!$I$17","","Wanbetalers- tweedemaandsbrieven","zvpxwnb","s982","dm2b","m01V01","Wanbetalers",null,"N",""]
[null,null,null,null,"zvpxwnb_s982_dm2b_m02V01","*=Wanbetalers!$J$17","","Wanbetalers- tweedemaandsbrieven","zvpxwnb","s982","dm2b","m02V01","Wanbetalers",null,"N",""]
[null,null,null,null,"zvpxwnb_s982_dm2b_m03V01","*=Wanbetalers!$K$17","","Wanbetalers- tweedemaandsbrieven","zvpxwnb","s982","dm2b","m03V01","Wanbetalers",null,"N",""]
[null,null,null,null,"zvpxwnb_s982_dm4b_m01V01","*=Wanbetalers!$I$18","","Wanbetalers- vierdemaandsbrieven","zvpxwnb","s982","dm4b","m01V01","Wanbetalers",null,"N",""]
[null,null,null,null,"zvpxwnb_s982_dm4b_m02V01","*=Wanbetalers!$J$18","","Wanbetalers- vierdemaandsbrieven","zvpxwnb","s982","dm4b","m02V01","Wanbetalers",null,"N",""]
[null,null,null,null,"zvpxwnb_s982_dm4b_m03V01","*=Wanbetalers!$K$18","","Wanbetalers- vierdemaandsbrieven","zvpxwnb","s982","dm4b","m03V01","Wanbetalers",null,"N",""]
[null,null,null,null,"zvpxwnb_s982_dr0e_m01V01","*=Wanbetalers!$I$22","","Wanbetalers- externe betalingsregeling","zvpxwnb","s982","dr0e","m01V01","Wanbetalers",null,"N",""]
[null,null,null,null,"zvpxwnb_s982_dr0e_m02V01","*=Wanbetalers!$J$22","","Wanbetalers- externe betalingsregeling","zvpxwnb","s982","dr0e","m02V01","Wanbetalers",null,"N",""]
[null,null,null,null,"zvpxwnb_s982_dr0e_m03V01","*=Wanbetalers!$K$22","","Wanbetalers- externe betalingsregeling","zvpxwnb","s982","dr0e","m03V01","Wanbetalers",null,"N",""]
[null,null,null,null,"zvpxwnb_s982_dr0i_m01V01","*=Wanbetalers!$I$21","","Wanbetalers- interne betalingsregeling","zvpxwnb","s982","dr0i","m01V01","Wanbetalers",null,"N",""]
[null,null,null,null,"zvpxwnb_s982_dr0i_m02V01","*=Wanbetalers!$J$21","","Wanbetalers- interne betalingsregeling","zvpxwnb","s982","dr0i","m02V01","Wanbetalers",null,"N",""]
[null,null,null,null,"zvpxwnb_s982_dr0i_m03V01","*=Wanbetalers!$K$21","","Wanbetalers- interne betalingsregeling","zvpxwnb","s982","dr0i","m03V01","Wanbetalers",null,"N",""]
[null,null,null,null,"zvpxwnb_s982_dr0s_m01V01","*=Wanbetalers!$I$23","","Wanbetalers- stabilisatieovereenkomst","zvpxwnb","s982","dr0s","m01V01","Wanbetalers",null,"N",""]
[null,null,null,null,"zvpxwnb_s982_dr0s_m02V01","*=Wanbetalers!$J$23","","Wanbetalers- stabilisatieovereenkomst","zvpxwnb","s982","dr0s","m02V01","Wanbetalers",null,"N",""]
[null,null,null,null,"zvpxwnb_s982_dr0s_m03V01","*=Wanbetalers!$K$23","","Wanbetalers- stabilisatieovereenkomst","zvpxwnb","s982","dr0s","m03V01","Wanbetalers",null,"N",""]
[null,null,null,null,"zvpxwnb_s982_dr81_m01V01","*=Wanbetalers!$I$26","","Wanbetalers- cak bdr < 250","zvpxwnb","s982","dr81","m01V01","Wanbetalers",null,"N",""]
[null,null,null,null,"zvpxwnb_s982_dr81_m02V01","*=Wanbetalers!$J$26","","Wanbetalers- cak bdr < 250","zvpxwnb","s982","dr81","m02V01","Wanbetalers",null,"N",""]
[null,null,null,null,"zvpxwnb_s982_dr81_m03V01","*=Wanbetalers!$K$26","","Wanbetalers- cak bdr < 250","zvpxwnb","s982","dr81","m03V01","Wanbetalers",null,"N",""]
[null,null,null,null,"zvpxwnb_s982_dr82_m01V01","*=Wanbetalers!$I$27","","Wanbetalers- cak 250 < bdr < 750","zvpxwnb","s982","dr82","m01V01","Wanbetalers",null,"N",""]
[null,null,null,null,"zvpxwnb_s982_dr82_m02V01","*=Wanbetalers!$J$27","","Wanbetalers- cak 250 < bdr < 750","zvpxwnb","s982","dr82","m02V01","Wanbetalers",null,"N",""]
[null,null,null,null,"zvpxwnb_s982_dr82_m03V01","*=Wanbetalers!$K$27","","Wanbetalers- cak 250 < bdr < 750","zvpxwnb","s982","dr82","m03V01","Wanbetalers",null,"N",""]
[null,null,null,null,"zvpxwnb_s982_dr83_m01V01","*=Wanbetalers!$I$28","","Wanbetalers- cak 750 < bdr","zvpxwnb","s982","dr83","m01V01","Wanbetalers",null,"N",""]
[null,null,null,null,"zvpxwnb_s982_dr83_m02V01","*=Wanbetalers!$J$28","","Wanbetalers- cak 750 < bdr","zvpxwnb","s982","dr83","m02V01","Wanbetalers",null,"N",""]
[null,null,null,null,"zvpxwnb_s982_dr83_m03V01","*=Wanbetalers!$K$28","","Wanbetalers- cak 750 < bdr","zvpxwnb","s982","dr83","m03V01","Wanbetalers",null,"N",""]

{"sheet":"Parameters","index":12,"n_rows":39,"n_cols":7,"rows_kept":39,"cut":false,"hidden":true,"merged":[[1,4,1,5]]}
[]
[null,"Kwartaal:",1,null,"HASHTOTALEN"]
[null,"Jaar:",2020,null,"Alle waarden tabblad specifieke informatie A",{"$f":"ROUND(SUM(alle_cellen_info_a),0)","v":{"$error":"#REF!"}},"Opm: kolom I..L"]
[null,"Wet:","ZVW",null,"Alle waarden tabblad specifieke informatie B",{"$f":"ROUND(SUM(alle_cellen_info_c),0)","v":219507},"Opm: kolom I..L"]
[null,"Document:",{"$f":"CONCATENATE(\"KS\",jaar_id,wet_id,\".\",kwartaal_id)","v":"KS2020ZVW.1"},null,"Alle waarden tabbladen specifieke informatie A en C",{"$f":"SUM(F3:F4)","v":{"$error":"#REF!"}},"Opm: kolom I..L"]
[null,"Revisie:","B"]
[null,"Revisiedatum:","2020-01-01"]
[null,"Versie:",{"$f":"CONCATENATE(document_id,revisie_id)","v":"KS2020ZVW.1B"}]
[]
[]
[]
[null,"NUMMER_UO","NAAM_UO","FORMAT_UO1"]
[null,"0000","KIES UW UZOVI-NUMMER",{"$f":"CONCATENATE(B13,\" \",C13)","v":"0000 KIES UW UZOVI-NUMMER"}]
[null,"0101","UNIVÉ ZORG","0101 UNIVÉ ZORG"]
[null,"0104","NATIONALE-NEDERLANDEN ZORG","0104 NATIONALE-NEDERLANDEN ZORG"]
[null,"0201","OHRA ZIEKTEKOSTENVERZEKERINGEN","0201 OHRA ZIEKTEKOSTENVERZEKERINGEN"]
[null,"0403","ASR ","0403 ASR "]
[null,"0699","IZA","0699 IZA"]
[null,"0736","UMC","0736 UMC"]
[null,"3311","ZILVEREN KRUIS","3311 ZILVEREN KRUIS"]
[null,"3313","INTERPOLIS","3313 INTERPOLIS"]
[null,"3329","AVERO",{"$f":"CONCATENATE(B22,\" \",C22)","v":"3329 AVERO"}]
[null,"3332","MENZIS","3332 MENZIS"]
[null,"3333","ANDERZORG","3333 ANDERZORG"]
[null,"3343","ONVZ",{"$f":"CONCATENATE(B25,\" \",C25)","v":"3343 ONVZ"}]
[null,"3347","ENO",{"$f":"CONCATENATE(B26,\" \",C26)","v":"3347 ENO"}]
[null,"3351","FBTO",{"$f":"CONCATENATE(B27,\" \",C27)","v":"3351 FBTO"}]
[null,"3352","IPTIQ",{"$f":"CONCATENATE(B28,\" \",C28)","v":"3352 IPTIQ"}]
[null,"3358","DE FRIESLAND",{"$f":"CONCATENATE(B29,\" \",C29)","v":"3358 DE FRIESLAND"}]
[null,"3359","EUCARE INSURANCE PCC LTD",{"$f":"CONCATENATE(B30,\" \",C30)","v":"3359 EUCARE INSURANCE PCC LTD"}]
[null,"7029","DSW","7029 DSW"]
[null,"7032","ENO","7032 ENO"]
[null,"7037","STAD HOLLAND","7037 STAD HOLLAND"]
[null,"7053","OHRA ZORGVERZEKERINGEN","7053 OHRA ZORGVERZEKERINGEN"]
[null,"7084","DE FRIESLAND",{"$f":"CONCATENATE(B35,\" \",C35)","v":"7084 DE FRIESLAND"}]
[null,"7085","ZORG EN ZEKERHEID","7085 ZORG EN ZEKERHEID"]
[null,"7095","VGZ ZORGVERZEKERAAR","7095 VGZ ZORGVERZEKERAAR"]
[null,"7119","CZ","7119 CZ"]
[null,"9015","VGZ VOOR DE ZORG","9015 VGZ VOOR DE ZORG"]